Workbook

Sheet INDEX
B2: The Scottish Health Survey (SHeS)
B3: Local Authority1 results 2013-2016
B5: Summary by NHS Local Authority
B6: Self-assessed general health | I6: CHART
B7: WEMWBS mean scores | I7: CHART
B8: General Health Questionnaire (GHQ-12) scores | I8: CHART
B9: Long-term illness | I9: CHART
B10: Alcohol consumption- weekly drinking guidelines | I10: CHART
B11: Alcohol consumption- mean weekly units | I11: CHART
B12: Smoking behaviour | I12: CHART
B13: Overweight | I13: CHART
B14: Obesity | I14: CHART
B15: Fruit and vegetable consumption- by category | I15: CHART
B16: Fruit and vegetable consumption- mean daily portions | I16: CHART
B17: Physical activity | I17: CHART
B18: Cardiovascular (CVD) conditions | I18: CHART
B20: More information about these topics can be found in the latest Scottish Health Survey report:
B21: http://www.gov.scot/Topics/Statistics/Browse/Health/scottish-health-survey
B23: Notes
B24: 1. Where the sample size for a Local Authority was below 500, the result has been suppressed.
B26: ERRATA (15/01/2018)
B27: Please note that errors have been discovered in the previously published results for two Local Authorities (East Dunbartonshire and Glasgow City).
B28: These were due to a number of survey respondents living in the Glasgow City council area being incorrectly coded as living in East Dunbartonshire and vice-versa.
B29: Published results now use corrected figures for the two Local Authorities.
B30: Results for other Local Authorities and all NHS Boards are unaffected.

Sheet Summary By Local Authority
B2: Choose a Local Authority to update charts and compare against overall Scotland figures
F3: PLEASE NOTE: Where the sample size for a Local Authority was below 500, the result has been suppressed. This is shown here by #N/A.
I7: Self-assessed general health | X7: WEMWBS mean scores
I8: All adults, 2013-2016 combined | X8: All adults, 2013-2016 combined
K9: Scotland | M9: =$A$128 -> Aberdeen City | Z9: Scotland | AB9: =$A$128 -> Aberdeen City
I10: ='SAH chart'!B36 -> Very good/good | K10: ='SAH chart'!R36 -> 73.78 | M10: =D130 -> 76.872 | X10: =F130 -> Mean | Z10: =G130 -> 50.99 | AB10: =H130 -> 50.665
I11: ='SAH chart'!B37 -> Lower CI | K11: ='SAH chart'!R37 -> 72.9 | M11: =D131 -> 73.218 | X11: =F131 -> Lower CI | Z11: =G131 -> 50.209 | AB11: =H131 -> 50.06
I12: ='SAH chart'!B38 -> Upper CI | K12: ='SAH chart'!R38 -> 74.66 | M12: =D132 -> 80.526 | X12: =F132 -> Upper CI | Z12: =G132 -> 51.77 | AB12: =H132 -> 51.27
I13: ='SAH chart'!B39 -> Fair | K13: ='SAH chart'!R39 -> 17.97 | M13: 16.295
I14: ='SAH chart'!B40 -> Lower CI | K14: ='SAH chart'!R40 -> 17.28 | M14: 13.266
I15: ='SAH chart'!B41 -> Upper CI | K15: ='SAH chart'!R41 -> 18.65 | M15: 19.324
I16: ='SAH chart'!B42 -> Bad/very bad | K16: ='SAH chart'!R42 -> 8.25 | M16: 6.833
I17: ='SAH chart'!B43 -> Lower CI | K17: ='SAH chart'!R43 -> 7.75 | M17: 5.211
I18: ='SAH chart'!B44 -> Upper CI | K18: ='SAH chart'!R44 -> 8.76 | M18: 8.455
I22: GHQ-12 scores | X22: Long-term illness
I23: All adults, 2013-2016 combined | X23: All adults, 2013-2016 combined
K24: Scotland | M24: =$A$128 -> Aberdeen City | AA24: Scotland | AC24: =$A$128 -> Aberdeen City
I25: =J130 -> Score 0 | K25: =K130 -> 64.694 | M25: =L130 -> 58.237 | X25: =B147 -> Limiting long-term illness | AA25: =C147 -> 31.841 | AC25: =D147 -> 27.888
I26: =J131 -> Lower CI | K26: =K131 -> 59.479 | M26: =L131 -> 54.322 | X26: Lower CI | AA26: =C148 -> 27.101 | AC26: =D148 -> 23.947
I27: Upper CI | K27: =K132 -> 69.908 | M27: =L132 -> 62.152 | X27: Upper CI | AA27: =C149 -> 36.581 | AC27: =D149 -> 31.829
I28: Score 1-3 | K28: =K133 -> 19.332 | M28: =L133 -> 28.011 | X28: Non-limiting long-term illness | AA28: 14.843 | AC28: 14.711
I29: Lower CI | K29: 15.327 | M29: 24.874 | X29: Lower CI | AA29: 11.727 | AC29: 12.076
I30: Upper CI | K30: 23.337 | M30: 31.148 | X30: Upper CI | AA30: 17.959 | AC30: 17.347
I31: Score 4+ | K31: 15.974 | M31: 13.752 | X31: No long-term illness | AA31: 53.316 | AC31: 57.401
I32: Lower CI | K32: 12.503 | M32: 11.515 | X32: Lower CI | AA32: 47.273 | AC32: 52.849
I33: Upper CI | K33: 19.446 | M33: 15.988 | X33: Upper CI | AA33: 59.358 | AC33: 61.952
I38: Adherence to weekly drinking advice | X38: Weekly mean alcohol units
I39: All adults, 2013-2016 combined | X39: All adults, 2013-2016 combined
K40: Scotland | M40: =$A$128 -> Aberdeen City | Z40: Scotland | AB40: =$A$128 -> Aberdeen City
I41: =F147 -> Non drinker | K41: =G147 -> 12.965 | M41: =H147 -> 19.668 | X41: =J147 -> Weekly mean units | Z41: =K147 -> 12.57 | AB41: =L147 -> 14.564
I42: =F148 -> Lower CI | K42: =G148 -> 10.107 | M42: =H148 -> 16.496 | X42: =J148 -> Lower CI | Z42: =K148 -> 12.2 | AB42: =L148 -> 12.346
I43: =F149 -> Upper CI | K43: =G149 -> 15.822 | M43: =H149 -> 22.841 | X43: Upper CI | Z43: 12.94 | AB43: 16.782
I44: Moderate | K44: 62.05 | M44: 52.946
I45: Lower CI | K45: 57.454 | M45: 48.73
I46: Upper CI | K46: 66.645 | M46: 57.162
I47: Hazardous/harmful | K47: 24.986 | M47: 27.386
I48: Lower CI | K48: 21.144 | M48: 23.623
I49: Upper CI | K49: 28.827 | M49: 31.148
I55: Smoking behaviour | X55: Prevalence of overweight (including obesity)
I56: All adults, 2013-2016 combined | X56: All adults, 2013-2016 combined
L57: Scotland | N57: =$A$128 -> Aberdeen City | Z57: Scotland | AB57: =$A$128 -> Aberdeen City
I58: =B163 -> Never smoked, or ex-occasional | L58: =C163 -> 54.55 | N58: =D163 -> 56.199 | X58: =F163 -> Overweight (including obese) | Z58: =G163 -> 64.87 | AB58: =H163 -> 60.85
I59: =B164 -> Lower CI | L59: =C164 -> 53.5 | N59: =D164 -> 51.891 | X59: =F164 -> Lower CI | Z59: =G164 -> 63.8 | AB59: =H164 -> 56.447
I60: Upper CI | L60: =C165 -> 55.59 | N60: =D165 -> 60.507 | X60: Upper CI | Z60: 65.93 | AB60: 65.253
I61: Ex-regular smoker, or occasional | L61: 24.21 | N61: 19.519
I62: Lower CI | L62: 23.43 | N62: 17.031
I63: Upper CI | L63: 24.98 | N63: 22.007
I64: Regular smoker | L64: 21.25 | N64: 24.281
I65: Lower CI | L65: 20.4 | N65: 20.536
I66: Upper CI | L66: 22.1 | N66: 28.027
I71: Prevalence of obesity | X71: Daily fruit and vegetable consumption
I72: All adults, 2013-2016 combined | X72: All adults, 2013-2016 combined
K73: Scotland | M73: =$A$128 -> Aberdeen City | Z73: Scotland | AB73: =$A$128 -> Aberdeen City
I74: =F172 -> Obese | K74: =G172 -> 28.32 | M74: =H172 -> 24.57 | X74: =J163 -> None | Z74: =K163 -> 10.52 | AB74: =L163 -> 7.057
I75: =F173 -> Lower CI | K75: =G173 -> 27.43 | M75: =H173 -> 21.207 | X75: =J164 -> Lower CI | Z75: =K164 -> 9.86 | AB75: =L164 -> 5.22
I76: Upper CI | K76: 29.2 | M76: 27.934 | X76: Upper CI | Z76: =K165 -> 11.19 | AB76: =L165 -> 8.893
X77: Less than 5 portions | Z77: 68.73 | AB77: 71.616
X78: Lower CI | Z78: 67.84 | AB78: 68.167
X79: Upper CI | Z79: 69.63 | AB79: 75.065
X80: 5 portions or more | Z80: 20.74 | AB80: 21.327
X81: Lower CI | Z81: 19.92 | AB81: 18.493
X82: Upper CI | Z82: 21.57 | AB82: 24.161
I87: Mean daily portions of fruit and vegetables | X87: Physical activity
I88: All adults, 2013-2016 combined | X88: All adults, 2013-2016 combined
K89: Scotland | M89: =$A$128 -> Aberdeen City | Z89: Scotland | AB89: =$A$128 -> Aberdeen City
I90: =B180 -> Mean | K90: =C180 -> 3.14 | M90: =D180 -> 3.321 | X90: =F180 -> Meets guidelines | Z90: =G180 -> 63.5 | AB90: =H180 -> 67.615
I91: =B181 -> Lower CI | K91: =C181 -> 3.09 | M91: =D181 -> 3.123 | X91: =F181 -> Lower CI | Z91: =G181 -> 62.51 | AB91: =H181 -> 63.588
I92: =B182 -> Upper CI | K92: =C182 -> 3.2 | M92: =D182 -> 3.518 | X92: Upper CI | Z92: =G182 -> 64.5 | AB92: =H182 -> 71.643
X93: Some activity | Z93: 11.13 | AB93: 9.276
X94: Lower CI | Z94: 10.56 | AB94: 7.14
X95: Upper CI | Z95: 11.7 | AB95: 11.412
X96: Low activity | Z96: 4.33 | AB96: 3.871
X97: Lower CI | Z97: 3.99 | AB97: 2.754
X98: Upper CI | Z98: 4.68 | AB98: 4.989
X99: Very low activity | Z99: 21.03 | AB99: 19.237
X100: Lower CI | Z100: 20.23 | AB100: 16.568
X101: Upper CI | Z101: 21.84 | AB101: 21.906
I104: Prevalence of cardiovascular (CVD) conditions
I105: All adults, 2013-2016 combined
L106: Scotland | N106: =$A$128 -> Aberdeen City
I107: =J180 -> Has a cardiovascular condition | L107: =K180 -> 15.55 | N107: =L180 -> 14.831
I108: =J181 -> Lower CI | L108: =K181 -> 14.91 | N108: =L181 -> 11.88
I109: Upper CI | L109: 16.18 | N109: 17.782
A128: Aberdeen City | C128: Scotland | D128: =A128 -> Aberdeen City | G128: Scotland | H128: =A128 -> Aberdeen City | K128: Scotland | L128: =A128 -> Aberdeen City
A129: Aberdeen City | B129: SAH | F129: WEMWBS | J129: GHQ-12
A130: Aberdeenshire | B130: Very good/good | C130: ='SAH chart'!R36 -> 73.78 | D130: =INDEX('SAH chart'!$C$34:$P$48, 3, MATCH('Summary By Local Authority'!$A$128,'SAH chart'!$C$34:$P$34, 0)) -> 76.872 | F130: Mean | G130: ='WEMWBS chart '!I36 -> 50.99 | H130: =INDEX('WEMWBS chart '!$C$34:$P$40, 3, MATCH('Summary By Local Authority'!$H$128, 'WEMWBS chart '!$C$34:$P$34, 0)) -> 50.665 | J130: Score 0 | K130: ='GHQ-12 chart'!I36 -> 64.694 | L130: =INDEX('GHQ-12 chart'!$C$34:$P$48, 3, MATCH('Summary By Local Authority'!$L$128, 'GHQ-12 chart'!$C$34:$P$34, 0)) -> 58.237
A131: Angus | B131: Lower CI | C131: ='SAH chart'!R37 -> 72.9 | D131: =INDEX('SAH chart'!$C$34:$P$48, 4, MATCH('Summary By Local Authority'!$A$128,'SAH chart'!$C$34:$P$34, 0)) -> 73.218 | F131: Lower CI | G131: ='WEMWBS chart '!I37 -> 50.209 | H131: =INDEX('WEMWBS chart '!$C$34:$P$40, 4, MATCH('Summary By Local Authority'!$H$128, 'WEMWBS chart '!$C$34:$P$34, 0)) -> 50.06 | J131: Lower CI | K131: ='GHQ-12 chart'!I37 -> 59.479 | L131: =INDEX('GHQ-12 chart'!$C$34:$P$48, 4, MATCH('Summary By Local Authority'!$L$128, 'GHQ-12 chart'!$C$34:$P$34, 0)) -> 54.322
A132: Argyll & Bute | B132: Upper CI | C132: ='SAH chart'!R38 -> 74.66 | D132: =INDEX('SAH chart'!$C$34:$P$48, 5, MATCH('Summary By Local Authority'!$A$128,'SAH chart'!$C$34:$P$34, 0)) -> 80.526 | F132: Upper CI | G132: ='WEMWBS chart '!I38 -> 51.77 | H132: =INDEX('WEMWBS chart '!$C$34:$P$40, 5, MATCH('Summary By Local Authority'!$H$128, 'WEMWBS chart '!$C$34:$P$34, 0)) -> 51.27 | J132: Upper CI | K132: ='GHQ-12 chart'!I38 -> 69.908 | L132: =INDEX('GHQ-12 chart'!$C$34:$P$48, 5, MATCH('Summary By Local Authority'!$L$128, 'GHQ-12 chart'!$C$34:$P$34, 0)) -> 62.152
A133: Clackmannanshire | B133: Fair | C133: ='SAH chart'!R39 -> 17.97 | D133: =INDEX('SAH chart'!$C$34:$P$48, 6, MATCH('Summary By Local Authority'!$A$128,'SAH chart'!$C$34:$P$34, 0)) -> 16.295 | J133: Score 1-3 | K133: ='GHQ-12 chart'!I39 -> 19.332 | L133: =INDEX('GHQ-12 chart'!$C$34:$P$48, 6, MATCH('Summary By Local Authority'!$L$128, 'GHQ-12 chart'!$C$34:$P$34, 0)) -> 28.011
A134: Dumfries & Galloway | B134: Lower CI | C134: ='SAH chart'!R40 -> 17.28 | D134: =INDEX('SAH chart'!$C$34:$P$48, 7, MATCH('Summary By Local Authority'!$A$128,'SAH chart'!$C$34:$P$34, 0)) -> 13.266 | F134: CLS | G134: =G130-G131 -> 0.781 | H134: =INDEX('WEMWBS chart '!$C$34:$P$40, 7, MATCH('Summary By Local Authority'!$H$128, 'WEMWBS chart '!$C$34:$P$34, 0)) -> 0.605 | J134: Lower CI | K134: ='GHQ-12 chart'!I40 -> 15.327 | L134: =INDEX('GHQ-12 chart'!$C$34:$P$48, 7, MATCH('Summary By Local Authority'!$L$128, 'GHQ-12 chart'!$C$34:$P$34, 0)) -> 24.874
A135: Dundee City | B135: Upper CI | C135: ='SAH chart'!R41 -> 18.65 | D135: =INDEX('SAH chart'!$C$34:$P$48, 8, MATCH('Summary By Local Authority'!$A$128,'SAH chart'!$C$34:$P$34, 0)) -> 19.324 | J135: Upper CI | K135: ='GHQ-12 chart'!I41 -> 23.337 | L135: =INDEX('GHQ-12 chart'!$C$34:$P$48, 8, MATCH('Summary By Local Authority'!$L$128, 'GHQ-12 chart'!$C$34:$P$34, 0)) -> 31.148
A136: East Ayrshire | B136: Bad/very bad | C136: ='SAH chart'!R42 -> 8.25 | D136: =INDEX('SAH chart'!$C$34:$P$48, 9, MATCH('Summary By Local Authority'!$A$128,'SAH chart'!$C$34:$P$34, 0)) -> 6.833 | J136: Score 4+ | K136: ='GHQ-12 chart'!I42 -> 15.974 | L136: =INDEX('GHQ-12 chart'!$C$34:$P$48, 9, MATCH('Summary By Local Authority'!$L$128, 'GHQ-12 chart'!$C$34:$P$34, 0)) -> 13.752
A137: East Dunbartonshire | B137: Lower CI | C137: ='SAH chart'!R43 -> 7.75 | D137: =INDEX('SAH chart'!$C$34:$P$48, 10, MATCH('Summary By Local Authority'!$A$128,'SAH chart'!$C$34:$P$34, 0)) -> 5.211 | J137: Lower CI | K137: ='GHQ-12 chart'!I43 -> 12.503 | L137: =INDEX('GHQ-12 chart'!$C$34:$P$48, 10, MATCH('Summary By Local Authority'!$L$128, 'GHQ-12 chart'!$C$34:$P$34, 0)) -> 11.515
A138: East Lothian | B138: Upper CI | C138: ='SAH chart'!R44 -> 8.76 | D138: =INDEX('SAH chart'!$C$34:$P$48, 11, MATCH('Summary By Local Authority'!$A$128,'SAH chart'!$C$34:$P$34, 0)) -> 8.455 | J138: Upper CI | K138: ='GHQ-12 chart'!I44 -> 19.446 | L138: =INDEX('GHQ-12 chart'!$C$34:$P$48, 11, MATCH('Summary By Local Authority'!$L$128, 'GHQ-12 chart'!$C$34:$P$34, 0)) -> 15.988
A139: East Renfrewshire | D139: =INDEX('SAH chart'!$C$34:$P$48, 12, MATCH('Summary By Local Authority'!$A$128,'SAH chart'!$C$34:$P$34, 0)) -> 0
A140: Edinburgh, City of | B140: Very good | C140: ='SAH chart'!R46 -> 0.88 | D140: =INDEX('SAH chart'!$C$34:$P$48, 13, MATCH('Summary By Local Authority'!$A$128,'SAH chart'!$C$34:$P$34, 0)) -> 3.654 | J140: Score 0 | K140: =K130-K131 -> 5.215 | L140: =INDEX('GHQ-12 chart'!$C$34:$P$48, 13, MATCH('Summary By Local Authority'!$L$128, 'GHQ-12 chart'!$C$34:$P$34, 0)) -> 3.915
A141: Falkirk | B141: Fair | C141: ='SAH chart'!R47 -> 0.69 | D141: =INDEX('SAH chart'!$C$34:$P$48, 14, MATCH('Summary By Local Authority'!$A$128,'SAH chart'!$C$34:$P$34, 0)) -> 3.029 | J141: Score 1-3 | K141: =K133-K134 -> 4.005 | L141: =INDEX('GHQ-12 chart'!$C$34:$P$48, 14, MATCH('Summary By Local Authority'!$L$128, 'GHQ-12 chart'!$C$34:$P$34, 0)) -> 3.137
A142: Fife | B142: Bad/ very bad | C142: ='SAH chart'!R48 -> 0.5 | D142: =INDEX('SAH chart'!$C$34:$P$48, 15, MATCH('Summary By Local Authority'!$A$128,'SAH chart'!$C$34:$P$34, 0)) -> 1.622 | J142: Score 4+ | K142: =K136-K137 -> 3.471 | L142: =INDEX('GHQ-12 chart'!$C$34:$P$48, 15, MATCH('Summary By Local Authority'!$L$128, 'GHQ-12 chart'!$C$34:$P$34, 0)) -> 2.237
A143: Glasgow City
A144: Highland | C144: Scotland | D144: =A128 -> Aberdeen City | G144: Scotland | H144: =A128 -> Aberdeen City | K144: Scotland | L144: =A128 -> Aberdeen City
A145: Inverclyde | B145: Longterm illness | F145: Alcohol guidelines | J145: Mean units
A146: Midlothian | B146: All Adults
A147: Moray | B147: Limiting long-term illness | C147: ='Long-term illness chart'!I36 -> 31.841 | D147: =INDEX( 'Long-term illness chart'!$C$34:$R$48, 3, MATCH('Summary By Local Authority'!$D$144, 'Long-term illness chart'!$C$34:$R$34, 0 )) -> 27.888 | F147: Non drinker | G147: ='Alcohol guidelines chart'!I34 -> 12.965 | H147: =INDEX('Alcohol guidelines chart'!$C$32:$R$46, 3, MATCH('Summary By Local Authority'!$H$144, 'Alcohol guidelines chart'!$C$32:$R$32, 0)) -> 19.668 | J147: Weekly mean units | K147: ='Mean units chart'!O36 -> 12.57 | L147: =INDEX('Mean units chart'!$C$34:$O$40,3,MATCH('Summary By Local Authority'!$L$144,'Mean units chart'!$C$34:$O$34,0)) -> 14.564
A148: Na h-Eileanan Siar | B148: Lower CI | C148: ='Long-term illness chart'!I37 -> 27.101 | D148: =INDEX( 'Long-term illness chart'!$C$34:$R$48, 4, MATCH('Summary By Local Authority'!$D$144, 'Long-term illness chart'!$C$34:$R$34, 0 )) -> 23.947 | F148: Lower CI | G148: ='Alcohol guidelines chart'!I35 -> 10.107 | H148: =INDEX('Alcohol guidelines chart'!$C$32:$R$46, 4, MATCH('Summary By Local Authority'!$H$144, 'Alcohol guidelines chart'!$C$32:$R$32, 0)) -> 16.496 | J148: Lower CI | K148: ='Mean units chart'!O37 -> 12.2 | L148: =INDEX('Mean units chart'!$C$34:$O$40,4,MATCH('Summary By Local Authority'!$L$144,'Mean units chart'!$C$34:$O$34,0)) -> 12.346
A149: North Ayrshire | B149: Upper CI | C149: ='Long-term illness chart'!I38 -> 36.581 | D149: =INDEX( 'Long-term illness chart'!$C$34:$R$48, 5, MATCH('Summary By Local Authority'!$D$144, 'Long-term illness chart'!$C$34:$R$34, 0 )) -> 31.829 | F149: Upper CI | G149: ='Alcohol guidelines chart'!I36 -> 15.822 | H149: =INDEX('Alcohol guidelines chart'!$C$32:$R$46, 5, MATCH('Summary By Local Authority'!$H$144, 'Alcohol guidelines chart'!$C$32:$R$32, 0)) -> 22.841 | J149: Upper CI | K149: ='Mean units chart'!O38 -> 12.94 | L149: =INDEX('Mean units chart'!$C$34:$O$40,5,MATCH('Summary By Local Authority'!$L$144,'Mean units chart'!$C$34:$O$34,0)) -> 16.782
A150: North Lanarkshire | B150: Non-limiting long-term illness | C150: ='Long-term illness chart'!I39 -> 14.843 | D150: =INDEX( 'Long-term illness chart'!$C$34:$R$48, 6, MATCH('Summary By Local Authority'!$D$144, 'Long-term illness chart'!$C$34:$R$34, 0 )) -> 14.711 | F150: Moderate | G150: ='Alcohol guidelines chart'!I37 -> 62.05 | H150: =INDEX('Alcohol guidelines chart'!$C$32:$R$46, 6, MATCH('Summary By Local Authority'!$H$144, 'Alcohol guidelines chart'!$C$32:$R$32, 0)) -> 52.946
A151: Orkney Islands | B151: Lower CI | C151: ='Long-term illness chart'!I40 -> 11.727 | D151: =INDEX( 'Long-term illness chart'!$C$34:$R$48, 7, MATCH('Summary By Local Authority'!$D$144, 'Long-term illness chart'!$C$34:$R$34, 0 )) -> 12.076 | F151: Lower CI | G151: ='Alcohol guidelines chart'!I38 -> 57.454 | H151: =INDEX('Alcohol guidelines chart'!$C$32:$R$46, 7, MATCH('Summary By Local Authority'!$H$144, 'Alcohol guidelines chart'!$C$32:$R$32, 0)) -> 48.73 | J151: CLs | K151: ='Mean units chart'!O40 -> 0.37 | L151: =INDEX('Mean units chart'!$C$34:$O$40,7,MATCH('Summary By Local Authority'!$L$144,'Mean units chart'!$C$34:$O$34,0)) -> 2.218
A152: Perth & Kinross | B152: Upper CI | C152: ='Long-term illness chart'!I41 -> 17.959 | D152: =INDEX( 'Long-term illness chart'!$C$34:$R$48, 8, MATCH('Summary By Local Authority'!$D$144, 'Long-term illness chart'!$C$34:$R$34, 0 )) -> 17.347 | F152: Upper CI | G152: ='Alcohol guidelines chart'!I39 -> 66.645 | H152: =INDEX('Alcohol guidelines chart'!$C$32:$R$46, 8, MATCH('Summary By Local Authority'!$H$144, 'Alcohol guidelines chart'!$C$32:$R$32, 0)) -> 57.162
A153: Renfrewshire | B153: No long-term illness | C153: ='Long-term illness chart'!I42 -> 53.316 | D153: =INDEX( 'Long-term illness chart'!$C$34:$R$48, 9, MATCH('Summary By Local Authority'!$D$144, 'Long-term illness chart'!$C$34:$R$34, 0 )) -> 57.401 | F153: Hazardous/harmful | G153: ='Alcohol guidelines chart'!I40 -> 24.986 | H153: =INDEX('Alcohol guidelines chart'!$C$32:$R$46, 9, MATCH('Summary By Local Authority'!$H$144, 'Alcohol guidelines chart'!$C$32:$R$32, 0)) -> 27.386
A154: Scottish Borders | B154: Lower CI | C154: ='Long-term illness chart'!I43 -> 47.273 | D154: =INDEX( 'Long-term illness chart'!$C$34:$R$48, 10, MATCH('Summary By Local Authority'!$D$144, 'Long-term illness chart'!$C$34:$R$34, 0 )) -> 52.849 | F154: Lower CI | G154: ='Alcohol guidelines chart'!I41 -> 21.144 | H154: =INDEX('Alcohol guidelines chart'!$C$32:$R$46, 10, MATCH('Summary By Local Authority'!$H$144, 'Alcohol guidelines chart'!$C$32:$R$32, 0)) -> 23.623
A155: Shetland Islands | B155: Upper CI | C155: ='Long-term illness chart'!I44 -> 59.358 | D155: =INDEX( 'Long-term illness chart'!$C$34:$R$48, 11, MATCH('Summary By Local Authority'!$D$144, 'Long-term illness chart'!$C$34:$R$34, 0 )) -> 61.952 | F155: Upper CI | G155: ='Alcohol guidelines chart'!I42 -> 28.827 | H155: =INDEX('Alcohol guidelines chart'!$C$32:$R$46, 11, MATCH('Summary By Local Authority'!$H$144, 'Alcohol guidelines chart'!$C$32:$R$32, 0)) -> 31.148
A156: South Ayrshire
A157: South Lanarkshire | B157: Limiting long-term illness | C157: =C147-C148 -> 4.74 | D157: =INDEX( 'Long-term illness chart'!$C$34:$R$48, 13, MATCH('Summary By Local Authority'!$D$144, 'Long-term illness chart'!$C$34:$R$34, 0 )) -> 3.941 | F157: Non drinker | G157: =G147-G148 -> 2.858 | H157: =INDEX('Alcohol guidelines chart'!$C$32:$R$46, 13, MATCH('Summary By Local Authority'!$H$144, 'Alcohol guidelines chart'!$C$32:$R$32, 0)) -> 3.172
A158: Stirling | B158: Non-limiting long-term illness | C158: =C150-C151 -> 3.116 | D158: =INDEX( 'Long-term illness chart'!$C$34:$R$48, 14, MATCH('Summary By Local Authority'!$D$144, 'Long-term illness chart'!$C$34:$R$34, 0 )) -> 2.635 | F158: Moderate | G158: =G150-G151 -> 4.596 | H158: =INDEX('Alcohol guidelines chart'!$C$32:$R$46, 14, MATCH('Summary By Local Authority'!$H$144, 'Alcohol guidelines chart'!$C$32:$R$32, 0)) -> 4.216
A159: West Dunbartonshire | B159: No long-term illness | C159: =C153-C154 -> 6.043 | D159: =INDEX( 'Long-term illness chart'!$C$34:$R$48, 15, MATCH('Summary By Local Authority'!$D$144, 'Long-term illness chart'!$C$34:$R$34, 0 )) -> 4.552 | F159: Hazardous/harmful | G159: =G153-G154 -> 3.842 | H159: =INDEX('Alcohol guidelines chart'!$C$32:$R$46, 15, MATCH('Summary By Local Authority'!$H$144, 'Alcohol guidelines chart'!$C$32:$R$32, 0)) -> 3.763
A160: West Lothian
C161: Scotland | D161: =A128 -> Aberdeen City | G161: Scotland | H161: =A128 -> Aberdeen City | K161: Scotland | L161: =A128 -> Aberdeen City
B162: Smoking | F162: Overweight | J162: Fruit & Veg
B163: Never smoked, or ex-occasional | C163: ='Smoking chart'!R36 -> 54.55 | D163: =INDEX( 'Smoking chart'!$C$34:$R$48, 3, MATCH('Summary By Local Authority'!$D$161, 'Smoking chart'!$C$34:$R$34, 0)) -> 56.199 | F163: Overweight (including obese) | G163: ='Overweight chart'!O36 -> 64.87 | H163: =INDEX('Overweight chart'!$C$34:$O$40, 3, MATCH('Summary By Local Authority'!$H$161, 'Overweight chart'!$C$34:$O$34, 0)) -> 60.85 | J163: None | K163: ='Fruit and veg chart'!R36 -> 10.52 | L163: =INDEX('Fruit and veg chart'!$C$34:$R$48, 3, MATCH('Summary By Local Authority'!$L$161, 'Fruit and veg chart'!$C$34:$R$34, 0)) -> 7.057
B164: Lower CI | C164: ='Smoking chart'!R37 -> 53.5 | D164: =INDEX( 'Smoking chart'!$C$34:$R$48, 4, MATCH('Summary By Local Authority'!$D$161, 'Smoking chart'!$C$34:$R$34, 0)) -> 51.891 | F164: Lower CI | G164: ='Overweight chart'!O37 -> 63.8 | H164: =INDEX('Overweight chart'!$C$34:$O$40, 4, MATCH('Summary By Local Authority'!$H$161, 'Overweight chart'!$C$34:$O$34, 0)) -> 56.447 | J164: Lower CI | K164: ='Fruit and veg chart'!R37 -> 9.86 | L164: =INDEX('Fruit and veg chart'!$C$34:$R$48, 4, MATCH('Summary By Local Authority'!$L$161, 'Fruit and veg chart'!$C$34:$R$34, 0)) -> 5.22
B165: Upper CI | C165: ='Smoking chart'!R38 -> 55.59 | D165: =INDEX( 'Smoking chart'!$C$34:$R$48, 5, MATCH('Summary By Local Authority'!$D$161, 'Smoking chart'!$C$34:$R$34, 0)) -> 60.507 | F165: Upper CI | G165: ='Overweight chart'!O38 -> 65.93 | H165: =INDEX('Overweight chart'!$C$34:$O$40, 5, MATCH('Summary By Local Authority'!$H$161, 'Overweight chart'!$C$34:$O$34, 0)) -> 65.253 | J165: Upper CI | K165: ='Fruit and veg chart'!R38 -> 11.19 | L165: =INDEX('Fruit and veg chart'!$C$34:$R$48, 5, MATCH('Summary By Local Authority'!$L$161, 'Fruit and veg chart'!$C$34:$R$34, 0)) -> 8.893
B166: Ex-regular smoker, or occasional | C166: ='Smoking chart'!R39 -> 24.21 | D166: =INDEX( 'Smoking chart'!$C$34:$R$48, 6, MATCH('Summary By Local Authority'!$D$161, 'Smoking chart'!$C$34:$R$34, 0)) -> 19.519 | J166: Less than 5 portions | K166: ='Fruit and veg chart'!R39 -> 68.73 | L166: =INDEX('Fruit and veg chart'!$C$34:$R$48, 6, MATCH('Summary By Local Authority'!$L$161, 'Fruit and veg chart'!$C$34:$R$34, 0)) -> 71.616
B167: Lower CI | C167: ='Smoking chart'!R40 -> 23.43 | D167: =INDEX( 'Smoking chart'!$C$34:$R$48, 7, MATCH('Summary By Local Authority'!$D$161, 'Smoking chart'!$C$34:$R$34, 0)) -> 17.031 | F167: CLs | G167: ='Overweight chart'!O40 -> 1.07 | H167: =INDEX('Overweight chart'!$C$34:$O$40, 7, MATCH('Summary By Local Authority'!$H$161, 'Overweight chart'!$C$34:$O$34, 0)) -> 4.403 | J167: Lower CI | K167: ='Fruit and veg chart'!R40 -> 67.84 | L167: =INDEX('Fruit and veg chart'!$C$34:$R$48, 7, MATCH('Summary By Local Authority'!$L$161, 'Fruit and veg chart'!$C$34:$R$34, 0)) -> 68.167
B168: Upper CI | C168: ='Smoking chart'!R41 -> 24.98 | D168: =INDEX( 'Smoking chart'!$C$34:$R$48, 8, MATCH('Summary By Local Authority'!$D$161, 'Smoking chart'!$C$34:$R$34, 0)) -> 22.007 | J168: Upper CI | K168: ='Fruit and veg chart'!R41 -> 69.63 | L168: =INDEX('Fruit and veg chart'!$C$34:$R$48, 8, MATCH('Summary By Local Authority'!$L$161, 'Fruit and veg chart'!$C$34:$R$34, 0)) -> 75.065
B169: Regular smoker | C169: ='Smoking chart'!R42 -> 21.25 | D169: =INDEX( 'Smoking chart'!$C$34:$R$48, 9, MATCH('Summary By Local Authority'!$D$161, 'Smoking chart'!$C$34:$R$34, 0)) -> 24.281 | J169: 5 portions or more | K169: ='Fruit and veg chart'!R42 -> 20.74 | L169: =INDEX('Fruit and veg chart'!$C$34:$R$48, 9, MATCH('Summary By Local Authority'!$L$161, 'Fruit and veg chart'!$C$34:$R$34, 0)) -> 21.327
B170: Lower CI | C170: ='Smoking chart'!R43 -> 20.4 | D170: =INDEX( 'Smoking chart'!$C$34:$R$48, 10, MATCH('Summary By Local Authority'!$D$161, 'Smoking chart'!$C$34:$R$34, 0)) -> 20.536 | G170: Scotland | H170: =A128 -> Aberdeen City | J170: Lower CI | K170: ='Fruit and veg chart'!R43 -> 19.92 | L170: =INDEX('Fruit and veg chart'!$C$34:$R$48, 10, MATCH('Summary By Local Authority'!$L$161, 'Fruit and veg chart'!$C$34:$R$34, 0)) -> 18.493
B171: Upper CI | C171: ='Smoking chart'!R44 -> 22.1 | D171: =INDEX( 'Smoking chart'!$C$34:$R$48, 11, MATCH('Summary By Local Authority'!$D$161, 'Smoking chart'!$C$34:$R$34, 0)) -> 28.027 | F171: Obesity | J171: Upper CI | K171: ='Fruit and veg chart'!R44 -> 21.57 | L171: =INDEX('Fruit and veg chart'!$C$34:$R$48, 11, MATCH('Summary By Local Authority'!$L$161, 'Fruit and veg chart'!$C$34:$R$34, 0)) -> 24.161
F172: Obese | G172: ='Obesity chart'!O36 -> 28.32 | H172: =INDEX('Obesity chart'!$C$34:$O$40, 3, MATCH('Summary By Local Authority'!$H$170, 'Obesity chart'!$C$34:$O$34, 0)) -> 24.57
B173: Never smoked, or ex-occasional | C173: ='Smoking chart'!R46 -> 1.05 | D173: =INDEX( 'Smoking chart'!$C$34:$R$48, 13, MATCH('Summary By Local Authority'!$D$161, 'Smoking chart'!$C$34:$R$34, 0)) -> 4.308 | F173: Lower CI | G173: ='Obesity chart'!O37 -> 27.43 | H173: =INDEX('Obesity chart'!$C$34:$O$40, 4, MATCH('Summary By Local Authority'!$H$170, 'Obesity chart'!$C$34:$O$34, 0)) -> 21.207 | J173: None | K173: ='Fruit and veg chart'!R46 -> 0.66 | L173: =INDEX('Fruit and veg chart'!$C$34:$R$48, 13, MATCH('Summary By Local Authority'!$L$161, 'Fruit and veg chart'!$C$34:$R$34, 0)) -> 1.837
B174: Ex-regular smoker, or occasional | C174: ='Smoking chart'!R47 -> 0.78 | D174: =INDEX( 'Smoking chart'!$C$34:$R$48, 14, MATCH('Summary By Local Authority'!$D$161, 'Smoking chart'!$C$34:$R$34, 0)) -> 2.488 | F174: Upper CI | G174: ='Obesity chart'!O38 -> 29.2 | H174: =INDEX('Obesity chart'!$C$34:$O$40, 5, MATCH('Summary By Local Authority'!$H$170, 'Obesity chart'!$C$34:$O$34, 0)) -> 27.934 | J174: Less than 5 portions | K174: ='Fruit and veg chart'!R47 -> 0.89 | L174: =INDEX('Fruit and veg chart'!$C$34:$R$48, 14, MATCH('Summary By Local Authority'!$L$161, 'Fruit and veg chart'!$C$34:$R$34, 0)) -> 3.449
B175: Regular smoker | C175: ='Smoking chart'!R48 -> 0.85 | D175: =INDEX( 'Smoking chart'!$C$34:$R$48, 15, MATCH('Summary By Local Authority'!$D$161, 'Smoking chart'!$C$34:$R$34, 0)) -> 3.745 | J175: 5 portions or more | K175: ='Fruit and veg chart'!R48 -> 0.82 | L175: =INDEX('Fruit and veg chart'!$C$34:$R$48, 15, MATCH('Summary By Local Authority'!$L$161, 'Fruit and veg chart'!$C$34:$R$34, 0)) -> 2.834
F176: CLs | G176: ='Obesity chart'!O40 -> 0.89 | H176: =INDEX('Obesity chart'!$C$34:$O$40, 7, MATCH('Summary By Local Authority'!$H$170, 'Obesity chart'!$C$34:$O$34, 0)) -> 3.363
C178: Scotland | D178: =A128 -> Aberdeen City | G178: Scotland | H178: =A128 -> Aberdeen City | K178: Scotland | L178: =A128 -> Aberdeen City
B179: Mean Fruit & Veg | F179: Phys Act | J179: CVD
B180: Mean | C180: ='Mean fruit and veg chart'!R36 -> 3.14 | D180: =INDEX( 'Mean fruit and veg chart'!$C$34:$R$40, 3, MATCH('Summary By Local Authority'!$D$178, 'Mean fruit and veg chart'!$C$34:$R$34, 0 )) -> 3.321 | F180: Meets guidelines | G180: ='Physical activity chart'!Q36 -> 63.5 | H180: =INDEX('Physical activity chart'!$C$34:$Q$52, 3, MATCH('Summary By Local Authority'!$H$178, 'Physical activity chart'!$C$34:$Q$34, 0)) -> 67.615 | J180: Has a cardiovascular condition | K180: ='CVD chart'!R36 -> 15.55 | L180: =INDEX('CVD chart'!$C$34:$R$40, 3, MATCH('Summary By Local Authority'!$L$178, 'CVD chart'!$C$34:$R$34, 0)) -> 14.831
B181: Lower CI | C181: ='Mean fruit and veg chart'!R37 -> 3.09 | D181: =INDEX( 'Mean fruit and veg chart'!$C$34:$R$40, 4, MATCH('Summary By Local Authority'!$D$178, 'Mean fruit and veg chart'!$C$34:$R$34, 0 )) -> 3.123 | F181: Lower CI | G181: ='Physical activity chart'!Q37 -> 62.51 | H181: =INDEX('Physical activity chart'!$C$34:$Q$52, 4, MATCH('Summary By Local Authority'!$H$178, 'Physical activity chart'!$C$34:$Q$34, 0)) -> 63.588 | J181: Lower CI | K181: ='CVD chart'!R37 -> 14.91 | L181: =INDEX('CVD chart'!$C$34:$R$40, 4, MATCH('Summary By Local Authority'!$L$178, 'CVD chart'!$C$34:$R$34, 0)) -> 11.88
B182: Upper CI | C182: ='Mean fruit and veg chart'!R38 -> 3.2 | D182: =INDEX( 'Mean fruit and veg chart'!$C$34:$R$40, 5, MATCH('Summary By Local Authority'!$D$178, 'Mean fruit and veg chart'!$C$34:$R$34, 0 )) -> 3.518 | F182: Upper CI | G182: ='Physical activity chart'!Q38 -> 64.5 | H182: =INDEX('Physical activity chart'!$C$34:$Q$52, 5, MATCH('Summary By Local Authority'!$H$178, 'Physical activity chart'!$C$34:$Q$34, 0)) -> 71.643 | J182: Upper CI | K182: ='CVD chart'!R38 -> 16.18 | L182: =INDEX('CVD chart'!$C$34:$R$40, 5, MATCH('Summary By Local Authority'!$L$178, 'CVD chart'!$C$34:$R$34, 0)) -> 17.782
F183: Some activity | G183: ='Physical activity chart'!Q39 -> 11.13 | H183: =INDEX('Physical activity chart'!$C$34:$Q$52, 6, MATCH('Summary By Local Authority'!$H$178, 'Physical activity chart'!$C$34:$Q$34, 0)) -> 9.276
B184: CLs | C184: ='Mean fruit and veg chart'!R40 -> 0.05 | D184: =INDEX( 'Mean fruit and veg chart'!$C$34:$R$40, 7, MATCH('Summary By Local Authority'!$D$178, 'Mean fruit and veg chart'!$C$34:$R$34, 0 )) -> 0.198 | F184: Lower CI | G184: ='Physical activity chart'!Q40 -> 10.56 | H184: =INDEX('Physical activity chart'!$C$34:$Q$52, 7, MATCH('Summary By Local Authority'!$H$178, 'Physical activity chart'!$C$34:$Q$34, 0)) -> 7.14 | J184: CLs | K184: ='CVD chart'!R40 -> 0.64 | L184: =INDEX('CVD chart'!$C$34:$R$40, 7, MATCH('Summary By Local Authority'!$L$178, 'CVD chart'!$C$34:$R$34, 0)) -> 2.951
F185: Upper CI | G185: ='Physical activity chart'!Q41 -> 11.7 | H185: =INDEX('Physical activity chart'!$C$34:$Q$52, 8, MATCH('Summary By Local Authority'!$H$178, 'Physical activity chart'!$C$34:$Q$34, 0)) -> 11.412
F186: Low activity | G186: ='Physical activity chart'!Q42 -> 4.33 | H186: =INDEX('Physical activity chart'!$C$34:$Q$52, 9, MATCH('Summary By Local Authority'!$H$178, 'Physical activity chart'!$C$34:$Q$34, 0)) -> 3.871
F187: Lower CI | G187: ='Physical activity chart'!Q43 -> 3.99 | H187: =INDEX('Physical activity chart'!$C$34:$Q$52, 10, MATCH('Summary By Local Authority'!$H$178, 'Physical activity chart'!$C$34:$Q$34, 0)) -> 2.754
F188: Upper CI | G188: ='Physical activity chart'!Q44 -> 4.68 | H188: =INDEX('Physical activity chart'!$C$34:$Q$52, 11, MATCH('Summary By Local Authority'!$H$178, 'Physical activity chart'!$C$34:$Q$34, 0)) -> 4.989
F189: Very low activity | G189: ='Physical activity chart'!Q45 -> 21.03 | H189: =INDEX('Physical activity chart'!$C$34:$Q$52, 12, MATCH('Summary By Local Authority'!$H$178, 'Physical activity chart'!$C$34:$Q$34, 0)) -> 19.237
F190: Lower CI | G190: ='Physical activity chart'!Q46 -> 20.23 | H190: =INDEX('Physical activity chart'!$C$34:$Q$52, 13, MATCH('Summary By Local Authority'!$H$178, 'Physical activity chart'!$C$34:$Q$34, 0)) -> 16.568
F191: Upper CI | G191: ='Physical activity chart'!Q47 -> 21.84 | H191: =INDEX('Physical activity chart'!$C$34:$Q$52, 14, MATCH('Summary By Local Authority'!$H$178, 'Physical activity chart'!$C$34:$Q$34, 0)) -> 21.906
G192: ='Physical activity chart'!Q48 -> 0
F193: Meets guidelines | G193: ='Physical activity chart'!Q49 -> 0.99 | H193: =INDEX('Physical activity chart'!$C$34:$Q$52, 16, MATCH('Summary By Local Authority'!$H$178, 'Physical activity chart'!$C$34:$Q$34, 0)) -> 4.027
F194: Some activity | G194: ='Physical activity chart'!Q50 -> 0.57 | H194: =INDEX('Physical activity chart'!$C$34:$Q$52, 17, MATCH('Summary By Local Authority'!$H$178, 'Physical activity chart'!$C$34:$Q$34, 0)) -> 2.136
F195: Low activity | G195: ='Physical activity chart'!Q51 -> 0.34 | H195: =INDEX('Physical activity chart'!$C$34:$Q$52, 18, MATCH('Summary By Local Authority'!$H$178, 'Physical activity chart'!$C$34:$Q$34, 0)) -> 1.117
F196: Very low activity | G196: ='Physical activity chart'!Q52 -> 0.8 | H196: =INDEX('Physical activity chart'!$C$34:$Q$52, 19, MATCH('Summary By Local Authority'!$H$178, 'Physical activity chart'!$C$34:$Q$34, 0)) -> 2.669

Sheet Self-assessed general health
A1: Self-assessed general health, by Local Authority and sex | N1: INDEX
A4: Aged 16 and over | B4: PLEASE NOTE: Where the sample size for a Local Authority was below 500, the result has been suppressed. This is shown here by *. | P4: 2013/2014/2015/2016 combined
A5: Self-assessed general health | B5: Local Authority
B6: Aberdeen City | C6: Aberdeenshire | D6: Angus | E6: Argyll & Bute | F6: Clackmannanshire | G6: Dumfries & Galloway | H6: Dundee City | I6: East Ayrshire | J6: East Dunbartonshire | K6: East Lothian | L6: East Renfrewshire | M6: Edinburgh, City of | N6: Falkirk | O6: Fife | P6: Glasgow City | Q6: Highland | R6: Inverclyde | S6: Midlothian | T6: Moray | U6: Na h-Eileanan Siar | V6: North Ayrshire | W6: North Lanarkshire | X6: Orkney Islands | Y6: Perth & Kinross | Z6: Renfrewshire | AA6: Scottish Borders | AB6: Shetland Islands | AC6: South Ayrshire | AD6: South Lanarkshire | AE6: Stirling | AF6: West Dunbartonshire | AG6: West Lothian | AH6: Scotland
B7: % | C7: % | D7: % | E7: % | F7: % | G7: % | H7: % | I7: % | J7: % | K7: % | L7: % | M7: % | N7: % | O7: % | P7: % | Q7: % | R7: % | S7: % | T7: % | U7: % | V7: % | W7: % | X7: % | Y7: % | Z7: % | AA7: % | AB7: % | AC7: % | AD7: % | AE7: % | AF7: % | AG7: % | AH7: %
A8: Men
A9: Very good/good | B9: 77.982 | C9: 78.17 | D9: * | E9: * | F9: * | G9: * | H9: * | I9: 72.156 | J9: * | K9: * | L9: * | M9: 79.33 | N9: * | O9: 72.6 | P9: 69.97 | Q9: 75.962 | R9: * | S9: * | T9: * | U9: 71.558 | V9: 67.551 | W9: 68.95 | X9: 83.034 | Y9: * | Z9: * | AA9: * | AB9: 75.089 | AC9: 73.884 | AD9: 75.32 | AE9: * | AF9: * | AG9: * | AH9: 74.08
A10: Lower CI | B10: 73.809 | C10: 74.07 | D10: * | E10: * | F10: * | G10: * | H10: * | I10: 66.295 | J10: * | K10: * | L10: * | M10: 75.62 | N10: * | O10: 69.44 | P10: 65.8 | Q10: 70.055 | R10: * | S10: * | T10: * | U10: 65.674 | V10: 62.617 | W10: 63.73 | X10: 79.429 | Y10: * | Z10: * | AA10: * | AB10: 69.557 | AC10: 67.822 | AD10: 70.57 | AE10: * | AF10: * | AG10: * | AH10: 72.88
A11: Upper CI | B11: 82.155 | C11: 82.27 | D11: * | E11: * | F11: * | G11: * | H11: * | I11: 78.017 | J11: * | K11: * | L11: * | M11: 83.04 | N11: * | O11: 75.76 | P11: 74.14 | Q11: 81.868 | R11: * | S11: * | T11: * | U11: 77.442 | V11: 72.486 | W11: 74.16 | X11: 86.639 | Y11: * | Z11: * | AA11: * | AB11: 80.621 | AC11: 79.946 | AD11: 80.07 | AE11: * | AF11: * | AG11: * | AH11: 75.29
A12: Fair | B12: 14.156 | C12: 16.96 | D12: * | E12: * | F12: * | G12: * | H12: * | I12: 19.313 | J12: * | K12: * | L12: * | M12: 15.64 | N12: * | O12: 18.51 | P12: 19.43 | Q12: 16.287 | R12: * | S12: * | T12: * | U12: 23.289 | V12: 23.96 | W12: 20.02 | X12: 13.661 | Y12: * | Z12: * | AA12: * | AB12: 17.65 | AC12: 17.419 | AD12: 15.57 | AE12: * | AF12: * | AG12: * | AH12: 17.93
A13: Lower CI | B13: 11.1 | C13: 13.66 | D13: * | E13: * | F13: * | G13: * | H13: * | I13: 14.362 | J13: * | K13: * | L13: * | M13: 12.4 | N13: * | O13: 15.99 | P13: 15.9 | Q13: 11.16 | R13: * | S13: * | T13: * | U13: 17.288 | V13: 19.024 | W13: 15.69 | X13: 9.684 | Y13: * | Z13: * | AA13: * | AB13: 12.594 | AC13: 12.041 | AD13: 12.13 | AE13: * | AF13: * | AG13: * | AH13: 16.93
A14: Upper CI | B14: 17.212 | C14: 20.27 | D14: * | E14: * | F14: * | G14: * | H14: * | I14: 24.264 | J14: * | K14: * | L14: * | M14: 18.88 | N14: * | O14: 21.03 | P14: 22.96 | Q14: 21.413 | R14: * | S14: * | T14: * | U14: 29.29 | V14: 28.896 | W14: 24.34 | X14: 17.638 | Y14: * | Z14: * | AA14: * | AB14: 22.707 | AC14: 22.796 | AD14: 19 | AE14: * | AF14: * | AG14: * | AH14: 18.94
A15: Bad/very bad | B15: 7.862 | C15: 4.87 | D15: * | E15: * | F15: * | G15: * | H15: * | I15: 8.531 | J15: * | K15: * | L15: * | M15: 5.03 | N15: * | O15: 8.89 | P15: 10.59 | Q15: 7.752 | R15: * | S15: * | T15: * | U15: 5.153 | V15: 8.488 | W15: 11.04 | X15: 3.305 | Y15: * | Z15: * | AA15: * | AB15: 7.261 | AC15: 8.697 | AD15: 9.11 | AE15: * | AF15: * | AG15: * | AH15: 7.98
A16: Lower CI | B16: 5.292 | C16: 2.8 | D16: * | E16: * | F16: * | G16: * | H16: * | I16: 4.91 | J16: * | K16: * | L16: * | M16: 3.35 | N16: * | O16: 7.05 | P16: 8.22 | Q16: 3.966 | R16: * | S16: * | T16: * | U16: 2.898 | V16: 5.813 | W16: 7.51 | X16: 1.247 | Y16: * | Z16: * | AA16: * | AB16: 3.509 | AC16: 5.908 | AD16: 5.64 | AE16: * | AF16: * | AG16: * | AH16: 7.29
A17: Upper CI | B17: 10.431 | C17: 6.95 | D17: * | E17: * | F17: * | G17: * | H17: * | I17: 12.152 | J17: * | K17: * | L17: * | M17: 6.71 | N17: * | O17: 10.74 | P17: 12.97 | Q17: 11.538 | R17: * | S17: * | T17: * | U17: 7.407 | V17: 11.164 | W17: 14.57 | X17: 5.364 | Y17: * | Z17: * | AA17: * | AB17: 11.012 | AC17: 11.487 | AD17: 12.59 | AE17: * | AF17: * | AG17: * | AH17: 8.67
A19: Women
A20: Very good/good | B20: 75.874 | C20: 80.32 | D20: * | E20: * | F20: * | G20: * | H20: * | I20: 67.663 | J20: * | K20: * | L20: * | M20: 81.24 | N20: * | O20: 70.59 | P20: 65.65 | Q20: 75.987 | R20: * | S20: * | T20: * | U20: 73.831 | V20: 65.378 | W20: 70.42 | X20: 82.483 | Y20: * | Z20: * | AA20: * | AB20: 76.598 | AC20: 73.641 | AD20: 75.4 | AE20: * | AF20: * | AG20: * | AH20: 73.49
A21: Lower CI | B21: 71.521 | C21: 77.17 | D21: * | E21: * | F21: * | G21: * | H21: * | I21: 62.303 | J21: * | K21: * | L21: * | M21: 78.39 | N21: * | O21: 67.81 | P21: 61.93 | Q21: 70.534 | R21: * | S21: * | T21: * | U21: 70.032 | V21: 59.116 | W21: 65.73 | X21: 77.179 | Y21: * | Z21: * | AA21: * | AB21: 70.945 | AC21: 69.873 | AD21: 70.87 | AE21: * | AF21: * | AG21: * | AH21: 72.46
A22: Upper CI | B22: 80.226 | C22: 83.47 | D22: * | E22: * | F22: * | G22: * | H22: * | I22: 73.024 | J22: * | K22: * | L22: * | M22: 84.09 | N22: * | O22: 73.38 | P22: 69.36 | Q22: 81.44 | R22: * | S22: * | T22: * | U22: 77.63 | V22: 71.64 | W22: 75.11 | X22: 87.787 | Y22: * | Z22: * | AA22: * | AB22: 82.251 | AC22: 77.41 | AD22: 79.92 | AE22: * | AF22: * | AG22: * | AH22: 74.53
A23: Fair | B23: 18.22 | C23: 15.15 | D23: * | E23: * | F23: * | G23: * | H23: * | I23: 19.92 | J23: * | K23: * | L23: * | M23: 14.54 | N23: * | O23: 20.49 | P23: 21.67 | Q23: 17.14 | R23: * | S23: * | T23: * | U23: 19.481 | V23: 23.062 | W23: 18.71 | X23: 12.616 | Y23: * | Z23: * | AA23: * | AB23: 16.419 | AC23: 15.867 | AD23: 18.47 | AE23: * | AF23: * | AG23: * | AH23: 18
A24: Lower CI | B24: 14.054 | C24: 12.27 | D24: * | E24: * | F24: * | G24: * | H24: * | I24: 15.66 | J24: * | K24: * | L24: * | M24: 11.85 | N24: * | O24: 18.04 | P24: 18.95 | Q24: 12.315 | R24: * | S24: * | T24: * | U24: 15.564 | V24: 17.905 | W24: 14.98 | X24: 8.941 | Y24: * | Z24: * | AA24: * | AB24: 11.203 | AC24: 12.764 | AD24: 14.77 | AE24: * | AF24: * | AG24: * | AH24: 17.15
A25: Upper CI | B25: 22.386 | C25: 18.04 | D25: * | E25: * | F25: * | G25: * | H25: * | I25: 24.18 | J25: * | K25: * | L25: * | M25: 17.22 | N25: * | O25: 22.95 | P25: 24.39 | Q25: 21.966 | R25: * | S25: * | T25: * | U25: 23.397 | V25: 28.22 | W25: 22.44 | X25: 16.291 | Y25: * | Z25: * | AA25: * | AB25: 21.635 | AC25: 18.971 | AD25: 22.18 | AE25: * | AF25: * | AG25: * | AH25: 18.85
A26: Bad/very bad | B26: 5.906 | C26: 4.53 | D26: * | E26: * | F26: * | G26: * | H26: * | I26: 12.417 | J26: * | K26: * | L26: * | M26: 4.22 | N26: * | O26: 8.91 | P26: 12.68 | Q26: 6.873 | R26: * | S26: * | T26: * | U26: 6.689 | V26: 11.56 | W26: 10.87 | X26: 4.901 | Y26: * | Z26: * | AA26: * | AB26: 6.983 | AC26: 10.492 | AD26: 6.13 | AE26: * | AF26: * | AG26: * | AH26: 8.5
A27: Lower CI | B27: 3.822 | C27: 2.92 | D27: * | E27: * | F27: * | G27: * | H27: * | I27: 9.312 | J27: * | K27: * | L27: * | M27: 2.86 | N27: * | O27: 7.32 | P27: 10.18 | Q27: 3.968 | R27: * | S27: * | T27: * | U27: 4.513 | V27: 8.579 | W27: 7.98 | X27: 2.099 | Y27: * | Z27: * | AA27: * | AB27: 4.009 | AC27: 7.3 | AD27: 3.77 | AE27: * | AF27: * | AG27: * | AH27: 7.87
A28: Upper CI | B28: 7.99 | C28: 6.14 | D28: * | E28: * | F28: * | G28: * | H28: * | I28: 15.521 | J28: * | K28: * | L28: * | M28: 5.59 | N28: * | O28: 10.51 | P28: 15.18 | Q28: 9.777 | R28: * | S28: * | T28: * | U28: 8.864 | V28: 14.541 | W28: 13.75 | X28: 7.703 | Y28: * | Z28: * | AA28: * | AB28: 9.958 | AC28: 13.683 | AD28: 8.49 | AE28: * | AF28: * | AG28: * | AH28: 9.14
A30: All Adults
A31: Very good/good | B31: 76.872 | C31: 79.27 | D31: * | E31: * | F31: * | G31: * | H31: * | I31: 69.7 | J31: * | K31: * | L31: * | M31: 80.25 | N31: * | O31: 71.56 | P31: 67.69 | Q31: 75.975 | R31: * | S31: * | T31: * | U31: 72.695 | V31: 66.411 | W31: 69.74 | X31: 82.757 | Y31: * | Z31: * | AA31: * | AB31: 75.82 | AC31: 73.751 | AD31: 75.36 | AE31: * | AF31: * | AG31: * | AH31: 73.78
A32: Lower CI | B32: 73.218 | C32: 76.32 | D32: * | E32: * | F32: * | G32: * | H32: * | I32: 64.694 | J32: * | K32: * | L32: * | M32: 77.62 | N32: * | O32: 69.29 | P32: 64.58 | Q32: 71.17 | R32: * | S32: * | T32: * | U32: 68.811 | V32: 61.896 | W32: 66.19 | X32: 79.182 | Y32: * | Z32: * | AA32: * | AB32: 71.655 | AC32: 70.072 | AD32: 71.93 | AE32: * | AF32: * | AG32: * | AH32: 72.9
A33: Upper CI | B33: 80.526 | C33: 82.23 | D33: * | E33: * | F33: * | G33: * | H33: * | I33: 74.706 | J33: * | K33: * | L33: * | M33: 82.88 | N33: * | O33: 73.84 | P33: 70.8 | Q33: 80.78 | R33: * | S33: * | T33: * | U33: 76.58 | V33: 70.925 | W33: 73.29 | X33: 86.333 | Y33: * | Z33: * | AA33: * | AB33: 79.985 | AC33: 77.429 | AD33: 78.79 | AE33: * | AF33: * | AG33: * | AH33: 74.66
A34: Fair | B34: 16.295 | C34: 16.03 | D34: * | E34: * | F34: * | G34: * | H34: * | I34: 19.645 | J34: * | K34: * | L34: * | M34: 15.11 | N34: * | O34: 19.54 | P34: 20.62 | Q34: 16.742 | R34: * | S34: * | T34: * | U34: 21.383 | V34: 23.489 | W34: 19.32 | X34: 13.137 | Y34: * | Z34: * | AA34: * | AB34: 17.054 | AC34: 16.566 | AD34: 17.06 | AE34: * | AF34: * | AG34: * | AH34: 17.97
A35: Lower CI | B35: 13.266 | C35: 13.73 | D35: * | E35: * | F35: * | G35: * | H35: * | I35: 15.854 | J35: * | K35: * | L35: * | M35: 12.89 | N35: * | O35: 17.81 | P35: 18.32 | Q35: 12.653 | R35: * | S35: * | T35: * | U35: 17.288 | V35: 19.311 | W35: 16.54 | X35: 10.061 | Y35: * | Z35: * | AA35: * | AB35: 13.159 | AC35: 13.132 | AD35: 14.35 | AE35: * | AF35: * | AG35: * | AH35: 17.28
A36: Upper CI | B36: 19.324 | C36: 18.33 | D36: * | E36: * | F36: * | G36: * | H36: * | I36: 23.436 | J36: * | K36: * | L36: * | M36: 17.33 | N36: * | O36: 21.27 | P36: 22.91 | Q36: 20.83 | R36: * | S36: * | T36: * | U36: 25.479 | V36: 27.667 | W36: 22.09 | X36: 16.213 | Y36: * | Z36: * | AA36: * | AB36: 20.949 | AC36: 20 | AD36: 19.78 | AE36: * | AF36: * | AG36: * | AH36: 18.65
A37: Bad/very bad | B37: 6.833 | C37: 4.7 | D37: * | E37: * | F37: * | G37: * | H37: * | I37: 10.655 | J37: * | K37: * | L37: * | M37: 4.64 | N37: * | O37: 8.9 | P37: 11.7 | Q37: 7.283 | R37: * | S37: * | T37: * | U37: 5.921 | V37: 10.1 | W37: 10.95 | X37: 4.106 | Y37: * | Z37: * | AA37: * | AB37: 7.126 | AC37: 9.684 | AD37: 7.58 | AE37: * | AF37: * | AG37: * | AH37: 8.25
A38: Lower CI | B38: 5.211 | C38: 3.18 | D38: * | E38: * | F38: * | G38: * | H38: * | I38: 8.235 | J38: * | K38: * | L38: * | M38: 3.5 | N38: * | O38: 7.54 | P38: 9.83 | Q38: 4.737 | R38: * | S38: * | T38: * | U38: 4.254 | V38: 7.999 | W38: 8.48 | X38: 2.31 | Y38: * | Z38: * | AA38: * | AB38: 4.489 | AC38: 7.523 | AD38: 5.5 | AE38: * | AF38: * | AG38: * | AH38: 7.75
A39: Upper CI | B39: 8.455 | C39: 6.21 | D39: * | E39: * | F39: * | G39: * | H39: * | I39: 13.076 | J39: * | K39: * | L39: * | M39: 5.78 | N39: * | O39: 10.27 | P39: 13.57 | Q39: 9.829 | R39: * | S39: * | T39: * | U39: 7.588 | V39: 12.202 | W39: 13.42 | X39: 5.901 | Y39: * | Z39: * | AA39: * | AB39: 9.763 | AC39: 11.844 | AD39: 9.66 | AE39: * | AF39: * | AG39: * | AH39: 8.76
A42: Bases (weighted):
A43: Men | B43: 364.433 | C43: 441.84 | D43: 192.61 | E43: 165.798 | F43: 76.663 | G43: 262.106 | H43: 260.443 | I43: 202.578 | J43: 196.393 | K43: 177.209 | L43: 143.898 | M43: 915.54 | N43: 267.752 | O43: 619.88 | P43: 968.27 | Q43: 375.657 | R43: 129.299 | S43: 111.713 | T43: 172.206 | U43: 48.446 | V43: 228.688 | W43: 609.26 | X43: 38.805 | Y43: 225.547 | Z43: 262.11 | AA43: 183.856 | AB43: 41.939 | AC43: 174.858 | AD43: 584.15 | AE43: 155.993 | AF43: 134.177 | AG43: 330.149 | AH43: 9062.26
A44: Women | B44: 404.93 | C44: 470 | D44: 214.28 | E44: 157.802 | F44: 87.908 | G44: 275.466 | H44: 283.567 | I44: 244.375 | J44: 190.557 | K44: 197.648 | L44: 160.611 | M44: 850.16 | N44: 272.99 | O44: 662.81 | P44: 1084.09 | Q44: 429.052 | R44: 145.267 | S44: 137.367 | T44: 204.394 | U44: 48.518 | V44: 252.573 | W44: 700.46 | X44: 39.048 | Y44: 273.349 | Z44: 257.548 | AA44: 222.276 | AB44: 39.383 | AC44: 213.403 | AD44: 618.9 | AE44: 192.86 | AF44: 159.316 | AG44: 311.158 | AH44: 9802.07
A45: All Adults | B45: 769.362 | C45: 911.85 | D45: 406.89 | E45: 323.6 | F45: 164.571 | G45: 537.572 | H45: 544.01 | I45: 446.953 | J45: 386.95 | K45: 374.856 | L45: 304.509 | M45: 1765.7 | N45: 540.742 | O45: 1282.69 | P45: 2052.35 | Q45: 804.708 | R45: 274.566 | S45: 249.081 | T45: 376.6 | U45: 96.964 | V45: 481.261 | W45: 1309.72 | X45: 77.853 | Y45: 498.896 | Z45: 519.658 | AA45: 406.133 | AB45: 81.322 | AC45: 388.261 | AD45: 1203.05 | AE45: 348.853 | AF45: 293.493 | AG45: 641.307 | AH45: 18864.34
A46: Bases (unweighted)
A47: Men | B47: 426 | C47: 517 | D47: 134 | E47: 116 | F47: 48 | G47: 221 | H47: 159 | I47: 318 | J47: 150 | K47: 104 | L47: 114 | M47: 590 | N47: 160 | O47: 902 | P47: 656 | Q47: 239 | R47: 98 | S47: 71 | T47: 191 | U47: 387 | V47: 344 | W47: 343 | X47: 234 | Y47: 178 | Z47: 186 | AA47: 199 | AB47: 247 | AC47: 286 | AD47: 356 | AE47: 100 | AF47: 98 | AG47: 172 | AH47: 8344
A48: Women | B48: 541 | C48: 624 | D48: 163 | E48: 136 | F48: 66 | G48: 258 | H48: 193 | I48: 414 | J48: 179 | K48: 128 | L48: 145 | M48: 662 | N48: 197 | O48: 1141 | P48: 895 | Q48: 327 | R48: 128 | S48: 103 | T48: 264 | U48: 461 | V48: 418 | W48: 476 | X48: 271 | Y48: 234 | Z48: 212 | AA48: 278 | AB48: 277 | AC48: 376 | AD48: 459 | AE48: 149 | AF48: 133 | AG48: 212 | AH48: 10520
A49: All Adults | B49: 967 | C49: 1141 | D49: 297 | E49: 252 | F49: 114 | G49: 479 | H49: 352 | I49: 732 | J49: 329 | K49: 232 | L49: 259 | M49: 1252 | N49: 357 | O49: 2043 | P49: 1551 | Q49: 566 | R49: 226 | S49: 174 | T49: 455 | U49: 848 | V49: 762 | W49: 819 | X49: 505 | Y49: 412 | Z49: 398 | AA49: 477 | AB49: 524 | AC49: 662 | AD49: 815 | AE49: 249 | AF49: 231 | AG49: 384 | AH49: 18864

Sheet SAH chart
R1: INDEX
C31: Source: Scottish Health Survey
C34: Aberdeen City | D34: Aberdeenshire | E34: East Ayrshire | F34: Edinburgh, City of | G34: Fife | H34: Glasgow City | I34: Highland | J34: Na h-Eileanan Siar | K34: North Ayrshire | L34: North Lanarkshire | M34: Orkney Islands | N34: Shetland Islands | O34: South Ayrshire | P34: South Lanarkshire | R34: Scotland
B35: All Adults
B36: Very good/good | C36: ='Self-assessed general health'!B31 -> 76.872 | D36: ='Self-assessed general health'!C31 -> 79.27 | E36: ='Self-assessed general health'!I31 -> 69.7 | F36: ='Self-assessed general health'!M31 -> 80.25 | G36: ='Self-assessed general health'!O31 -> 71.56 | H36: ='Self-assessed general health'!P31 -> 67.69 | I36: ='Self-assessed general health'!Q31 -> 75.975 | J36: ='Self-assessed general health'!U31 -> 72.695 | K36: ='Self-assessed general health'!V31 -> 66.411 | L36: ='Self-assessed general health'!W31 -> 69.74 | M36: ='Self-assessed general health'!X31 -> 82.757 | N36: ='Self-assessed general health'!AB31 -> 75.82 | O36: ='Self-assessed general health'!AC31 -> 73.751 | P36: ='Self-assessed general health'!AD31 -> 75.36 | R36: ='Self-assessed general health'!AH31 -> 73.78
B37: Lower CI | C37: ='Self-assessed general health'!B32 -> 73.218 | D37: ='Self-assessed general health'!C32 -> 76.32 | E37: ='Self-assessed general health'!I32 -> 64.694 | F37: ='Self-assessed general health'!M32 -> 77.62 | G37: ='Self-assessed general health'!O32 -> 69.29 | H37: ='Self-assessed general health'!P32 -> 64.58 | I37: ='Self-assessed general health'!Q32 -> 71.17 | J37: ='Self-assessed general health'!U32 -> 68.811 | K37: ='Self-assessed general health'!V32 -> 61.896 | L37: ='Self-assessed general health'!W32 -> 66.19 | M37: ='Self-assessed general health'!X32 -> 79.182 | N37: ='Self-assessed general health'!AB32 -> 71.655 | O37: ='Self-assessed general health'!AC32 -> 70.072 | P37: ='Self-assessed general health'!AD32 -> 71.93 | R37: ='Self-assessed general health'!AH32 -> 72.9
B38: Upper CI | C38: ='Self-assessed general health'!B33 -> 80.526 | D38: ='Self-assessed general health'!C33 -> 82.23 | E38: ='Self-assessed general health'!I33 -> 74.706 | F38: ='Self-assessed general health'!M33 -> 82.88 | G38: ='Self-assessed general health'!O33 -> 73.84 | H38: ='Self-assessed general health'!P33 -> 70.8 | I38: ='Self-assessed general health'!Q33 -> 80.78 | J38: ='Self-assessed general health'!U33 -> 76.58 | K38: ='Self-assessed general health'!V33 -> 70.925 | L38: ='Self-assessed general health'!W33 -> 73.29 | M38: ='Self-assessed general health'!X33 -> 86.333 | N38: ='Self-assessed general health'!AB33 -> 79.985 | O38: ='Self-assessed general health'!AC33 -> 77.429 | P38: ='Self-assessed general health'!AD33 -> 78.79 | R38: ='Self-assessed general health'!AH33 -> 74.66
B39: Fair | C39: ='Self-assessed general health'!B34 -> 16.295 | D39: ='Self-assessed general health'!C34 -> 16.03 | E39: ='Self-assessed general health'!I34 -> 19.645 | F39: ='Self-assessed general health'!M34 -> 15.11 | G39: ='Self-assessed general health'!O34 -> 19.54 | H39: ='Self-assessed general health'!P34 -> 20.62 | I39: ='Self-assessed general health'!Q34 -> 16.742 | J39: ='Self-assessed general health'!U34 -> 21.383 | K39: ='Self-assessed general health'!V34 -> 23.489 | L39: ='Self-assessed general health'!W34 -> 19.32 | M39: ='Self-assessed general health'!X34 -> 13.137 | N39: ='Self-assessed general health'!AB34 -> 17.054 | O39: ='Self-assessed general health'!AC34 -> 16.566 | P39: ='Self-assessed general health'!AD34 -> 17.06 | R39: ='Self-assessed general health'!AH34 -> 17.97
B40: Lower CI | C40: ='Self-assessed general health'!B35 -> 13.266 | D40: ='Self-assessed general health'!C35 -> 13.73 | E40: ='Self-assessed general health'!I35 -> 15.854 | F40: ='Self-assessed general health'!M35 -> 12.89 | G40: ='Self-assessed general health'!O35 -> 17.81 | H40: ='Self-assessed general health'!P35 -> 18.32 | I40: ='Self-assessed general health'!Q35 -> 12.653 | J40: ='Self-assessed general health'!U35 -> 17.288 | K40: ='Self-assessed general health'!V35 -> 19.311 | L40: ='Self-assessed general health'!W35 -> 16.54 | M40: ='Self-assessed general health'!X35 -> 10.061 | N40: ='Self-assessed general health'!AB35 -> 13.159 | O40: ='Self-assessed general health'!AC35 -> 13.132 | P40: ='Self-assessed general health'!AD35 -> 14.35 | R40: ='Self-assessed general health'!AH35 -> 17.28
B41: Upper CI | C41: ='Self-assessed general health'!B36 -> 19.324 | D41: ='Self-assessed general health'!C36 -> 18.33 | E41: ='Self-assessed general health'!I36 -> 23.436 | F41: ='Self-assessed general health'!M36 -> 17.33 | G41: ='Self-assessed general health'!O36 -> 21.27 | H41: ='Self-assessed general health'!P36 -> 22.91 | I41: ='Self-assessed general health'!Q36 -> 20.83 | J41: ='Self-assessed general health'!U36 -> 25.479 | K41: ='Self-assessed general health'!V36 -> 27.667 | L41: ='Self-assessed general health'!W36 -> 22.09 | M41: ='Self-assessed general health'!X36 -> 16.213 | N41: ='Self-assessed general health'!AB36 -> 20.949 | O41: ='Self-assessed general health'!AC36 -> 20 | P41: ='Self-assessed general health'!AD36 -> 19.78 | R41: ='Self-assessed general health'!AH36 -> 18.65
B42: Bad/very bad | C42: ='Self-assessed general health'!B37 -> 6.833 | D42: ='Self-assessed general health'!C37 -> 4.7 | E42: ='Self-assessed general health'!I37 -> 10.655 | F42: ='Self-assessed general health'!M37 -> 4.64 | G42: ='Self-assessed general health'!O37 -> 8.9 | H42: ='Self-assessed general health'!P37 -> 11.7 | I42: ='Self-assessed general health'!Q37 -> 7.283 | J42: ='Self-assessed general health'!U37 -> 5.921 | K42: ='Self-assessed general health'!V37 -> 10.1 | L42: ='Self-assessed general health'!W37 -> 10.95 | M42: ='Self-assessed general health'!X37 -> 4.106 | N42: ='Self-assessed general health'!AB37 -> 7.126 | O42: ='Self-assessed general health'!AC37 -> 9.684 | P42: ='Self-assessed general health'!AD37 -> 7.58 | R42: ='Self-assessed general health'!AH37 -> 8.25
B43: Lower CI | C43: ='Self-assessed general health'!B38 -> 5.211 | D43: ='Self-assessed general health'!C38 -> 3.18 | E43: ='Self-assessed general health'!I38 -> 8.235 | F43: ='Self-assessed general health'!M38 -> 3.5 | G43: ='Self-assessed general health'!O38 -> 7.54 | H43: ='Self-assessed general health'!P38 -> 9.83 | I43: ='Self-assessed general health'!Q38 -> 4.737 | J43: ='Self-assessed general health'!U38 -> 4.254 | K43: ='Self-assessed general health'!V38 -> 7.999 | L43: ='Self-assessed general health'!W38 -> 8.48 | M43: ='Self-assessed general health'!X38 -> 2.31 | N43: ='Self-assessed general health'!AB38 -> 4.489 | O43: ='Self-assessed general health'!AC38 -> 7.523 | P43: ='Self-assessed general health'!AD38 -> 5.5 | R43: ='Self-assessed general health'!AH38 -> 7.75
B44: Upper CI | C44: ='Self-assessed general health'!B39 -> 8.455 | D44: ='Self-assessed general health'!C39 -> 6.21 | E44: ='Self-assessed general health'!I39 -> 13.076 | F44: ='Self-assessed general health'!M39 -> 5.78 | G44: ='Self-assessed general health'!O39 -> 10.27 | H44: ='Self-assessed general health'!P39 -> 13.57 | I44: ='Self-assessed general health'!Q39 -> 9.829 | J44: ='Self-assessed general health'!U39 -> 7.588 | K44: ='Self-assessed general health'!V39 -> 12.202 | L44: ='Self-assessed general health'!W39 -> 13.42 | M44: ='Self-assessed general health'!X39 -> 5.901 | N44: ='Self-assessed general health'!AB39 -> 9.763 | O44: ='Self-assessed general health'!AC39 -> 11.844 | P44: ='Self-assessed general health'!AD39 -> 9.66 | R44: ='Self-assessed general health'!AH39 -> 8.76
A46: CLs | B46: Very good | C46: =C36-C37 -> 3.654 | D46: 2.95 | E46: =E36-E37 -> 5.006 | F46: =F36-F37 -> 2.63 | G46: =G36-G37 -> 2.27 | H46: =H36-H37 -> 3.11 | I46: 4.805 | J46: 3.884 | K46: 4.515 | L46: 3.55 | M46: 3.575 | N46: 4.165 | O46: 3.679 | P46: 3.43 | R46: =R36-R37 -> 0.88
B47: Fair | C47: =C39-C40 -> 3.029 | D47: 2.3 | E47: =E39-E40 -> 3.791 | F47: =F39-F40 -> 2.22 | G47: =G39-G40 -> 1.73 | H47: =H39-H40 -> 2.3 | I47: 4.089 | J47: 4.095 | K47: 4.178 | L47: 2.78 | M47: 3.076 | N47: 3.895 | O47: 3.434 | P47: 2.71 | R47: =R39-R40 -> 0.69
B48: Bad/ very bad | C48: =C42-C43 -> 1.622 | D48: 1.52 | E48: =E42-E43 -> 2.42 | F48: =F42-F43 -> 1.14 | G48: =G42-G43 -> 1.36 | H48: =H42-H43 -> 1.87 | I48: 2.546 | J48: 1.667 | K48: 2.101 | L48: 2.47 | M48: 1.796 | N48: 2.637 | O48: 2.161 | P48: 2.08 | R48: =R42-R43 -> 0.5

Sheet WEMWBS
A1: WEMWBS mean scores, by Local Authority and sex | N1: INDEX
A4: Aged 16 and over | B4: PLEASE NOTE: Where the sample size for a Local Authority was below 500, the result has been suppressed. This is shown here by *. | P4: 2013/2014/2015/2016 combined
A5: WEMWBS score | B5: Local Authority
B6: Aberdeen City | C6: Aberdeenshire | D6: Angus | E6: Argyll & Bute | F6: Clackmannanshire | G6: Dumfries & Galloway | H6: Dundee City | I6: East Ayrshire | J6: East Dunbartonshire | K6: East Lothian | L6: East Renfrewshire | M6: Edinburgh, City of | N6: Falkirk | O6: Fife | P6: Glasgow City | Q6: Highland | R6: Inverclyde | S6: Midlothian | T6: Moray | U6: Na h-Eileanan Siar | V6: North Ayrshire | W6: North Lanarkshire | X6: Orkney Islands | Y6: Perth & Kinross | Z6: Renfrewshire | AA6: Scottish Borders | AB6: Shetland Islands | AC6: South Ayrshire | AD6: South Lanarkshire | AE6: Stirling | AF6: West Dunbartonshire | AG6: West Lothian | AH6: Scotland
A7: Men
A8: Mean | B8: 50.725 | C8: 51.09 | D8: * | E8: * | F8: * | G8: * | H8: * | I8: 50.14 | J8: * | K8: * | L8: * | M8: 49.73 | N8: * | O8: 50.18 | P8: 48.96 | Q8: 50.585 | R8: * | S8: * | T8: * | U8: 51.275 | V8: 48.558 | W8: 50.45 | X8: * | Y8: * | Z8: * | AA8: * | AB8: * | AC8: 50.071 | AD8: 49.75 | AE8: * | AF8: * | AG8: * | AH8: 50.05
A9: Lower CI | B9: 49.925 | C9: 50.26 | D9: * | E9: * | F9: * | G9: * | H9: * | I9: 49.113 | J9: * | K9: * | L9: * | M9: 48.71 | N9: * | O9: 49.44 | P9: 48.14 | Q9: 49.482 | R9: * | S9: * | T9: * | U9: 50.279 | V9: 47.54 | W9: 49.29 | X9: * | Y9: * | Z9: * | AA9: * | AB9: * | AC9: 48.969 | AD9: 48.74 | AE9: * | AF9: * | AG9: * | AH9: 49.82
A10: Upper CI | B10: 51.525 | C10: 51.93 | D10: * | E10: * | F10: * | G10: * | H10: * | I10: 51.167 | J10: * | K10: * | L10: * | M10: 50.75 | N10: * | O10: 50.92 | P10: 49.78 | Q10: 51.687 | R10: * | S10: * | T10: * | U10: 52.271 | V10: 49.575 | W10: 51.61 | X10: * | Y10: * | Z10: * | AA10: * | AB10: * | AC10: 51.172 | AD10: 50.76 | AE10: * | AF10: * | AG10: * | AH10: 50.28
A12: Women
A13: Mean | B13: 50.61 | C13: 50.85 | D13: * | E13: * | F13: * | G13: * | H13: * | I13: 49.025 | J13: * | K13: * | L13: * | M13: 50.95 | N13: * | O13: 49.57 | P13: 47.87 | Q13: 51.346 | R13: * | S13: * | T13: * | U13: 51.057 | V13: 48.122 | W13: 49.89 | X13: * | Y13: * | Z13: * | AA13: * | AB13: * | AC13: 49.686 | AD13: 49.94 | AE13: * | AF13: * | AG13: * | AH13: 49.85
A14: Lower CI | B14: 49.832 | C14: 50.02 | D14: * | E14: * | F14: * | G14: * | H14: * | I14: 48.088 | J14: * | K14: * | L14: * | M14: 50.21 | N14: * | O14: 49.05 | P14: 47.12 | Q14: 50.428 | R14: * | S14: * | T14: * | U14: 50.056 | V14: 47.086 | W14: 48.99 | X14: * | Y14: * | Z14: * | AA14: * | AB14: * | AC14: 48.718 | AD14: 48.87 | AE14: * | AF14: * | AG14: * | AH14: 49.62
A15: Upper CI | B15: 51.389 | C15: 51.68 | D15: * | E15: * | F15: * | G15: * | H15: * | I15: 49.962 | J15: * | K15: * | L15: * | M15: 51.68 | N15: * | O15: 50.09 | P15: 48.63 | Q15: 52.263 | R15: * | S15: * | T15: * | U15: 52.057 | V15: 49.159 | W15: 50.79 | X15: * | Y15: * | Z15: * | AA15: * | AB15: * | AC15: 50.653 | AD15: 51.01 | AE15: * | AF15: * | AG15: * | AH15: 50.07
A17: All adults
A18: Mean | B18: 50.665 | C18: 50.97 | D18: * | E18: * | F18: * | G18: * | H18: * | I18: 49.521 | J18: * | K18: * | L18: * | M18: 50.32 | N18: * | O18: 49.86 | P18: 48.38 | Q18: 50.99 | R18: * | S18: * | T18: * | U18: 51.165 | V18: 48.327 | W18: 50.15 | X18: * | Y18: * | Z18: * | AA18: * | AB18: * | AC18: 49.858 | AD18: 49.85 | AE18: * | AF18: * | AG18: * | AH18: 49.94
A19: Lower CI | B19: 50.06 | C19: 50.25 | D19: * | E19: * | F19: * | G19: * | H19: * | I19: 48.762 | J19: * | K19: * | L19: * | M19: 49.65 | N19: * | O19: 49.4 | P19: 47.8 | Q19: 50.209 | R19: * | S19: * | T19: * | U19: 50.359 | V19: 47.543 | W19: 49.4 | X19: * | Y19: * | Z19: * | AA19: * | AB19: * | AC19: 49.011 | AD19: 49.03 | AE19: * | AF19: * | AG19: * | AH19: 49.76
A20: Upper CI | B20: 51.27 | C20: 51.69 | D20: * | E20: * | F20: * | G20: * | H20: * | I20: 50.28 | J20: * | K20: * | L20: * | M20: 51 | N20: * | O20: 50.33 | P20: 48.97 | Q20: 51.77 | R20: * | S20: * | T20: * | U20: 51.971 | V20: 49.11 | W20: 50.89 | X20: * | Y20: * | Z20: * | AA20: * | AB20: * | AC20: 50.704 | AD20: 50.67 | AE20: * | AF20: * | AG20: * | AH20: 50.12
A22: Bases (weighted):
A23: Men | B23: 335.832 | C23: 405.62 | D23: 188.358 | E23: 148.292 | F23: 70.434 | G23: 220.908 | H23: 236.575 | I23: 189.2 | J23: 166.825 | K23: 166.831 | L23: 122.496 | M23: 814.34 | N23: 223.627 | O23: 558.79 | P23: 846.76 | Q23: 338.235 | R23: 111.051 | S23: 100.834 | T23: 148.761 | U23: 40.122 | V23: 209.033 | W23: 524 | X23: 37.117 | Y23: 208.246 | Z23: 237.68 | AA23: 164.18 | AB23: 37.027 | AC23: 166.253 | AD23: 520.4 | AE23: 147.882 | AF23: 124.322 | AG23: 276.721 | AH23: 8086.76
A24: Women | B24: 367.348 | C24: 443.35 | D24: 206.385 | E24: 141.452 | F24: 77.424 | G24: 242.183 | H24: 267.295 | I24: 236.3 | J24: 161.826 | K24: 183.696 | L24: 142.627 | M24: 780.85 | N24: 247.956 | O24: 603.93 | P24: 952.38 | Q24: 384.489 | R24: 126.44 | S24: 129.136 | T24: 184.25 | U24: 40.694 | V24: 236.712 | W24: 616.06 | X24: 37.81 | Y24: 257.976 | Z24: 223.343 | AA24: 197.129 | AB24: 36.037 | AC24: 205.962 | AD24: 547.13 | AE24: 178.585 | AF24: 149.857 | AG24: 287.999 | AH24: 8894.62
A25: All Adults | B25: 703.18 | C25: 848.98 | D25: 394.743 | E25: 289.744 | F25: 147.858 | G25: 463.09 | H25: 503.87 | I25: 425.5 | J25: 328.651 | K25: 350.527 | L25: 265.123 | M25: 1595.19 | N25: 471.583 | O25: 1162.72 | P25: 1799.14 | Q25: 722.724 | R25: 237.491 | S25: 229.97 | T25: 333.012 | U25: 80.816 | V25: 445.745 | W25: 1140.07 | X25: 74.927 | Y25: 466.222 | Z25: 461.023 | AA25: 361.309 | AB25: 73.064 | AC25: 372.215 | AD25: 1067.53 | AE25: 326.467 | AF25: 274.178 | AG25: 564.72 | AH25: 16981.38
A26: Bases (unweighted)
A27: Men | B27: 388 | C27: 478 | D27: 131 | E27: 103 | F27: 44 | G27: 186 | H27: 146 | I27: 299 | J27: 132 | K27: 96 | L27: 95 | M27: 526 | N27: 137 | O27: 810 | P27: 570 | Q27: 213 | R27: 84 | S27: 64 | T27: 164 | U27: 326 | V27: 313 | W27: 297 | X27: 224 | Y27: 164 | Z27: 165 | AA27: 178 | AB27: 216 | AC27: 269 | AD27: 312 | AE27: 93 | AF27: 90 | AG27: 145 | AH27: 7458
A28: Women | B28: 488 | C28: 588 | D28: 157 | E28: 124 | F28: 58 | G28: 225 | H28: 184 | I28: 399 | J28: 154 | K28: 120 | L28: 128 | M28: 611 | N28: 180 | O28: 1042 | P28: 779 | Q28: 290 | R28: 113 | S28: 97 | T28: 237 | U28: 401 | V28: 390 | W28: 421 | X28: 262 | Y28: 222 | Z28: 183 | AA28: 246 | AB28: 250 | AC28: 362 | AD28: 404 | AE28: 138 | AF28: 125 | AG28: 196 | AH28: 9574
A29: All Adults | B29: 876 | C29: 1066 | D29: 288 | E29: 227 | F29: 102 | G29: 411 | H29: 330 | I29: 698 | J29: 286 | K29: 216 | L29: 223 | M29: 1137 | N29: 317 | O29: 1852 | P29: 1349 | Q29: 503 | R29: 197 | S29: 161 | T29: 401 | U29: 727 | V29: 703 | W29: 718 | X29: 486 | Y29: 386 | Z29: 348 | AA29: 424 | AB29: 466 | AC29: 631 | AD29: 716 | AE29: 231 | AF29: 215 | AG29: 341 | AH29: 17032

Sheet WEMWBS chart
R1: INDEX
C31: Source: Scottish Health Survey
C34: Aberdeen City | D34: Aberdeenshire | E34: East Ayrshire | F34: Edinburgh, City of | G34: Fife | H34: Glasgow City | I34: Highland | J34: Na h-Eileanan Siar | K34: North Ayrshire | L34: North Lanarkshire | M34: South Ayrshire | N34: South Lanarkshire | P34: Scotland
B35: All Adults
B36: Mean | C36: =WEMWBS!B18 -> 50.665 | D36: =WEMWBS!C18 -> 50.97 | E36: =WEMWBS!I18 -> 49.521 | F36: =WEMWBS!M18 -> 50.32 | G36: =WEMWBS!O18 -> 49.86 | H36: =WEMWBS!P18 -> 48.38 | I36: =WEMWBS!Q18 -> 50.99 | J36: =WEMWBS!U18 -> 51.165 | K36: =WEMWBS!V18 -> 48.327 | L36: =WEMWBS!W18 -> 50.15 | M36: =WEMWBS!AC18 -> 49.858 | N36: =WEMWBS!AD18 -> 49.85 | P36: =WEMWBS!AH18 -> 49.94
B37: Lower CI | C37: =WEMWBS!B19 -> 50.06 | D37: =WEMWBS!C19 -> 50.25 | E37: =WEMWBS!I19 -> 48.762 | F37: =WEMWBS!M19 -> 49.65 | G37: =WEMWBS!O19 -> 49.4 | H37: =WEMWBS!P19 -> 47.8 | I37: =WEMWBS!Q19 -> 50.209 | J37: =WEMWBS!U19 -> 50.359 | K37: =WEMWBS!V19 -> 47.543 | L37: =WEMWBS!W19 -> 49.4 | M37: =WEMWBS!AC19 -> 49.011 | N37: =WEMWBS!AD19 -> 49.03 | P37: =WEMWBS!AH19 -> 49.76
B38: Upper CI | C38: =WEMWBS!B20 -> 51.27 | D38: =WEMWBS!C20 -> 51.69 | E38: =WEMWBS!I20 -> 50.28 | F38: =WEMWBS!M20 -> 51 | G38: =WEMWBS!O20 -> 50.33 | H38: =WEMWBS!P20 -> 48.97 | I38: =WEMWBS!Q20 -> 51.77 | J38: =WEMWBS!U20 -> 51.971 | K38: =WEMWBS!V20 -> 49.11 | L38: =WEMWBS!W20 -> 50.89 | M38: =WEMWBS!AC20 -> 50.704 | N38: =WEMWBS!AD20 -> 50.67 | P38: =WEMWBS!AH20 -> 50.12
A40: CLs | C40: =C36-C37 -> 0.605 | D40: 0.72 | E40: =E36-E37 -> 0.759 | F40: =F36-F37 -> 0.67 | G40: =G36-G37 -> 0.46 | H40: =H36-H37 -> 0.58 | I40: 0.781 | J40: 0.806 | K40: 0.784 | L40: 0.75 | M40: 0.847 | N40: 0.82 | P40: =P36-P37 -> 0.18

Sheet GHQ-12 scores
A1: General Health Questionnaire (GHQ-12) scores, by Local Authority and sex | M1: INDEX
A4: Aged 16 and over | B4: PLEASE NOTE: Where the sample size for a Local Authority was below 500, the result has been suppressed. This is shown here by *. | P4: 2013/2014/2015/2016 combined
A5: GHQ-12 scores | B5: Local Authority
B6: Aberdeen City | C6: Aberdeenshire | D6: Angus | E6: Argyll & Bute | F6: Clackmannanshire | G6: Dumfries & Galloway | H6: Dundee City | I6: East Ayrshire | J6: East Dunbartonshire | K6: East Lothian | L6: East Renfrewshire | M6: Edinburgh, City of | N6: Falkirk | O6: Fife | P6: Glasgow City | Q6: Highland | R6: Inverclyde | S6: Midlothian | T6: Moray | U6: Na h-Eileanan Siar | V6: North Ayrshire | W6: North Lanarkshire | X6: Orkney Islands | Y6: Perth & Kinross | Z6: Renfrewshire | AA6: Scottish Borders | AB6: Shetland Islands | AC6: South Ayrshire | AD6: South Lanarkshire | AE6: Stirling | AF6: West Dunbartonshire | AG6: West Lothian | AH6: Scotland
B7: % | C7: % | D7: % | E7: % | F7: % | G7: % | H7: % | I7: % | J7: % | K7: % | L7: % | M7: % | N7: % | O7: % | P7: % | Q7: % | R7: % | S7: % | T7: % | U7: % | V7: % | W7: % | X7: % | Y7: % | Z7: % | AA7: % | AB7: % | AC7: % | AD7: % | AE7: % | AF7: % | AG7: % | AH7: %
A8: Men
A9: Score 0 | B9: 63.217 | C9: 72.47 | D9: * | E9: * | F9: * | G9: * | H9: * | I9: 65.783 | J9: * | K9: * | L9: * | M9: 59.57 | N9: * | O9: 67.15 | P9: 56.09 | Q9: 67.132 | R9: * | S9: * | T9: * | U9: 68.577 | V9: 63.878 | W9: 64.95 | X9: * | Y9: * | Z9: * | AA9: * | AB9: * | AC9: 69.298 | AD9: 63.31 | AE9: * | AF9: * | AG9: * | AH9: 64.52
A10: Lower CI | B10: 58.165 | C10: 68.31 | D10: * | E10: * | F10: * | G10: * | H10: * | I10: 59.477 | J10: * | K10: * | L10: * | M10: 54.82 | N10: * | O10: 63.16 | P10: 50.92 | Q10: 60.001 | R10: * | S10: * | T10: * | U10: 62.668 | V10: 59.429 | W10: 58.19 | X10: * | Y10: * | Z10: * | AA10: * | AB10: * | AC10: 63.013 | AD10: 58.2 | AE10: * | AF10: * | AG10: * | AH10: 63.17
A11: Upper CI | B11: 68.27 | C11: 76.63 | D11: * | E11: * | F11: * | G11: * | H11: * | I11: 72.089 | J11: * | K11: * | L11: * | M11: 64.32 | N11: * | O11: 71.15 | P11: 61.26 | Q11: 74.263 | R11: * | S11: * | T11: * | U11: 74.485 | V11: 68.327 | W11: 71.71 | X11: * | Y11: * | Z11: * | AA11: * | AB11: * | AC11: 75.583 | AD11: 68.41 | AE11: * | AF11: * | AG11: * | AH11: 65.87
A12: Score 1-3 | B12: 26.623 | C12: 19.04 | D12: * | E12: * | F12: * | G12: * | H12: * | I12: 19.086 | J12: * | K12: * | L12: * | M12: 23.7 | N12: * | O12: 19.56 | P12: 27.22 | Q12: 18.659 | R12: * | S12: * | T12: * | U12: 19.093 | V12: 21.254 | W12: 19.5 | X12: * | Y12: * | Z12: * | AA12: * | AB12: * | AC12: 16.873 | AD12: 20.59 | AE12: * | AF12: * | AG12: * | AH12: 21.85
A13: Lower CI | B13: 22.411 | C13: 15.47 | D13: * | E13: * | F13: * | G13: * | H13: * | I13: 14.046 | J13: * | K13: * | L13: * | M13: 19.4 | N13: * | O13: 16.52 | P13: 22.81 | Q13: 12.63 | R13: * | S13: * | T13: * | U13: 14.282 | V13: 16.968 | W13: 14.83 | X13: * | Y13: * | Z13: * | AA13: * | AB13: * | AC13: 12.302 | AD13: 15.32 | AE13: * | AF13: * | AG13: * | AH13: 20.66
A14: Upper CI | B14: 30.836 | C14: 22.61 | D14: * | E14: * | F14: * | G14: * | H14: * | I14: 24.126 | J14: * | K14: * | L14: * | M14: 27.99 | N14: * | O14: 22.6 | P14: 31.62 | Q14: 24.688 | R14: * | S14: * | T14: * | U14: 23.904 | V14: 25.54 | W14: 24.18 | X14: * | Y14: * | Z14: * | AA14: * | AB14: * | AC14: 21.443 | AD14: 25.87 | AE14: * | AF14: * | AG14: * | AH14: 23.04
A15: Score 4+ | B15: 10.16 | C15: 8.49 | D15: * | E15: * | F15: * | G15: * | H15: * | I15: 15.132 | J15: * | K15: * | L15: * | M15: 16.73 | N15: * | O15: 13.29 | P15: 16.69 | Q15: 14.209 | R15: * | S15: * | T15: * | U15: 12.33 | V15: 14.868 | W15: 15.55 | X15: * | Y15: * | Z15: * | AA15: * | AB15: * | AC15: 13.829 | AD15: 16.1 | AE15: * | AF15: * | AG15: * | AH15: 13.63
A16: Lower CI | B16: 7.531 | C16: 5.9 | D16: * | E16: * | F16: * | G16: * | H16: * | I16: 9.96 | J16: * | K16: * | L16: * | M16: 13.04 | N16: * | O16: 10.71 | P16: 13.33 | Q16: 9.243 | R16: * | S16: * | T16: * | U16: 7.346 | V16: 10.813 | W16: 10.59 | X16: * | Y16: * | Z16: * | AA16: * | AB16: * | AC16: 8.936 | AD16: 12.07 | AE16: * | AF16: * | AG16: * | AH16: 12.68
A17: Upper CI | B17: 12.788 | C17: 11.09 | D17: * | E17: * | F17: * | G17: * | H17: * | I17: 20.303 | J17: * | K17: * | L17: * | M17: 20.42 | N17: * | O17: 15.87 | P17: 20.06 | Q17: 19.175 | R17: * | S17: * | T17: * | U17: 17.314 | V17: 18.924 | W17: 20.5 | X17: * | Y17: * | Z17: * | AA17: * | AB17: * | AC17: 18.723 | AD17: 20.13 | AE17: * | AF17: * | AG17: * | AH17: 14.57
A19: Women
A20: Score 0 | B20: 53.701 | C20: 60.7 | D20: * | E20: * | F20: * | G20: * | H20: * | I20: 58.654 | J20: * | K20: * | L20: * | M20: 56.49 | N20: * | O20: 57.62 | P20: 46.54 | Q20: 62.543 | R20: * | S20: * | T20: * | U20: 67.274 | V20: 54.063 | W20: 60.14 | X20: * | Y20: * | Z20: * | AA20: * | AB20: * | AC20: 57.133 | AD20: 59.12 | AE20: * | AF20: * | AG20: * | AH20: 57.1
A21: Lower CI | B21: 48.826 | C21: 56.88 | D21: * | E21: * | F21: * | G21: * | H21: * | I21: 53.545 | J21: * | K21: * | L21: * | M21: 52.27 | N21: * | O21: 54.13 | P21: 42.65 | Q21: 56.109 | R21: * | S21: * | T21: * | U21: 62.252 | V21: 49.056 | W21: 55.52 | X21: * | Y21: * | Z21: * | AA21: * | AB21: * | AC21: 52.971 | AD21: 53.65 | AE21: * | AF21: * | AG21: * | AH21: 55.93
A22: Upper CI | B22: 58.576 | C22: 64.52 | D22: * | E22: * | F22: * | G22: * | H22: * | I22: 63.763 | J22: * | K22: * | L22: * | M22: 60.72 | N22: * | O22: 61.12 | P22: 50.43 | Q22: 68.976 | R22: * | S22: * | T22: * | U22: 72.296 | V22: 59.07 | W22: 64.76 | X22: * | Y22: * | Z22: * | AA22: * | AB22: * | AC22: 61.295 | AD22: 64.6 | AE22: * | AF22: * | AG22: * | AH22: 58.27
A23: Score 1-3 | B23: 29.276 | C23: 26.69 | D23: * | E23: * | F23: * | G23: * | H23: * | I23: 22.823 | J23: * | K23: * | L23: * | M23: 28.97 | N23: * | O23: 26.05 | P23: 28.6 | Q23: 19.925 | R23: * | S23: * | T23: * | U23: 19.316 | V23: 27.18 | W23: 24.29 | X23: * | Y23: * | Z23: * | AA23: * | AB23: * | AC23: 26.568 | AD23: 23.61 | AE23: * | AF23: * | AG23: * | AH23: 25.68
A24: Lower CI | B24: 25.028 | C24: 23.2 | D24: * | E24: * | F24: * | G24: * | H24: * | I24: 18.664 | J24: * | K24: * | L24: * | M24: 25.22 | N24: * | O24: 23.29 | P24: 25.41 | Q24: 14.33 | R24: * | S24: * | T24: * | U24: 15.163 | V24: 22.723 | W24: 19.28 | X24: * | Y24: * | Z24: * | AA24: * | AB24: * | AC24: 23.062 | AD24: 19.23 | AE24: * | AF24: * | AG24: * | AH24: 24.64
A25: Upper CI | B25: 33.524 | C25: 30.18 | D25: * | E25: * | F25: * | G25: * | H25: * | I25: 26.982 | J25: * | K25: * | L25: * | M25: 32.72 | N25: * | O25: 28.8 | P25: 31.79 | Q25: 25.52 | R25: * | S25: * | T25: * | U25: 23.47 | V25: 31.636 | W25: 29.29 | X25: * | Y25: * | Z25: * | AA25: * | AB25: * | AC25: 30.074 | AD25: 27.98 | AE25: * | AF25: * | AG25: * | AH25: 26.73
A26: Score 4+ | B26: 17.024 | C26: 12.61 | D26: * | E26: * | F26: * | G26: * | H26: * | I26: 18.523 | J26: * | K26: * | L26: * | M26: 14.53 | N26: * | O26: 16.33 | P26: 24.87 | Q26: 17.532 | R26: * | S26: * | T26: * | U26: 13.41 | V26: 18.757 | W26: 15.57 | X26: * | Y26: * | Z26: * | AA26: * | AB26: * | AC26: 16.299 | AD26: 17.27 | AE26: * | AF26: * | AG26: * | AH26: 17.22
A27: Lower CI | B27: 13.552 | C27: 9.25 | D27: * | E27: * | F27: * | G27: * | H27: * | I27: 15.038 | J27: * | K27: * | L27: * | M27: 11.52 | N27: * | O27: 14.09 | P27: 21.55 | Q27: 13.421 | R27: * | S27: * | T27: * | U27: 10.145 | V27: 14.741 | W27: 11.97 | X27: * | Y27: * | Z27: * | AA27: * | AB27: * | AC27: 13.096 | AD27: 12.79 | AE27: * | AF27: * | AG27: * | AH27: 16.31
A28: Upper CI | B28: 20.495 | C28: 15.97 | D28: * | E28: * | F28: * | G28: * | H28: * | I28: 22.008 | J28: * | K28: * | L28: * | M28: 17.54 | N28: * | O28: 18.57 | P28: 28.19 | Q28: 21.643 | R28: * | S28: * | T28: * | U28: 16.674 | V28: 22.773 | W28: 19.18 | X28: * | Y28: * | Z28: * | AA28: * | AB28: * | AC28: 19.503 | AD28: 21.75 | AE28: * | AF28: * | AG28: * | AH28: 18.12
A30: All Adults
A31: Score 0 | B31: 58.237 | C31: 66.34 | D31: * | E31: * | F31: * | G31: * | H31: * | I31: 61.842 | J31: * | K31: * | L31: * | M31: 58.06 | N31: * | O31: 62.19 | P31: 51.02 | Q31: 64.694 | R31: * | S31: * | T31: * | U31: 67.919 | V31: 58.762 | W31: 62.36 | X31: * | Y31: * | Z31: * | AA31: * | AB31: * | AC31: 62.562 | AD31: 61.15 | AE31: * | AF31: * | AG31: * | AH31: 60.64
A32: Lower CI | B32: 54.322 | C32: 63.19 | D32: * | E32: * | F32: * | G32: * | H32: * | I32: 57.817 | J32: * | K32: * | L32: * | M32: 54.43 | N32: * | O32: 59.33 | P32: 47.5 | Q32: 59.479 | R32: * | S32: * | T32: * | U32: 64.044 | V32: 55.239 | W32: 57.84 | X32: * | Y32: * | Z32: * | AA32: * | AB32: * | AC32: 58.17 | AD32: 57.2 | AE32: * | AF32: * | AG32: * | AH32: 59.63
A33: Upper CI | B33: 62.152 | C33: 69.5 | D33: * | E33: * | F33: * | G33: * | H33: * | I33: 65.867 | J33: * | K33: * | L33: * | M33: 61.69 | N33: * | O33: 65.05 | P33: 54.53 | Q33: 69.908 | R33: * | S33: * | T33: * | U33: 71.794 | V33: 62.285 | W33: 66.89 | X33: * | Y33: * | Z33: * | AA33: * | AB33: * | AC33: 66.954 | AD33: 65.1 | AE33: * | AF33: * | AG33: * | AH33: 61.64
A34: Score 1-3 | B34: 28.011 | C34: 23.02 | D34: * | E34: * | F34: * | G34: * | H34: * | I34: 21.152 | J34: * | K34: * | L34: * | M34: 26.28 | N34: * | O34: 22.94 | P34: 27.95 | Q34: 19.332 | R34: * | S34: * | T34: * | U34: 19.206 | V34: 24.343 | W34: 22.07 | X34: * | Y34: * | Z34: * | AA34: * | AB34: * | AC34: 22.241 | AD34: 22.15 | AE34: * | AF34: * | AG34: * | AH34: 23.86
A35: Lower CI | B35: 24.874 | C35: 20.54 | D35: * | E35: * | F35: * | G35: * | H35: * | I35: 18.264 | J35: * | K35: * | L35: * | M35: 23.1 | N35: * | O35: 20.82 | P35: 25 | Q35: 15.327 | R35: * | S35: * | T35: * | U35: 16.273 | V35: 21.038 | W35: 18.1 | X35: * | Y35: * | Z35: * | AA35: * | AB35: * | AC35: 19.095 | AD35: 18.49 | AE35: * | AF35: * | AG35: * | AH35: 23
A36: Upper CI | B36: 31.148 | C36: 25.5 | D36: * | E36: * | F36: * | G36: * | H36: * | I36: 24.04 | J36: * | K36: * | L36: * | M36: 29.47 | N36: * | O36: 25.05 | P36: 30.9 | Q36: 23.337 | R36: * | S36: * | T36: * | U36: 22.138 | V36: 27.648 | W36: 26.04 | X36: * | Y36: * | Z36: * | AA36: * | AB36: * | AC36: 25.387 | AD36: 25.81 | AE36: * | AF36: * | AG36: * | AH36: 24.71
A37: Score 4+ | B37: 13.752 | C37: 10.64 | D37: * | E37: * | F37: * | G37: * | H37: * | I37: 17.006 | J37: * | K37: * | L37: * | M37: 15.65 | N37: * | O37: 14.87 | P37: 21.03 | Q37: 15.974 | R37: * | S37: * | T37: * | U37: 12.875 | V37: 16.895 | W37: 15.56 | X37: * | Y37: * | Z37: * | AA37: * | AB37: * | AC37: 15.197 | AD37: 16.7 | AE37: * | AF37: * | AG37: * | AH37: 15.51
A38: Lower CI | B38: 11.515 | C38: 8.37 | D38: * | E38: * | F38: * | G38: * | H38: * | I38: 13.836 | J38: * | K38: * | L38: * | M38: 12.98 | N38: * | O38: 13.1 | P38: 18.61 | Q38: 12.503 | R38: * | S38: * | T38: * | U38: 9.95 | V38: 13.502 | W38: 12.49 | X38: * | Y38: * | Z38: * | AA38: * | AB38: * | AC38: 12.233 | AD38: 13.47 | AE38: * | AF38: * | AG38: * | AH38: 14.81
A39: Upper CI | B39: 15.988 | C39: 12.9 | D39: * | E39: * | F39: * | G39: * | H39: * | I39: 20.176 | J39: * | K39: * | L39: * | M39: 18.32 | N39: * | O39: 16.64 | P39: 23.46 | Q39: 19.446 | R39: * | S39: * | T39: * | U39: 15.801 | V39: 20.289 | W39: 18.64 | X39: * | Y39: * | Z39: * | AA39: * | AB39: * | AC39: 18.161 | AD39: 19.93 | AE39: * | AF39: * | AG39: * | AH39: 16.2
A42: Bases (weighted):
A43: Men | B43: 336.473 | C43: 408.18 | D43: 188.358 | E43: 146.516 | F43: 69.246 | G43: 223.747 | H43: 242.694 | I43: 191.857 | J43: 171.492 | K43: 169.031 | L43: 120.082 | M43: 813.91 | N43: 225.368 | O43: 557.65 | P43: 846.4 | Q43: 339.758 | R43: 111.148 | S43: 103.13 | T43: 147.701 | U43: 40.497 | V43: 214.703 | W43: 532.15 | X43: 37.117 | Y43: 209.343 | Z43: 239.697 | AA43: 160.018 | AB43: 36.654 | AC43: 165.224 | AD43: 520.06 | AE43: 149.091 | AF43: 127.569 | AG43: 292.566 | AH43: 8137.42
A44: Women | B44: 369.421 | C44: 443.07 | D44: 208.222 | E44: 143.835 | F44: 79.997 | G44: 246.477 | H44: 265.276 | I44: 237.104 | J44: 166.844 | K44: 181.801 | L44: 146.493 | M44: 783.17 | N44: 251.979 | O44: 605.39 | P44: 957.82 | Q44: 385.026 | R44: 128.838 | S44: 133.787 | T44: 182.126 | U44: 41.297 | V44: 233.772 | W44: 617.89 | X44: 37.401 | Y44: 259.257 | Z44: 223.347 | AA44: 199.713 | AB44: 36.349 | AC44: 204.999 | AD44: 553.78 | AE44: 182.35 | AF44: 149.789 | AG44: 284.213 | AH44: 8940.83
A45: All Adults | B45: 705.894 | C45: 851.24 | D45: 396.58 | E45: 290.351 | F45: 149.243 | G45: 470.223 | H45: 507.97 | I45: 428.962 | J45: 338.336 | K45: 350.832 | L45: 266.575 | M45: 1597.07 | N45: 477.347 | O45: 1163.04 | P45: 1804.22 | Q45: 724.784 | R45: 239.986 | S45: 236.916 | T45: 329.827 | U45: 81.794 | V45: 448.475 | W45: 1150.04 | X45: 74.518 | Y45: 468.6 | Z45: 463.044 | AA45: 359.732 | AB45: 73.003 | AC45: 370.223 | AD45: 1073.84 | AE45: 331.441 | AF45: 277.358 | AG45: 576.779 | AH45: 17078.25
A46: Bases (unweighted)
A47: Men | B47: 388 | C47: 480 | D47: 131 | E47: 102 | F47: 43 | G47: 188 | H47: 150 | I47: 303 | J47: 136 | K47: 98 | L47: 93 | M47: 528 | N47: 138 | O47: 808 | P47: 568 | Q47: 214 | R47: 85 | S47: 65 | T47: 166 | U47: 331 | V47: 321 | W47: 303 | X47: 224 | Y47: 165 | Z47: 167 | AA47: 175 | AB47: 214 | AC47: 267 | AD47: 314 | AE47: 94 | AF47: 92 | AG47: 154 | AH47: 7505
A48: Women | B48: 491 | C48: 589 | D48: 158 | E48: 126 | F48: 60 | G48: 230 | H48: 182 | I48: 401 | J48: 160 | K48: 118 | L48: 131 | M48: 613 | N48: 183 | O48: 1045 | P48: 784 | Q48: 292 | R48: 115 | S48: 100 | T48: 235 | U48: 407 | V48: 386 | W48: 427 | X48: 260 | Y48: 224 | Z48: 183 | AA48: 249 | AB48: 251 | AC48: 361 | AD48: 410 | AE48: 140 | AF48: 125 | AG48: 193 | AH48: 9629
A49: All Adults | B49: 879 | C49: 1069 | D49: 289 | E49: 228 | F49: 103 | G49: 418 | H49: 332 | I49: 704 | J49: 296 | K49: 216 | L49: 224 | M49: 1141 | N49: 321 | O49: 1853 | P49: 1352 | Q49: 506 | R49: 200 | S49: 165 | T49: 401 | U49: 738 | V49: 707 | W49: 730 | X49: 484 | Y49: 389 | Z49: 350 | AA49: 424 | AB49: 465 | AC49: 628 | AD49: 724 | AE49: 234 | AF49: 217 | AG49: 347 | AH49: 17134

Sheet GHQ-12 chart
R1: INDEX
C31: Source: Scottish Health Survey
C34: Aberdeen City | D34: Aberdeenshire | E34: East Ayrshire | F34: Edinburgh, City of | G34: Fife | H34: Glasgow City | I34: Highland | J34: Na h-Eileanan Siar | K34: North Ayrshire | L34: North Lanarkshire | M34: South Ayrshire | N34: South Lanarkshire | P34: Scotland
B35: All Adults
B36: Score 0 | C36: ='GHQ-12 scores'!B31 -> 58.237 | D36: ='GHQ-12 scores'!C31 -> 66.34 | E36: ='GHQ-12 scores'!I31 -> 61.842 | F36: ='GHQ-12 scores'!M31 -> 58.06 | G36: ='GHQ-12 scores'!O31 -> 62.19 | H36: ='GHQ-12 scores'!P31 -> 51.02 | I36: ='GHQ-12 scores'!Q31 -> 64.694 | J36: ='GHQ-12 scores'!U31 -> 67.919 | K36: ='GHQ-12 scores'!V31 -> 58.762 | L36: ='GHQ-12 scores'!W31 -> 62.36 | M36: ='GHQ-12 scores'!AC31 -> 62.562 | N36: ='GHQ-12 scores'!AD31 -> 61.15 | P36: ='GHQ-12 scores'!AH31 -> 60.64
B37: Lower CI | C37: ='GHQ-12 scores'!B32 -> 54.322 | D37: ='GHQ-12 scores'!C32 -> 63.19 | E37: ='GHQ-12 scores'!I32 -> 57.817 | F37: ='GHQ-12 scores'!M32 -> 54.43 | G37: ='GHQ-12 scores'!O32 -> 59.33 | H37: ='GHQ-12 scores'!P32 -> 47.5 | I37: ='GHQ-12 scores'!Q32 -> 59.479 | J37: ='GHQ-12 scores'!U32 -> 64.044 | K37: ='GHQ-12 scores'!V32 -> 55.239 | L37: ='GHQ-12 scores'!W32 -> 57.84 | M37: ='GHQ-12 scores'!AC32 -> 58.17 | N37: ='GHQ-12 scores'!AD32 -> 57.2 | P37: ='GHQ-12 scores'!AH32 -> 59.63
B38: Upper CI | C38: ='GHQ-12 scores'!B33 -> 62.152 | D38: ='GHQ-12 scores'!C33 -> 69.5 | E38: ='GHQ-12 scores'!I33 -> 65.867 | F38: ='GHQ-12 scores'!M33 -> 61.69 | G38: ='GHQ-12 scores'!O33 -> 65.05 | H38: ='GHQ-12 scores'!P33 -> 54.53 | I38: ='GHQ-12 scores'!Q33 -> 69.908 | J38: ='GHQ-12 scores'!U33 -> 71.794 | K38: ='GHQ-12 scores'!V33 -> 62.285 | L38: ='GHQ-12 scores'!W33 -> 66.89 | M38: ='GHQ-12 scores'!AC33 -> 66.954 | N38: ='GHQ-12 scores'!AD33 -> 65.1 | P38: ='GHQ-12 scores'!AH33 -> 61.64
B39: Score 1-3 | C39: ='GHQ-12 scores'!B34 -> 28.011 | D39: ='GHQ-12 scores'!C34 -> 23.02 | E39: ='GHQ-12 scores'!I34 -> 21.152 | F39: ='GHQ-12 scores'!M34 -> 26.28 | G39: ='GHQ-12 scores'!O34 -> 22.94 | H39: ='GHQ-12 scores'!P34 -> 27.95 | I39: ='GHQ-12 scores'!Q34 -> 19.332 | J39: ='GHQ-12 scores'!U34 -> 19.206 | K39: ='GHQ-12 scores'!V34 -> 24.343 | L39: ='GHQ-12 scores'!W34 -> 22.07 | M39: ='GHQ-12 scores'!AC34 -> 22.241 | N39: ='GHQ-12 scores'!AD34 -> 22.15 | P39: ='GHQ-12 scores'!AH34 -> 23.86
B40: Lower CI | C40: ='GHQ-12 scores'!B35 -> 24.874 | D40: ='GHQ-12 scores'!C35 -> 20.54 | E40: ='GHQ-12 scores'!I35 -> 18.264 | F40: ='GHQ-12 scores'!M35 -> 23.1 | G40: ='GHQ-12 scores'!O35 -> 20.82 | H40: ='GHQ-12 scores'!P35 -> 25 | I40: ='GHQ-12 scores'!Q35 -> 15.327 | J40: ='GHQ-12 scores'!U35 -> 16.273 | K40: ='GHQ-12 scores'!V35 -> 21.038 | L40: ='GHQ-12 scores'!W35 -> 18.1 | M40: ='GHQ-12 scores'!AC35 -> 19.095 | N40: ='GHQ-12 scores'!AD35 -> 18.49 | P40: ='GHQ-12 scores'!AH35 -> 23
B41: Upper CI | C41: ='GHQ-12 scores'!B36 -> 31.148 | D41: ='GHQ-12 scores'!C36 -> 25.5 | E41: ='GHQ-12 scores'!I36 -> 24.04 | F41: ='GHQ-12 scores'!M36 -> 29.47 | G41: ='GHQ-12 scores'!O36 -> 25.05 | H41: ='GHQ-12 scores'!P36 -> 30.9 | I41: ='GHQ-12 scores'!Q36 -> 23.337 | J41: ='GHQ-12 scores'!U36 -> 22.138 | K41: ='GHQ-12 scores'!V36 -> 27.648 | L41: ='GHQ-12 scores'!W36 -> 26.04 | M41: ='GHQ-12 scores'!AC36 -> 25.387 | N41: ='GHQ-12 scores'!AD36 -> 25.81 | P41: ='GHQ-12 scores'!AH36 -> 24.71
B42: Score 4+ | C42: ='GHQ-12 scores'!B37 -> 13.752 | D42: ='GHQ-12 scores'!C37 -> 10.64 | E42: ='GHQ-12 scores'!I37 -> 17.006 | F42: ='GHQ-12 scores'!M37 -> 15.65 | G42: ='GHQ-12 scores'!O37 -> 14.87 | H42: ='GHQ-12 scores'!P37 -> 21.03 | I42: ='GHQ-12 scores'!Q37 -> 15.974 | J42: ='GHQ-12 scores'!U37 -> 12.875 | K42: ='GHQ-12 scores'!V37 -> 16.895 | L42: ='GHQ-12 scores'!W37 -> 15.56 | M42: ='GHQ-12 scores'!AC37 -> 15.197 | N42: ='GHQ-12 scores'!AD37 -> 16.7 | P42: ='GHQ-12 scores'!AH37 -> 15.51
B43: Lower CI | C43: ='GHQ-12 scores'!B38 -> 11.515 | D43: ='GHQ-12 scores'!C38 -> 8.37 | E43: ='GHQ-12 scores'!I38 -> 13.836 | F43: ='GHQ-12 scores'!M38 -> 12.98 | G43: ='GHQ-12 scores'!O38 -> 13.1 | H43: ='GHQ-12 scores'!P38 -> 18.61 | I43: ='GHQ-12 scores'!Q38 -> 12.503 | J43: ='GHQ-12 scores'!U38 -> 9.95 | K43: ='GHQ-12 scores'!V38 -> 13.502 | L43: ='GHQ-12 scores'!W38 -> 12.49 | M43: ='GHQ-12 scores'!AC38 -> 12.233 | N43: ='GHQ-12 scores'!AD38 -> 13.47 | P43: ='GHQ-12 scores'!AH38 -> 14.81
B44: Upper CI | C44: ='GHQ-12 scores'!B39 -> 15.988 | D44: ='GHQ-12 scores'!C39 -> 12.9 | E44: ='GHQ-12 scores'!I39 -> 20.176 | F44: ='GHQ-12 scores'!M39 -> 18.32 | G44: ='GHQ-12 scores'!O39 -> 16.64 | H44: ='GHQ-12 scores'!P39 -> 23.46 | I44: ='GHQ-12 scores'!Q39 -> 19.446 | J44: ='GHQ-12 scores'!U39 -> 15.801 | K44: ='GHQ-12 scores'!V39 -> 20.289 | L44: ='GHQ-12 scores'!W39 -> 18.64 | M44: ='GHQ-12 scores'!AC39 -> 18.161 | N44: ='GHQ-12 scores'!AD39 -> 19.93 | P44: ='GHQ-12 scores'!AH39 -> 16.2
A46: CLs | B46: Score 0 | C46: =C36-C37 -> 3.915 | D46: =D36-D37 -> 3.15 | E46: =E36-E37 -> 4.025 | F46: =F36-F37 -> 3.63 | G46: =G36-G37 -> 2.86 | H46: =H36-H37 -> 3.52 | I46: 5.215 | J46: 3.875 | K46: 3.523 | L46: 4.52 | M46: 4.392 | N46: 3.95 | P46: =P36-P37 -> 1.01
B47: Score 1-3 | C47: =C39-C40 -> 3.137 | D47: =D39-D40 -> 2.48 | E47: =E39-E40 -> 2.888 | F47: =F39-F40 -> 3.18 | G47: =G39-G40 -> 2.12 | H47: =H39-H40 -> 2.95 | I47: 4.005 | J47: 2.933 | K47: 3.305 | L47: 3.97 | M47: 3.146 | N47: 3.66 | P47: =P39-P40 -> 0.86
B48: Score 4+ | C48: =C42-C43 -> 2.237 | D48: =D42-D43 -> 2.27 | E48: =E42-E43 -> 3.17 | F48: =F42-F43 -> 2.67 | G48: =G42-G43 -> 1.77 | H48: =H42-H43 -> 2.42 | I48: 3.471 | J48: 2.925 | K48: 3.393 | L48: 3.07 | M48: 2.964 | N48: 3.23 | P48: =P42-P43 -> 0.7

Sheet Long-term illness
A1: Prevalence of long-term illness, by Local Authority and sex | N1: INDEX
A4: Aged 16 and over | B4: PLEASE NOTE: Where the sample size for a Local Authority was below 500, the result has been suppressed. This is shown here by *. | P4: 2013/2014/2015/2016 combined
A5: Prevalence of limiting long-term conditions | B5: Local Authority
B6: Aberdeen City | C6: Aberdeenshire | D6: Angus | E6: Argyll & Bute | F6: Clackmannanshire | G6: Dumfries & Galloway | H6: Dundee City | I6: East Ayrshire | J6: East Dunbartonshire | K6: East Lothian | L6: East Renfrewshire | M6: Edinburgh, City of | N6: Falkirk | O6: Fife | P6: Glasgow City | Q6: Highland | R6: Inverclyde | S6: Midlothian | T6: Moray | U6: Na h-Eileanan Siar | V6: North Ayrshire | W6: North Lanarkshire | X6: Orkney Islands | Y6: Perth & Kinross | Z6: Renfrewshire | AA6: Scottish Borders | AB6: Shetland Islands | AC6: South Ayrshire | AD6: South Lanarkshire | AE6: Stirling | AF6: West Dunbartonshire | AG6: West Lothian | AH6: Scotland
B7: % | C7: % | D7: % | E7: % | F7: % | G7: % | H7: % | I7: % | J7: % | K7: % | L7: % | M7: % | N7: % | O7: % | P7: % | Q7: % | R7: % | S7: % | T7: % | U7: % | V7: % | W7: % | X7: % | Y7: % | Z7: % | AA7: % | AB7: % | AC7: % | AD7: % | AE7: % | AF7: % | AG7: % | AH7: %
A8: Men
A9: Limiting long-term illness | B9: 25.139 | C9: 23.02 | D9: * | E9: * | F9: * | G9: * | H9: * | I9: 39.229 | J9: * | K9: * | L9: * | M9: 24.72 | N9: * | O9: 28.84 | P9: 28.81 | Q9: 28.798 | R9: * | S9: * | T9: * | U9: 36.605 | V9: 40.473 | W9: 33.68 | X9: 30.501 | Y9: * | Z9: * | AA9: * | AB9: 25.444 | AC9: 46.404 | AD9: 28.93 | AE9: * | AF9: * | AG9: * | AH9: 29.83
A10: Lower CI | B10: 20.845 | C10: 19.81 | D10: * | E10: * | F10: * | G10: * | H10: * | I10: 32.145 | J10: * | K10: * | L10: * | M10: 21.36 | N10: * | O10: 25.22 | P10: 24.74 | Q10: 22.88 | R10: * | S10: * | T10: * | U10: 30.491 | V10: 34.44 | W10: 28.02 | X10: 25.8 | Y10: * | Z10: * | AA10: * | AB10: 20.306 | AC10: 37.616 | AD10: 23.79 | AE10: * | AF10: * | AG10: * | AH10: 28.61
A11: Upper CI | B11: 29.433 | C11: 26.24 | D11: * | E11: * | F11: * | G11: * | H11: * | I11: 46.313 | J11: * | K11: * | L11: * | M11: 28.09 | N11: * | O11: 32.46 | P11: 32.88 | Q11: 34.715 | R11: * | S11: * | T11: * | U11: 42.719 | V11: 46.506 | W11: 39.34 | X11: 35.201 | Y11: * | Z11: * | AA11: * | AB11: 30.583 | AC11: 55.193 | AD11: 34.06 | AE11: * | AF11: * | AG11: * | AH11: 31.06
A12: Non-limiting long-term illness | B12: 13.244 | C12: 16.74 | D12: * | E12: * | F12: * | G12: * | H12: * | I12: 9.032 | J12: * | K12: * | L12: * | M12: 17.82 | N12: * | O12: 15.72 | P12: 12.86 | Q12: 13.119 | R12: * | S12: * | T12: * | U12: 11.56 | V12: 10.981 | W12: 13.06 | X12: 19.115 | Y12: * | Z12: * | AA12: * | AB12: 17.187 | AC12: 9.644 | AD12: 14.59 | AE12: * | AF12: * | AG12: * | AH12: 14.1
A13: Lower CI | B13: 9.783 | C13: 12.7 | D13: * | E13: * | F13: * | G13: * | H13: * | I13: 5.658 | J13: * | K13: * | L13: * | M13: 14.46 | N13: * | O13: 12.68 | P13: 10.1 | Q13: 9.392 | R13: * | S13: * | T13: * | U13: 8.18 | V13: 8.024 | W13: 7.78 | X13: 14.288 | Y13: * | Z13: * | AA13: * | AB13: 11.267 | AC13: 5.401 | AD13: 10.31 | AE13: * | AF13: * | AG13: * | AH13: 13.12
A14: Upper CI | B14: 16.705 | C14: 20.78 | D14: * | E14: * | F14: * | G14: * | H14: * | I14: 12.406 | J14: * | K14: * | L14: * | M14: 21.17 | N14: * | O14: 18.76 | P14: 15.61 | Q14: 16.846 | R14: * | S14: * | T14: * | U14: 14.941 | V14: 13.937 | W14: 18.34 | X14: 23.942 | Y14: * | Z14: * | AA14: * | AB14: 23.108 | AC14: 13.886 | AD14: 18.87 | AE14: * | AF14: * | AG14: * | AH14: 15.08
A15: No long-term illness | B15: 61.617 | C15: 60.24 | D15: * | E15: * | F15: * | G15: * | H15: * | I15: 51.739 | J15: * | K15: * | L15: * | M15: 57.46 | N15: * | O15: 55.43 | P15: 58.33 | Q15: 58.083 | R15: * | S15: * | T15: * | U15: 51.834 | V15: 48.547 | W15: 53.26 | X15: 50.385 | Y15: * | Z15: * | AA15: * | AB15: 57.368 | AC15: 43.952 | AD15: 56.48 | AE15: * | AF15: * | AG15: * | AH15: 56.07
A16: Lower CI | B16: 55.839 | C16: 55.72 | D16: * | E16: * | F16: * | G16: * | H16: * | I16: 44.667 | J16: * | K16: * | L16: * | M16: 52.66 | N16: * | O16: 51.36 | P16: 54.04 | Q16: 51.245 | R16: * | S16: * | T16: * | U16: 45.529 | V16: 43.23 | W16: 46.81 | X16: 44.059 | Y16: * | Z16: * | AA16: * | AB16: 49.421 | AC16: 36.525 | AD16: 50.46 | AE16: * | AF16: * | AG16: * | AH16: 54.68
A17: Upper CI | B17: 67.395 | C17: 64.75 | D17: * | E17: * | F17: * | G17: * | H17: * | I17: 58.812 | J17: * | K17: * | L17: * | M17: 62.26 | N17: * | O17: 59.51 | P17: 62.63 | Q17: 64.921 | R17: * | S17: * | T17: * | U17: 58.14 | V17: 53.863 | W17: 59.72 | X17: 56.71 | Y17: * | Z17: * | AA17: * | AB17: 65.315 | AC17: 51.379 | AD17: 62.5 | AE17: * | AF17: * | AG17: * | AH17: 57.46
A19: Women
A20: Limiting long-term illness | B20: 30.362 | C20: 27.53 | D20: * | E20: * | F20: * | G20: * | H20: * | I20: 46.233 | J20: * | K20: * | L20: * | M20: 25 | N20: * | O20: 34.18 | P20: 36.67 | Q20: 34.506 | R20: * | S20: * | T20: * | U20: 36.072 | V20: 45.39 | W20: 36.2 | X20: 35.419 | Y20: * | Z20: * | AA20: * | AB20: 33.658 | AC20: 48.689 | AD20: 30.51 | AE20: * | AF20: * | AG20: * | AH20: 33.57
A21: Lower CI | B21: 25.392 | C21: 23.9 | D21: * | E21: * | F21: * | G21: * | H21: * | I21: 39.757 | J21: * | K21: * | L21: * | M21: 21.48 | N21: * | O21: 31.15 | P21: 33.09 | Q21: 28.794 | R21: * | S21: * | T21: * | U21: 30.986 | V21: 39.794 | W21: 30.82 | X21: 29.757 | Y21: * | Z21: * | AA21: * | AB21: 26.752 | AC21: 42.141 | AD21: 25.75 | AE21: * | AF21: * | AG21: * | AH21: 32.42
A22: Upper CI | B22: 35.332 | C22: 31.15 | D22: * | E22: * | F22: * | G22: * | H22: * | I22: 52.708 | J22: * | K22: * | L22: * | M22: 28.52 | N22: * | O22: 37.21 | P22: 40.25 | Q22: 40.217 | R22: * | S22: * | T22: * | U22: 41.158 | V22: 50.985 | W22: 41.57 | X22: 41.081 | Y22: * | Z22: * | AA22: * | AB22: 40.563 | AC22: 55.237 | AD22: 35.26 | AE22: * | AF22: * | AG22: * | AH22: 34.72
A23: Non-limiting long-term illness | B23: 16.032 | C23: 13.01 | D23: * | E23: * | F23: * | G23: * | H23: * | I23: 9.32 | J23: * | K23: * | L23: * | M23: 16.33 | N23: * | O23: 14.12 | P23: 10.31 | Q23: 16.353 | R23: * | S23: * | T23: * | U23: 11.74 | V23: 12.38 | W23: 14.5 | X23: 21.801 | Y23: * | Z23: * | AA23: * | AB23: 17.025 | AC23: 7.623 | AD23: 13.79 | AE23: * | AF23: * | AG23: * | AH23: 13.96
A24: Lower CI | B24: 12.528 | C24: 10.27 | D24: * | E24: * | F24: * | G24: * | H24: * | I24: 6.023 | J24: * | K24: * | L24: * | M24: 13.44 | N24: * | O24: 12.24 | P24: 8.31 | Q24: 12.477 | R24: * | S24: * | T24: * | U24: 8.135 | V24: 9.418 | W24: 11.35 | X24: 17.252 | Y24: * | Z24: * | AA24: * | AB24: 12.019 | AC24: 4.89 | AD24: 9.87 | AE24: * | AF24: * | AG24: * | AH24: 13.17
A25: Upper CI | B25: 19.536 | C25: 15.74 | D25: * | E25: * | F25: * | G25: * | H25: * | I25: 12.617 | J25: * | K25: * | L25: * | M25: 19.23 | N25: * | O25: 16.01 | P25: 12.31 | Q25: 20.228 | R25: * | S25: * | T25: * | U25: 15.344 | V25: 15.342 | W25: 17.65 | X25: 26.349 | Y25: * | Z25: * | AA25: * | AB25: 22.031 | AC25: 10.355 | AD25: 17.72 | AE25: * | AF25: * | AG25: * | AH25: 14.74
A26: No long-term illness | B26: 53.606 | C26: 59.47 | D26: * | E26: * | F26: * | G26: * | H26: * | I26: 44.448 | J26: * | K26: * | L26: * | M26: 58.67 | N26: * | O26: 51.7 | P26: 53.02 | Q26: 49.142 | R26: * | S26: * | T26: * | U26: 52.188 | V26: 42.231 | W26: 49.31 | X26: 42.781 | Y26: * | Z26: * | AA26: * | AB26: 49.317 | AC26: 43.688 | AD26: 55.7 | AE26: * | AF26: * | AG26: * | AH26: 52.47
A27: Lower CI | B27: 48.302 | C27: 55.47 | D27: * | E27: * | F27: * | G27: * | H27: * | I27: 38.303 | J27: * | K27: * | L27: * | M27: 54.46 | N27: * | O27: 48.49 | P27: 49.47 | Q27: 42.041 | R27: * | S27: * | T27: * | U27: 46.818 | V27: 36.796 | W27: 44.16 | X27: 34.781 | Y27: * | Z27: * | AA27: * | AB27: 42.905 | AC27: 37.378 | AD27: 50.79 | AE27: * | AF27: * | AG27: * | AH27: 51.29
A28: Upper CI | B28: 58.91 | C28: 63.47 | D28: * | E28: * | F28: * | G28: * | H28: * | I28: 50.592 | J28: * | K28: * | L28: * | M28: 62.88 | N28: * | O28: 54.91 | P28: 56.57 | Q28: 56.242 | R28: * | S28: * | T28: * | U28: 57.559 | V28: 47.665 | W28: 54.46 | X28: 50.78 | Y28: * | Z28: * | AA28: * | AB28: 55.729 | AC28: 49.998 | AD28: 60.62 | AE28: * | AF28: * | AG28: * | AH28: 53.65
A30: All Adults
A31: Limiting long-term illness | B31: 27.888 | C31: 25.34 | D31: * | E31: * | F31: * | G31: * | H31: * | I31: 43.053 | J31: * | K31: * | L31: * | M31: 24.86 | N31: * | O31: 31.6 | P31: 32.96 | Q31: 31.841 | R31: * | S31: * | T31: * | U31: 36.338 | V31: 43.053 | W31: 35.03 | X31: 32.967 | Y31: * | Z31: * | AA31: * | AB31: 29.422 | AC31: 47.66 | AD31: 29.74 | AE31: * | AF31: * | AG31: * | AH31: 31.77
A32: Lower CI | B32: 23.947 | C32: 22.7 | D32: * | E32: * | F32: * | G32: * | H32: * | I32: 36.96 | J32: * | K32: * | L32: * | M32: 22.23 | N32: * | O32: 28.91 | P32: 29.75 | Q32: 27.101 | R32: * | S32: * | T32: * | U32: 31.957 | V32: 38.092 | W32: 30.97 | X32: 28.746 | Y32: * | Z32: * | AA32: * | AB32: 25.158 | AC32: 41.055 | AD32: 26.25 | AE32: * | AF32: * | AG32: * | AH32: 30.82
A33: Upper CI | B33: 31.829 | C33: 27.99 | D33: * | E33: * | F33: * | G33: * | H33: * | I33: 49.145 | J33: * | K33: * | L33: * | M33: 27.48 | N33: * | O33: 34.28 | P33: 36.17 | Q33: 36.581 | R33: * | S33: * | T33: * | U33: 40.72 | V33: 48.014 | W33: 39.08 | X33: 37.189 | Y33: * | Z33: * | AA33: * | AB33: 33.686 | AC33: 54.264 | AD33: 33.23 | AE33: * | AF33: * | AG33: * | AH33: 32.72
A34: Non-limiting long-term illness | B34: 14.711 | C34: 14.81 | D34: * | E34: * | F34: * | G34: * | H34: * | I34: 9.189 | J34: * | K34: * | L34: * | M34: 17.1 | N34: * | O34: 14.9 | P34: 11.51 | Q34: 14.843 | R34: * | S34: * | T34: * | U34: 11.65 | V34: 11.715 | W34: 13.83 | X34: 20.462 | Y34: * | Z34: * | AA34: * | AB34: 17.109 | AC34: 8.533 | AD34: 14.18 | AE34: * | AF34: * | AG34: * | AH34: 14.03
A35: Lower CI | B35: 12.076 | C35: 12.46 | D35: * | E35: * | F35: * | G35: * | H35: * | I35: 6.741 | J35: * | K35: * | L35: * | M35: 14.8 | N35: * | O35: 12.99 | P35: 9.68 | Q35: 11.727 | R35: * | S35: * | T35: * | U35: 8.986 | V35: 9.526 | W35: 10.94 | X35: 16.816 | Y35: * | Z35: * | AA35: * | AB35: 13.097 | AC35: 5.752 | AD35: 11.07 | AE35: * | AF35: * | AG35: * | AH35: 13.37
A36: Upper CI | B36: 17.347 | C36: 17.17 | D36: * | E36: * | F36: * | G36: * | H36: * | I36: 11.637 | J36: * | K36: * | L36: * | M36: 19.4 | N36: * | O36: 16.81 | P36: 13.34 | Q36: 17.959 | R36: * | S36: * | T36: * | U36: 14.314 | V36: 13.904 | W36: 16.71 | X36: 24.108 | Y36: * | Z36: * | AA36: * | AB36: 21.12 | AC36: 11.314 | AD36: 17.29 | AE36: * | AF36: * | AG36: * | AH36: 14.68
A37: No long-term illness | B37: 57.401 | C37: 59.84 | D37: * | E37: * | F37: * | G37: * | H37: * | I37: 47.758 | J37: * | K37: * | L37: * | M37: 58.04 | N37: * | O37: 53.5 | P37: 55.53 | Q37: 53.316 | R37: * | S37: * | T37: * | U37: 52.011 | V37: 45.232 | W37: 51.15 | X37: 46.571 | Y37: * | Z37: * | AA37: * | AB37: 53.469 | AC37: 43.807 | AD37: 56.08 | AE37: * | AF37: * | AG37: * | AH37: 54.2
A38: Lower CI | B38: 52.849 | C38: 56.47 | D38: * | E38: * | F38: * | G38: * | H38: * | I38: 42.509 | J38: * | K38: * | L38: * | M38: 54.52 | N38: * | O38: 50.53 | P38: 52.49 | Q38: 47.273 | R38: * | S38: * | T38: * | U38: 47.429 | V38: 40.637 | W38: 46.57 | X38: 40.135 | Y38: * | Z38: * | AA38: * | AB38: 47.332 | AC38: 38.282 | AD38: 52.03 | AE38: * | AF38: * | AG38: * | AH38: 53.19
A39: Upper CI | B39: 61.952 | C39: 63.21 | D39: * | E39: * | F39: * | G39: * | H39: * | I39: 53.008 | J39: * | K39: * | L39: * | M39: 61.57 | N39: * | O39: 56.48 | P39: 58.56 | Q39: 59.358 | R39: * | S39: * | T39: * | U39: 56.594 | V39: 49.827 | W39: 55.73 | X39: 53.007 | Y39: * | Z39: * | AA39: * | AB39: 59.607 | AC39: 49.332 | AD39: 60.13 | AE39: * | AF39: * | AG39: * | AH39: 55.21
A42: Bases (weighted):
A43: Men | B43: 364.433 | C43: 441.84 | D43: 192.61 | E43: 165.798 | F43: 76.663 | G43: 262.106 | H43: 260.443 | I43: 202.578 | J43: 196.393 | K43: 177.209 | L43: 143.898 | M43: 916.64 | N43: 267.752 | O43: 620.29 | P43: 968.27 | Q43: 375.657 | R43: 129.299 | S43: 111.713 | T43: 172.206 | U43: 48.446 | V43: 228.688 | W43: 609.26 | X43: 38.805 | Y43: 225.547 | Z43: 262.11 | AA43: 183.856 | AB43: 41.939 | AC43: 174.858 | AD43: 582.98 | AE43: 155.993 | AF43: 134.177 | AG43: 330.149 | AH43: 9062.6
A44: Women | B44: 404.93 | C44: 470 | D44: 214.28 | E44: 157.802 | F44: 87.908 | G44: 275.466 | H44: 283.567 | I44: 243.569 | J44: 190.557 | K44: 197.648 | L44: 160.611 | M44: 849.19 | N44: 272.99 | O44: 663.33 | P44: 1083.05 | Q44: 429.052 | R44: 145.267 | S44: 137.367 | T44: 204.394 | U44: 48.518 | V44: 252.573 | W44: 700.46 | X44: 39.048 | Y44: 273.349 | Z44: 257.548 | AA44: 221.497 | AB44: 39.383 | AC44: 213.319 | AD44: 615.15 | AE44: 192.86 | AF44: 159.316 | AG44: 311.158 | AH44: 9795.16
A45: All Adults | B45: 769.362 | C45: 911.85 | D45: 406.89 | E45: 323.6 | F45: 164.571 | G45: 537.572 | H45: 544.01 | I45: 446.146 | J45: 386.95 | K45: 374.856 | L45: 304.509 | M45: 1765.83 | N45: 540.742 | O45: 1283.62 | P45: 2051.32 | Q45: 804.708 | R45: 274.566 | S45: 249.081 | T45: 376.6 | U45: 96.964 | V45: 481.261 | W45: 1309.72 | X45: 77.853 | Y45: 498.896 | Z45: 519.658 | AA45: 405.353 | AB45: 81.322 | AC45: 388.177 | AD45: 1198.13 | AE45: 348.853 | AF45: 293.493 | AG45: 641.307 | AH45: 18857.76
A46: Bases (unweighted)
A47: Men | B47: 426 | C47: 517 | D47: 134 | E47: 116 | F47: 48 | G47: 221 | H47: 159 | I47: 318 | J47: 150 | K47: 104 | L47: 114 | M47: 591 | N47: 160 | O47: 903 | P47: 656 | Q47: 239 | R47: 98 | S47: 71 | T47: 191 | U47: 387 | V47: 344 | W47: 343 | X47: 234 | Y47: 178 | Z47: 186 | AA47: 199 | AB47: 247 | AC47: 286 | AD47: 355 | AE47: 100 | AF47: 98 | AG47: 172 | AH47: 8345
A48: Women | B48: 541 | C48: 624 | D48: 163 | E48: 136 | F48: 66 | G48: 258 | H48: 193 | I48: 413 | J48: 179 | K48: 128 | L48: 145 | M48: 661 | N48: 197 | O48: 1142 | P48: 894 | Q48: 327 | R48: 128 | S48: 103 | T48: 264 | U48: 461 | V48: 418 | W48: 476 | X48: 271 | Y48: 234 | Z48: 212 | AA48: 277 | AB48: 277 | AC48: 376 | AD48: 456 | AE48: 149 | AF48: 133 | AG48: 212 | AH48: 10514
A49: All Adults | B49: 967 | C49: 1141 | D49: 297 | E49: 252 | F49: 114 | G49: 479 | H49: 352 | I49: 731 | J49: 329 | K49: 232 | L49: 259 | M49: 1252 | N49: 357 | O49: 2045 | P49: 1550 | Q49: 566 | R49: 226 | S49: 174 | T49: 455 | U49: 848 | V49: 762 | W49: 819 | X49: 505 | Y49: 412 | Z49: 398 | AA49: 476 | AB49: 524 | AC49: 662 | AD49: 811 | AE49: 249 | AF49: 231 | AG49: 384 | AH49: 18859

Sheet Long-term illness chart
R1: INDEX
C31: Source: Scottish Health Survey
C34: Aberdeen City | D34: Aberdeenshire | E34: East Ayrshire | F34: Edinburgh, City of | G34: Fife | H34: Glasgow City | I34: Highland | J34: Na h-Eileanan Siar | K34: North Ayrshire | L34: North Lanarkshire | M34: Orkney Islands | N34: Shetland Islands | O34: South Ayrshire | P34: South Lanarkshire | R34: Scotland
B35: All Adults
B36: Limiting long-term illness | C36: ='Long-term illness'!B31 -> 27.888 | D36: ='Long-term illness'!C31 -> 25.34 | E36: ='Long-term illness'!I31 -> 43.053 | F36: ='Long-term illness'!M31 -> 24.86 | G36: ='Long-term illness'!O31 -> 31.6 | H36: ='Long-term illness'!P31 -> 32.96 | I36: ='Long-term illness'!Q31 -> 31.841 | J36: ='Long-term illness'!U31 -> 36.338 | K36: ='Long-term illness'!V31 -> 43.053 | L36: ='Long-term illness'!W31 -> 35.03 | M36: ='Long-term illness'!X31 -> 32.967 | N36: ='Long-term illness'!AB31 -> 29.422 | O36: ='Long-term illness'!AC31 -> 47.66 | P36: ='Long-term illness'!AD31 -> 29.74 | R36: ='Long-term illness'!AH31 -> 31.77
B37: Lower CI | C37: ='Long-term illness'!B32 -> 23.947 | D37: ='Long-term illness'!C32 -> 22.7 | E37: ='Long-term illness'!I32 -> 36.96 | F37: ='Long-term illness'!M32 -> 22.23 | G37: ='Long-term illness'!O32 -> 28.91 | H37: ='Long-term illness'!P32 -> 29.75 | I37: ='Long-term illness'!Q32 -> 27.101 | J37: ='Long-term illness'!U32 -> 31.957 | K37: ='Long-term illness'!V32 -> 38.092 | L37: ='Long-term illness'!W32 -> 30.97 | M37: ='Long-term illness'!X32 -> 28.746 | N37: ='Long-term illness'!AB32 -> 25.158 | O37: ='Long-term illness'!AC32 -> 41.055 | P37: ='Long-term illness'!AD32 -> 26.25 | R37: ='Long-term illness'!AH32 -> 30.82
B38: Upper CI | C38: ='Long-term illness'!B33 -> 31.829 | D38: ='Long-term illness'!C33 -> 27.99 | E38: ='Long-term illness'!I33 -> 49.145 | F38: ='Long-term illness'!M33 -> 27.48 | G38: ='Long-term illness'!O33 -> 34.28 | H38: ='Long-term illness'!P33 -> 36.17 | I38: ='Long-term illness'!Q33 -> 36.581 | J38: ='Long-term illness'!U33 -> 40.72 | K38: ='Long-term illness'!V33 -> 48.014 | L38: ='Long-term illness'!W33 -> 39.08 | M38: ='Long-term illness'!X33 -> 37.189 | N38: ='Long-term illness'!AB33 -> 33.686 | O38: ='Long-term illness'!AC33 -> 54.264 | P38: ='Long-term illness'!AD33 -> 33.23 | R38: ='Long-term illness'!AH33 -> 32.72
B39: Non-limiting long-term illness | C39: ='Long-term illness'!B34 -> 14.711 | D39: ='Long-term illness'!C34 -> 14.81 | E39: ='Long-term illness'!I34 -> 9.189 | F39: ='Long-term illness'!M34 -> 17.1 | G39: ='Long-term illness'!O34 -> 14.9 | H39: ='Long-term illness'!P34 -> 11.51 | I39: ='Long-term illness'!Q34 -> 14.843 | J39: ='Long-term illness'!U34 -> 11.65 | K39: ='Long-term illness'!V34 -> 11.715 | L39: ='Long-term illness'!W34 -> 13.83 | M39: ='Long-term illness'!X34 -> 20.462 | N39: ='Long-term illness'!AB34 -> 17.109 | O39: ='Long-term illness'!AC34 -> 8.533 | P39: ='Long-term illness'!AD34 -> 14.18 | R39: ='Long-term illness'!AH34 -> 14.03
B40: Lower CI | C40: ='Long-term illness'!B35 -> 12.076 | D40: ='Long-term illness'!C35 -> 12.46 | E40: ='Long-term illness'!I35 -> 6.741 | F40: ='Long-term illness'!M35 -> 14.8 | G40: ='Long-term illness'!O35 -> 12.99 | H40: ='Long-term illness'!P35 -> 9.68 | I40: ='Long-term illness'!Q35 -> 11.727 | J40: ='Long-term illness'!U35 -> 8.986 | K40: ='Long-term illness'!V35 -> 9.526 | L40: ='Long-term illness'!W35 -> 10.94 | M40: ='Long-term illness'!X35 -> 16.816 | N40: ='Long-term illness'!AB35 -> 13.097 | O40: ='Long-term illness'!AC35 -> 5.752 | P40: ='Long-term illness'!AD35 -> 11.07 | R40: ='Long-term illness'!AH35 -> 13.37
B41: Upper CI | C41: ='Long-term illness'!B36 -> 17.347 | D41: ='Long-term illness'!C36 -> 17.17 | E41: ='Long-term illness'!I36 -> 11.637 | F41: ='Long-term illness'!M36 -> 19.4 | G41: ='Long-term illness'!O36 -> 16.81 | H41: ='Long-term illness'!P36 -> 13.34 | I41: ='Long-term illness'!Q36 -> 17.959 | J41: ='Long-term illness'!U36 -> 14.314 | K41: ='Long-term illness'!V36 -> 13.904 | L41: ='Long-term illness'!W36 -> 16.71 | M41: ='Long-term illness'!X36 -> 24.108 | N41: ='Long-term illness'!AB36 -> 21.12 | O41: ='Long-term illness'!AC36 -> 11.314 | P41: ='Long-term illness'!AD36 -> 17.29 | R41: ='Long-term illness'!AH36 -> 14.68
B42: No long-term illness | C42: ='Long-term illness'!B37 -> 57.401 | D42: ='Long-term illness'!C37 -> 59.84 | E42: ='Long-term illness'!I37 -> 47.758 | F42: ='Long-term illness'!M37 -> 58.04 | G42: ='Long-term illness'!O37 -> 53.5 | H42: ='Long-term illness'!P37 -> 55.53 | I42: ='Long-term illness'!Q37 -> 53.316 | J42: ='Long-term illness'!U37 -> 52.011 | K42: ='Long-term illness'!V37 -> 45.232 | L42: ='Long-term illness'!W37 -> 51.15 | M42: ='Long-term illness'!X37 -> 46.571 | N42: ='Long-term illness'!AB37 -> 53.469 | O42: ='Long-term illness'!AC37 -> 43.807 | P42: ='Long-term illness'!AD37 -> 56.08 | R42: ='Long-term illness'!AH37 -> 54.2
B43: Lower CI | C43: ='Long-term illness'!B38 -> 52.849 | D43: ='Long-term illness'!C38 -> 56.47 | E43: ='Long-term illness'!I38 -> 42.509 | F43: ='Long-term illness'!M38 -> 54.52 | G43: ='Long-term illness'!O38 -> 50.53 | H43: ='Long-term illness'!P38 -> 52.49 | I43: ='Long-term illness'!Q38 -> 47.273 | J43: ='Long-term illness'!U38 -> 47.429 | K43: ='Long-term illness'!V38 -> 40.637 | L43: ='Long-term illness'!W38 -> 46.57 | M43: ='Long-term illness'!X38 -> 40.135 | N43: ='Long-term illness'!AB38 -> 47.332 | O43: ='Long-term illness'!AC38 -> 38.282 | P43: ='Long-term illness'!AD38 -> 52.03 | R43: ='Long-term illness'!AH38 -> 53.19
B44: Upper CI | C44: ='Long-term illness'!B39 -> 61.952 | D44: ='Long-term illness'!C39 -> 63.21 | E44: ='Long-term illness'!I39 -> 53.008 | F44: ='Long-term illness'!M39 -> 61.57 | G44: ='Long-term illness'!O39 -> 56.48 | H44: ='Long-term illness'!P39 -> 58.56 | I44: ='Long-term illness'!Q39 -> 59.358 | J44: ='Long-term illness'!U39 -> 56.594 | K44: ='Long-term illness'!V39 -> 49.827 | L44: ='Long-term illness'!W39 -> 55.73 | M44: ='Long-term illness'!X39 -> 53.007 | N44: ='Long-term illness'!AB39 -> 59.607 | O44: ='Long-term illness'!AC39 -> 49.332 | P44: ='Long-term illness'!AD39 -> 60.13 | R44: ='Long-term illness'!AH39 -> 55.21
A46: CLs | B46: Limiting long-term illness | C46: =C36-C37 -> 3.941 | D46: =D36-D37 -> 2.64 | E46: =E36-E37 -> 6.093 | F46: =F36-F37 -> 2.63 | G46: =G36-G37 -> 2.69 | H46: =H36-H37 -> 3.21 | I46: =I36-I37 -> 4.74 | J46: 4.381 | K46: 4.961 | L46: 4.06 | M46: 4.221 | N46: 4.264 | O46: 6.605 | P46: 3.49 | R46: =R36-R37 -> 0.95
B47: Non-limiting long-term illness | C47: =C39-C40 -> 2.635 | D47: =D39-D40 -> 2.35 | E47: =E39-E40 -> 2.448 | F47: =F39-F40 -> 2.3 | G47: =G39-G40 -> 1.91 | H47: =H39-H40 -> 1.83 | I47: =I39-I40 -> 3.116 | J47: 2.664 | K47: 2.189 | L47: 2.89 | M47: 3.646 | N47: 4.012 | O47: 2.781 | P47: 3.11 | R47: =R39-R40 -> 0.66
B48: No long-term illness | C48: =C42-C43 -> 4.552 | D48: =D42-D43 -> 3.37 | E48: =E42-E43 -> 5.249 | F48: =F42-F43 -> 3.52 | G48: =G42-G43 -> 2.97 | H48: =H42-H43 -> 3.04 | I48: =I42-I43 -> 6.043 | J48: 4.582 | K48: 4.595 | L48: 4.58 | M48: 6.436 | N48: 6.137 | O48: 5.525 | P48: 4.05 | R48: =R42-R43 -> 1.01

Sheet Alcohol guidelines
A1: Adherence to weekly drinking advicea by Local Authority and sex | N1: INDEX
A4: Aged 16 and over | B4: PLEASE NOTE: Where the sample size for a Local Authority was below 500, the result has been suppressed. This is shown here by *. | P4: 2013/2014/2015/2016 combined
A5: Weekly drinking category | B5: Local Authority
B6: Aberdeen City | C6: Aberdeenshire | D6: Angus | E6: Argyll & Bute | F6: Clackmannanshire | G6: Dumfries & Galloway | H6: Dundee City | I6: East Ayrshire | J6: East Dunbartonshire | K6: East Lothian | L6: East Renfrewshire | M6: Edinburgh, City of | N6: Falkirk | O6: Fife | P6: Glasgow City | Q6: Highland | R6: Inverclyde | S6: Midlothian | T6: Moray | U6: Na h-Eileanan Siar | V6: North Ayrshire | W6: North Lanarkshire | X6: Orkney Islands | Y6: Perth & Kinross | Z6: Renfrewshire | AA6: Scottish Borders | AB6: Shetland Islands | AC6: South Ayrshire | AD6: South Lanarkshire | AE6: Stirling | AF6: West Dunbartonshire | AG6: West Lothian | AH6: Scotland
B7: % | C7: % | D7: % | E7: % | F7: % | G7: % | H7: % | I7: % | J7: % | K7: % | L7: % | M7: % | N7: % | O7: % | P7: % | Q7: % | R7: % | S7: % | T7: % | U7: % | V7: % | W7: % | X7: % | Y7: % | Z7: % | AA7: % | AB7: % | AC7: % | AD7: % | AE7: % | AF7: % | AG7: % | AH7: %
A8: Men
A9: Non drinker | B9: 16.706 | C9: 11.32 | D9: * | E9: * | F9: * | G9: * | H9: * | I9: 11.388 | J9: * | K9: * | L9: * | M9: 11.98 | N9: * | O9: 11.98 | P9: 18.19 | Q9: 8.666 | R9: * | S9: * | T9: * | U9: 19.295 | V9: 14.298 | W9: 16.54 | X9: 10.512 | Y9: * | Z9: * | AA9: * | AB9: 12.131 | AC9: 9.8 | AD9: 12.15 | AE9: * | AF9: * | AG9: * | AH9: 13.2
A10: Lower CI | B10: 12.745 | C10: 7.97 | D10: * | E10: * | F10: * | G10: * | H10: * | I10: 7.347 | J10: * | K10: * | L10: * | M10: 8.86 | N10: * | O10: 9.7 | P10: 14.78 | Q10: 5.139 | R10: * | S10: * | T10: * | U10: 14.542 | V10: 10.761 | W10: 11.74 | X10: 6.932 | Y10: * | Z10: * | AA10: * | AB10: 8.208 | AC10: 6.09 | AD10: 7.49 | AE10: * | AF10: * | AG10: * | AH10: 12.27
A11: Upper CI | B11: 20.667 | C11: 14.68 | D11: * | E11: * | F11: * | G11: * | H11: * | I11: 15.43 | J11: * | K11: * | L11: * | M11: 15.11 | N11: * | O11: 14.26 | P11: 21.6 | Q11: 12.194 | R11: * | S11: * | T11: * | U11: 24.049 | V11: 17.835 | W11: 21.34 | X11: 14.092 | Y11: * | Z11: * | AA11: * | AB11: 16.053 | AC11: 13.511 | AD11: 16.8 | AE11: * | AF11: * | AG11: * | AH11: 14.14
A12: Moderateb | B12: 47.004 | C12: 58.06 | D12: * | E12: * | F12: * | G12: * | H12: * | I12: 51.094 | J12: * | K12: * | L12: * | M12: 44.98 | N12: * | O12: 55.85 | P12: 50.93 | Q12: 56.861 | R12: * | S12: * | T12: * | U12: 48.054 | V12: 45.543 | W12: 49.59 | X12: 53.991 | Y12: * | Z12: * | AA12: * | AB12: 55.031 | AC12: 56.839 | AD12: 54.66 | AE12: * | AF12: * | AG12: * | AH12: 51.87
A13: Lower CI | B13: 41.832 | C13: 53.19 | D13: * | E13: * | F13: * | G13: * | H13: * | I13: 45.721 | J13: * | K13: * | L13: * | M13: 39.95 | N13: * | O13: 52.29 | P13: 46.39 | Q13: 49.574 | R13: * | S13: * | T13: * | U13: 42.259 | V13: 40.346 | W13: 42.95 | X13: 48.634 | Y13: * | Z13: * | AA13: * | AB13: 49.039 | AC13: 51.53 | AD13: 48.51 | AE13: * | AF13: * | AG13: * | AH13: 50.51
A14: Upper CI | B14: 52.175 | C14: 62.93 | D14: * | E14: * | F14: * | G14: * | H14: * | I14: 56.467 | J14: * | K14: * | L14: * | M14: 50.01 | N14: * | O14: 59.41 | P14: 55.46 | Q14: 64.147 | R14: * | S14: * | T14: * | U14: 53.849 | V14: 50.74 | W14: 56.23 | X14: 59.347 | Y14: * | Z14: * | AA14: * | AB14: 61.023 | AC14: 62.147 | AD14: 60.81 | AE14: * | AF14: * | AG14: * | AH14: 53.23
A15: Hazardous/Harmfulc | B15: 36.29 | C15: 30.62 | D15: * | E15: * | F15: * | G15: * | H15: * | I15: 37.518 | J15: * | K15: * | L15: * | M15: 43.04 | N15: * | O15: 32.17 | P15: 30.88 | Q15: 34.473 | R15: * | S15: * | T15: * | U15: 32.65 | V15: 40.159 | W15: 33.87 | X15: 35.498 | Y15: * | Z15: * | AA15: * | AB15: 32.838 | AC15: 33.361 | AD15: 33.19 | AE15: * | AF15: * | AG15: * | AH15: 34.92
A16: Lower CI | B16: 30.64 | C16: 26.39 | D16: * | E16: * | F16: * | G16: * | H16: * | I16: 31.997 | J16: * | K16: * | L16: * | M16: 37.53 | N16: * | O16: 28.91 | P16: 27.02 | Q16: 27.883 | R16: * | S16: * | T16: * | U16: 27.507 | V16: 35.638 | W16: 28.1 | X16: 29.45 | Y16: * | Z16: * | AA16: * | AB16: 27.758 | AC16: 27.872 | AD16: 27.09 | AE16: * | AF16: * | AG16: * | AH16: 33.6
A17: Upper CI | B17: 41.94 | C17: 34.85 | D17: * | E17: * | F17: * | G17: * | H17: * | I17: 43.039 | J17: * | K17: * | L17: * | M17: 48.54 | N17: * | O17: 35.43 | P17: 34.74 | Q17: 41.063 | R17: * | S17: * | T17: * | U17: 37.794 | V17: 44.681 | W17: 39.63 | X17: 41.546 | Y17: * | Z17: * | AA17: * | AB17: 37.918 | AC17: 38.85 | AD17: 39.29 | AE17: * | AF17: * | AG17: * | AH17: 36.25
A19: Women
A20: Non drinker | B20: 22.288 | C20: 16.99 | D20: * | E20: * | F20: * | G20: * | H20: * | I20: 19.373 | J20: * | K20: * | L20: * | M20: 15.39 | N20: * | O20: 18.75 | P20: 21.36 | Q20: 16.703 | R20: * | S20: * | T20: * | U20: 27.289 | V20: 22.237 | W20: 22.5 | X20: 14.745 | Y20: * | Z20: * | AA20: * | AB20: 17.458 | AC20: 16.739 | AD20: 16.36 | AE20: * | AF20: * | AG20: * | AH20: 18.77
A21: Lower CI | B21: 17.975 | C21: 13.49 | D21: * | E21: * | F21: * | G21: * | H21: * | I21: 15.024 | J21: * | K21: * | L21: * | M21: 12.09 | N21: * | O21: 16.26 | P21: 18.18 | Q21: 12.759 | R21: * | S21: * | T21: * | U21: 22.275 | V21: 18.199 | W21: 17.07 | X21: 10.292 | Y21: * | Z21: * | AA21: * | AB21: 12.7 | AC21: 11.465 | AD21: 12.55 | AE21: * | AF21: * | AG21: * | AH21: 17.84
A22: Upper CI | B22: 26.601 | C22: 20.48 | D22: * | E22: * | F22: * | G22: * | H22: * | I22: 23.722 | J22: * | K22: * | L22: * | M22: 18.7 | N22: * | O22: 21.24 | P22: 24.54 | Q22: 20.648 | R22: * | S22: * | T22: * | U22: 32.303 | V22: 26.274 | W22: 27.92 | X22: 19.199 | Y22: * | Z22: * | AA22: * | AB22: 22.216 | AC22: 22.013 | AD22: 20.16 | AE22: * | AF22: * | AG22: * | AH22: 19.7
A23: Moderateb | B23: 58.202 | C23: 68.92 | D23: * | E23: * | F23: * | G23: * | H23: * | I23: 68.503 | J23: * | K23: * | L23: * | M23: 62.93 | N23: * | O23: 66.51 | P23: 63.37 | Q23: 66.563 | R23: * | S23: * | T23: * | U23: 63.651 | V23: 58.605 | W23: 61.95 | X23: 67.276 | Y23: * | Z23: * | AA23: * | AB23: 65.889 | AC23: 65.453 | AD23: 65.88 | AE23: * | AF23: * | AG23: * | AH23: 64.71
A24: Lower CI | B24: 53.238 | C24: 64.59 | D24: * | E24: * | F24: * | G24: * | H24: * | I24: 63.57 | J24: * | K24: * | L24: * | M24: 59.21 | N24: * | O24: 63.87 | P24: 59.99 | Q24: 61.401 | R24: * | S24: * | T24: * | U24: 58.102 | V24: 53.912 | W24: 56.41 | X24: 61.527 | Y24: * | Z24: * | AA24: * | AB24: 59.804 | AC24: 59.664 | AD24: 61.14 | AE24: * | AF24: * | AG24: * | AH24: 63.63
A25: Upper CI | B25: 63.166 | C25: 73.25 | D25: * | E25: * | F25: * | G25: * | H25: * | I25: 73.437 | J25: * | K25: * | L25: * | M25: 66.66 | N25: * | O25: 69.16 | P25: 66.74 | Q25: 71.726 | R25: * | S25: * | T25: * | U25: 69.2 | V25: 63.298 | W25: 67.49 | X25: 73.025 | Y25: * | Z25: * | AA25: * | AB25: 71.975 | AC25: 71.242 | AD25: 70.62 | AE25: * | AF25: * | AG25: * | AH25: 65.8
A26: Hazardous/Harmfulc | B26: 19.51 | C26: 14.09 | D26: * | E26: * | F26: * | G26: * | H26: * | I26: 12.123 | J26: * | K26: * | L26: * | M26: 21.67 | N26: * | O26: 14.74 | P26: 15.28 | Q26: 16.733 | R26: * | S26: * | T26: * | U26: 9.06 | V26: 19.158 | W26: 15.55 | X26: 17.979 | Y26: * | Z26: * | AA26: * | AB26: 16.653 | AC26: 17.808 | AD26: 17.76 | AE26: * | AF26: * | AG26: * | AH26: 16.51
A27: Lower CI | B27: 15.042 | C27: 10.96 | D27: * | E27: * | F27: * | G27: * | H27: * | I27: 8.497 | J27: * | K27: * | L27: * | M27: 18.14 | N27: * | O27: 12.6 | P27: 12.67 | Q27: 13.194 | R27: * | S27: * | T27: * | U27: 5.874 | V27: 15.32 | W27: 11.13 | X27: 13.52 | Y27: * | Z27: * | AA27: * | AB27: 10.77 | AC27: 14.146 | AD27: 13.48 | AE27: * | AF27: * | AG27: * | AH27: 15.63
A28: Upper CI | B28: 23.978 | C28: 17.23 | D28: * | E28: * | F28: * | G28: * | H28: * | I28: 15.75 | J28: * | K28: * | L28: * | M28: 25.21 | N28: * | O28: 16.87 | P28: 17.88 | Q28: 20.272 | R28: * | S28: * | T28: * | U28: 12.246 | V28: 22.997 | W28: 19.97 | X28: 22.438 | Y28: * | Z28: * | AA28: * | AB28: 22.536 | AC28: 21.47 | AD28: 22.05 | AE28: * | AF28: * | AG28: * | AH28: 17.39
A30: All Adults
A31: Non drinker | B31: 19.668 | C31: 14.24 | D31: * | E31: * | F31: * | G31: * | H31: * | I31: 15.79 | J31: * | K31: * | L31: * | M31: 13.63 | N31: * | O31: 15.48 | P31: 19.87 | Q31: 12.965 | R31: * | S31: * | T31: * | U31: 23.278 | V31: 18.498 | W31: 19.78 | X31: 12.633 | Y31: * | Z31: * | AA31: * | AB31: 14.728 | AC31: 13.651 | AD31: 14.31 | AE31: * | AF31: * | AG31: * | AH31: 16.11
A32: Lower CI | B32: 16.496 | C32: 11.54 | D32: * | E32: * | F32: * | G32: * | H32: * | I32: 12.528 | J32: * | K32: * | L32: * | M32: 10.85 | N32: * | O32: 13.51 | P32: 17.12 | Q32: 10.107 | R32: * | S32: * | T32: * | U32: 19.025 | V32: 15.431 | W32: 15.38 | X32: 9.594 | Y32: * | Z32: * | AA32: * | AB32: 11.291 | AC32: 9.849 | AD32: 11.37 | AE32: * | AF32: * | AG32: * | AH32: 15.35
A33: Upper CI | B33: 22.841 | C33: 16.94 | D33: * | E33: * | F33: * | G33: * | H33: * | I33: 19.052 | J33: * | K33: * | L33: * | M33: 16.41 | N33: * | O33: 17.44 | P33: 22.61 | Q33: 15.822 | R33: * | S33: * | T33: * | U33: 27.53 | V33: 21.564 | W33: 24.18 | X33: 15.672 | Y33: * | Z33: * | AA33: * | AB33: 18.164 | AC33: 17.453 | AD33: 17.25 | AE33: * | AF33: * | AG33: * | AH33: 16.86
A34: Moderateb | B34: 52.946 | C34: 63.65 | D34: * | E34: * | F34: * | G34: * | H34: * | I34: 60.692 | J34: * | K34: * | L34: * | M34: 53.66 | N34: * | O34: 61.36 | P34: 57.51 | Q34: 62.05 | R34: * | S34: * | T34: * | U34: 55.824 | V34: 52.453 | W34: 56.31 | X34: 60.647 | Y34: * | Z34: * | AA34: * | AB34: 60.324 | AC34: 61.619 | AD34: 60.42 | AE34: * | AF34: * | AG34: * | AH34: 58.56
A35: Lower CI | B35: 48.73 | C35: 59.82 | D35: * | E35: * | F35: * | G35: * | H35: * | I35: 56.422 | J35: * | K35: * | L35: * | M35: 50.34 | N35: * | O35: 58.94 | P35: 54.36 | Q35: 57.454 | R35: * | S35: * | T35: * | U35: 51.134 | V35: 49.109 | W35: 51.8 | X35: 56.133 | Y35: * | Z35: * | AA35: * | AB35: 55.412 | AC35: 57.403 | AD35: 56.17 | AE35: * | AF35: * | AG35: * | AH35: 57.62
A36: Upper CI | B36: 57.162 | C36: 67.49 | D36: * | E36: * | F36: * | G36: * | H36: * | I36: 64.961 | J36: * | K36: * | L36: * | M36: 56.98 | N36: * | O36: 63.79 | P36: 60.65 | Q36: 66.645 | R36: * | S36: * | T36: * | U36: 60.514 | V36: 55.797 | W36: 60.83 | X36: 65.162 | Y36: * | Z36: * | AA36: * | AB36: 65.236 | AC36: 65.835 | AD36: 64.67 | AE36: * | AF36: * | AG36: * | AH36: 59.51
A37: Hazardous/Harmfulc | B37: 27.386 | C37: 22.11 | D37: * | E37: * | F37: * | G37: * | H37: * | I37: 23.518 | J37: * | K37: * | L37: * | M37: 32.71 | N37: * | O37: 23.16 | P37: 22.63 | Q37: 24.986 | R37: * | S37: * | T37: * | U37: 20.898 | V37: 29.049 | W37: 23.91 | X37: 26.72 | Y37: * | Z37: * | AA37: * | AB37: 24.948 | AC37: 24.731 | AD37: 25.27 | AE37: * | AF37: * | AG37: * | AH37: 25.33
A38: Lower CI | B38: 23.623 | C38: 19.21 | D38: * | E38: * | F38: * | G38: * | H38: * | I38: 19.779 | J38: * | K38: * | L38: * | M38: 29.22 | N38: * | O38: 20.97 | P38: 20.04 | Q38: 21.144 | R38: * | S38: * | T38: * | U38: 17.511 | V38: 25.907 | W38: 19.84 | X38: 22.567 | Y38: * | Z38: * | AA38: * | AB38: 20.386 | AC38: 21.037 | AD38: 21.49 | AE38: * | AF38: * | AG38: * | AH38: 24.47
A39: Upper CI | B39: 31.148 | C39: 25.01 | D39: * | E39: * | F39: * | G39: * | H39: * | I39: 27.257 | J39: * | K39: * | L39: * | M39: 36.2 | N39: * | O39: 25.35 | P39: 25.21 | Q39: 28.827 | R39: * | S39: * | T39: * | U39: 24.285 | V39: 32.192 | W39: 27.97 | X39: 30.872 | Y39: * | Z39: * | AA39: * | AB39: 29.51 | AC39: 28.425 | AD39: 29.05 | AE39: * | AF39: * | AG39: * | AH39: 26.19
A41: Bases (weighted):
A42: Men | B42: 353.015 | C42: 436.47 | D42: 192.61 | E42: 165.798 | F42: 76.663 | G42: 257.088 | H42: 257.251 | I42: 196.92 | J42: 192.753 | K42: 174.521 | L42: 141.122 | M42: 900.27 | N42: 263.808 | O42: 608.18 | P42: 941.85 | Q42: 366.957 | R42: 121.203 | S42: 108.694 | T42: 172.206 | U42: 47.421 | V42: 222.476 | W42: 576.96 | X42: 38.579 | Y42: 224.471 | Z42: 256.97 | AA42: 181.534 | AB42: 41.243 | AC42: 171.038 | AD42: 580.71 | AE42: 154.126 | AF42: 134.177 | AG42: 308.941 | AH42: 8866.02
A43: Women | B43: 399.113 | C43: 463.68 | D43: 211.121 | E43: 151.982 | F43: 85.979 | G43: 269.708 | H43: 278.24 | I43: 241.934 | J43: 185.977 | K43: 191.7 | L43: 158.873 | M43: 842.95 | N43: 270.6 | O43: 650.88 | P43: 1058.14 | Q43: 421.862 | R43: 141.06 | S43: 135.364 | T43: 201.84 | U43: 47.075 | V43: 249.891 | W43: 687.7 | X43: 38.744 | Y43: 267.102 | Z43: 256.009 | AA43: 220.077 | AB43: 39.228 | AC43: 213.226 | AD43: 612.95 | AE43: 189.437 | AF43: 157.576 | AG43: 310.062 | AH43: 9650.08
A44: All Adults | B44: 752.128 | C44: 900.15 | D44: 403.731 | E44: 317.78 | F44: 162.643 | G44: 526.796 | H44: 535.491 | I44: 438.854 | J44: 378.729 | K44: 366.222 | L44: 299.995 | M44: 1743.21 | N44: 534.408 | O44: 1259.06 | P44: 1999.98 | Q44: 788.819 | R44: 262.263 | S44: 244.057 | T44: 374.047 | U44: 94.495 | V44: 472.367 | W44: 1264.66 | X44: 77.322 | Y44: 491.574 | Z44: 512.98 | AA44: 401.611 | AB44: 80.471 | AC44: 384.264 | AD44: 1193.67 | AE44: 343.562 | AF44: 291.753 | AG44: 619.003 | AH44: 18516.1
A45: Bases (unweighted)
A46: Men | B46: 416 | C46: 512 | D46: 134 | E46: 116 | F46: 48 | G46: 218 | H46: 158 | I46: 311 | J46: 148 | K46: 103 | L46: 113 | M46: 582 | N46: 158 | O46: 891 | P46: 644 | Q46: 235 | R46: 94 | S46: 69 | T46: 191 | U46: 382 | V46: 336 | W46: 330 | X46: 233 | Y46: 177 | Z46: 183 | AA46: 196 | AB46: 243 | AC46: 280 | AD46: 354 | AE46: 99 | AF46: 98 | AG46: 165 | AH46: 8217
A47: Women | B47: 536 | C47: 619 | D47: 161 | E47: 134 | F47: 65 | G47: 254 | H47: 191 | I47: 411 | J47: 177 | K47: 124 | L47: 144 | M47: 658 | N47: 195 | O47: 1126 | P47: 877 | Q47: 324 | R47: 125 | S47: 102 | T47: 261 | U47: 454 | V47: 414 | W47: 470 | X47: 269 | Y47: 230 | Z47: 211 | AA47: 275 | AB47: 276 | AC47: 376 | AD47: 457 | AE47: 147 | AF47: 132 | AG47: 211 | AH47: 10406
A48: All Adults | B48: 952 | C48: 1131 | D48: 295 | E48: 250 | F48: 113 | G48: 472 | H48: 349 | I48: 722 | J48: 325 | K48: 227 | L48: 257 | M48: 1240 | N48: 353 | O48: 2017 | P48: 1521 | Q48: 559 | R48: 219 | S48: 171 | T48: 452 | U48: 836 | V48: 750 | W48: 800 | X48: 502 | Y48: 407 | Z48: 394 | AA48: 471 | AB48: 519 | AC48: 656 | AD48: 811 | AE48: 246 | AF48: 230 | AG48: 376 | AH48: 18623
A50: a 2016 CMO recommendations: https://www.gov.uk/government/uploads/system/uploads/attachment_data/file/545937/UK_CMOs__report.pdf
A51: b Up to and including 14 units per week
A52: c Over 14 units per week

Sheet Alcohol guidelines chart
R1: INDEX
C31: Source: Scottish Health Survey
C32: Aberdeen City | D32: Aberdeenshire | E32: East Ayrshire | F32: Edinburgh, City of | G32: Fife | H32: Glasgow City | I32: Highland | J32: Na h-Eileanan Siar | K32: North Ayrshire | L32: North Lanarkshire | M32: Orkney Islands | N32: Shetland Islands | O32: South Ayrshire | P32: South Lanarkshire | R32: Scotland
B33: All Adults
B34: Non drinker | C34: ='Alcohol guidelines'!B31 -> 19.668 | D34: ='Alcohol guidelines'!C31 -> 14.24 | E34: ='Alcohol guidelines'!I31 -> 15.79 | F34: ='Alcohol guidelines'!M31 -> 13.63 | G34: ='Alcohol guidelines'!O31 -> 15.48 | H34: ='Alcohol guidelines'!P31 -> 19.87 | I34: ='Alcohol guidelines'!Q31 -> 12.965 | J34: ='Alcohol guidelines'!U31 -> 23.278 | K34: ='Alcohol guidelines'!V31 -> 18.498 | L34: ='Alcohol guidelines'!W31 -> 19.78 | M34: ='Alcohol guidelines'!X31 -> 12.633 | N34: ='Alcohol guidelines'!AB31 -> 14.728 | O34: ='Alcohol guidelines'!AC31 -> 13.651 | P34: ='Alcohol guidelines'!AD31 -> 14.31 | R34: ='Alcohol guidelines'!AH31 -> 16.11
B35: Lower CI | C35: ='Alcohol guidelines'!B32 -> 16.496 | D35: ='Alcohol guidelines'!C32 -> 11.54 | E35: ='Alcohol guidelines'!I32 -> 12.528 | F35: ='Alcohol guidelines'!M32 -> 10.85 | G35: ='Alcohol guidelines'!O32 -> 13.51 | H35: ='Alcohol guidelines'!P32 -> 17.12 | I35: ='Alcohol guidelines'!Q32 -> 10.107 | J35: ='Alcohol guidelines'!U32 -> 19.025 | K35: ='Alcohol guidelines'!V32 -> 15.431 | L35: ='Alcohol guidelines'!W32 -> 15.38 | M35: ='Alcohol guidelines'!X32 -> 9.594 | N35: ='Alcohol guidelines'!AB32 -> 11.291 | O35: ='Alcohol guidelines'!AC32 -> 9.849 | P35: ='Alcohol guidelines'!AD32 -> 11.37 | R35: ='Alcohol guidelines'!AH32 -> 15.35
B36: Upper CI | C36: ='Alcohol guidelines'!B33 -> 22.841 | D36: ='Alcohol guidelines'!C33 -> 16.94 | E36: ='Alcohol guidelines'!I33 -> 19.052 | F36: ='Alcohol guidelines'!M33 -> 16.41 | G36: ='Alcohol guidelines'!O33 -> 17.44 | H36: ='Alcohol guidelines'!P33 -> 22.61 | I36: ='Alcohol guidelines'!Q33 -> 15.822 | J36: ='Alcohol guidelines'!U33 -> 27.53 | K36: ='Alcohol guidelines'!V33 -> 21.564 | L36: ='Alcohol guidelines'!W33 -> 24.18 | M36: ='Alcohol guidelines'!X33 -> 15.672 | N36: ='Alcohol guidelines'!AB33 -> 18.164 | O36: ='Alcohol guidelines'!AC33 -> 17.453 | P36: ='Alcohol guidelines'!AD33 -> 17.25 | R36: ='Alcohol guidelines'!AH33 -> 16.86
B37: Moderate | C37: ='Alcohol guidelines'!B34 -> 52.946 | D37: ='Alcohol guidelines'!C34 -> 63.65 | E37: ='Alcohol guidelines'!I34 -> 60.692 | F37: ='Alcohol guidelines'!M34 -> 53.66 | G37: ='Alcohol guidelines'!O34 -> 61.36 | H37: ='Alcohol guidelines'!P34 -> 57.51 | I37: ='Alcohol guidelines'!Q34 -> 62.05 | J37: ='Alcohol guidelines'!U34 -> 55.824 | K37: ='Alcohol guidelines'!V34 -> 52.453 | L37: ='Alcohol guidelines'!W34 -> 56.31 | M37: ='Alcohol guidelines'!X34 -> 60.647 | N37: ='Alcohol guidelines'!AB34 -> 60.324 | O37: ='Alcohol guidelines'!AC34 -> 61.619 | P37: ='Alcohol guidelines'!AD34 -> 60.42 | R37: ='Alcohol guidelines'!AH34 -> 58.56
B38: Lower CI | C38: ='Alcohol guidelines'!B35 -> 48.73 | D38: ='Alcohol guidelines'!C35 -> 59.82 | E38: ='Alcohol guidelines'!I35 -> 56.422 | F38: ='Alcohol guidelines'!M35 -> 50.34 | G38: ='Alcohol guidelines'!O35 -> 58.94 | H38: ='Alcohol guidelines'!P35 -> 54.36 | I38: ='Alcohol guidelines'!Q35 -> 57.454 | J38: ='Alcohol guidelines'!U35 -> 51.134 | K38: ='Alcohol guidelines'!V35 -> 49.109 | L38: ='Alcohol guidelines'!W35 -> 51.8 | M38: ='Alcohol guidelines'!X35 -> 56.133 | N38: ='Alcohol guidelines'!AB35 -> 55.412 | O38: ='Alcohol guidelines'!AC35 -> 57.403 | P38: ='Alcohol guidelines'!AD35 -> 56.17 | R38: ='Alcohol guidelines'!AH35 -> 57.62
B39: Upper CI | C39: ='Alcohol guidelines'!B36 -> 57.162 | D39: ='Alcohol guidelines'!C36 -> 67.49 | E39: ='Alcohol guidelines'!I36 -> 64.961 | F39: ='Alcohol guidelines'!M36 -> 56.98 | G39: ='Alcohol guidelines'!O36 -> 63.79 | H39: ='Alcohol guidelines'!P36 -> 60.65 | I39: ='Alcohol guidelines'!Q36 -> 66.645 | J39: ='Alcohol guidelines'!U36 -> 60.514 | K39: ='Alcohol guidelines'!V36 -> 55.797 | L39: ='Alcohol guidelines'!W36 -> 60.83 | M39: ='Alcohol guidelines'!X36 -> 65.162 | N39: ='Alcohol guidelines'!AB36 -> 65.236 | O39: ='Alcohol guidelines'!AC36 -> 65.835 | P39: ='Alcohol guidelines'!AD36 -> 64.67 | R39: ='Alcohol guidelines'!AH36 -> 59.51
B40: Hazardous/harmful | C40: ='Alcohol guidelines'!B37 -> 27.386 | D40: ='Alcohol guidelines'!C37 -> 22.11 | E40: ='Alcohol guidelines'!I37 -> 23.518 | F40: ='Alcohol guidelines'!M37 -> 32.71 | G40: ='Alcohol guidelines'!O37 -> 23.16 | H40: ='Alcohol guidelines'!P37 -> 22.63 | I40: ='Alcohol guidelines'!Q37 -> 24.986 | J40: ='Alcohol guidelines'!U37 -> 20.898 | K40: ='Alcohol guidelines'!V37 -> 29.049 | L40: ='Alcohol guidelines'!W37 -> 23.91 | M40: ='Alcohol guidelines'!X37 -> 26.72 | N40: ='Alcohol guidelines'!AB37 -> 24.948 | O40: ='Alcohol guidelines'!AC37 -> 24.731 | P40: ='Alcohol guidelines'!AD37 -> 25.27 | R40: ='Alcohol guidelines'!AH37 -> 25.33
B41: Lower CI | C41: ='Alcohol guidelines'!B38 -> 23.623 | D41: ='Alcohol guidelines'!C38 -> 19.21 | E41: ='Alcohol guidelines'!I38 -> 19.779 | F41: ='Alcohol guidelines'!M38 -> 29.22 | G41: ='Alcohol guidelines'!O38 -> 20.97 | H41: ='Alcohol guidelines'!P38 -> 20.04 | I41: ='Alcohol guidelines'!Q38 -> 21.144 | J41: ='Alcohol guidelines'!U38 -> 17.511 | K41: ='Alcohol guidelines'!V38 -> 25.907 | L41: ='Alcohol guidelines'!W38 -> 19.84 | M41: ='Alcohol guidelines'!X38 -> 22.567 | N41: ='Alcohol guidelines'!AB38 -> 20.386 | O41: ='Alcohol guidelines'!AC38 -> 21.037 | P41: ='Alcohol guidelines'!AD38 -> 21.49 | R41: ='Alcohol guidelines'!AH38 -> 24.47
B42: Upper CI | C42: ='Alcohol guidelines'!B39 -> 31.148 | D42: ='Alcohol guidelines'!C39 -> 25.01 | E42: ='Alcohol guidelines'!I39 -> 27.257 | F42: ='Alcohol guidelines'!M39 -> 36.2 | G42: ='Alcohol guidelines'!O39 -> 25.35 | H42: ='Alcohol guidelines'!P39 -> 25.21 | I42: ='Alcohol guidelines'!Q39 -> 28.827 | J42: ='Alcohol guidelines'!U39 -> 24.285 | K42: ='Alcohol guidelines'!V39 -> 32.192 | L42: ='Alcohol guidelines'!W39 -> 27.97 | M42: ='Alcohol guidelines'!X39 -> 30.872 | N42: ='Alcohol guidelines'!AB39 -> 29.51 | O42: ='Alcohol guidelines'!AC39 -> 28.425 | P42: ='Alcohol guidelines'!AD39 -> 29.05 | R42: ='Alcohol guidelines'!AH39 -> 26.19
A44: CLs | B44: Non drinker | C44: =C34-C35 -> 3.172 | D44: =D34-D35 -> 2.7 | E44: =E34-E35 -> 3.262 | F44: =F34-F35 -> 2.78 | G44: =G34-G35 -> 1.97 | H44: =H34-H35 -> 2.75 | I44: 2.858 | J44: 4.253 | K44: 3.067 | L44: 4.4 | M44: 3.039 | N44: 3.437 | O44: 3.802 | P44: 2.94 | R44: =R34-R35 -> 0.76
B45: Moderate | C45: =C37-C38 -> 4.216 | D45: =D37-D38 -> 3.83 | E45: =E37-E38 -> 4.27 | F45: =F37-F38 -> 3.32 | G45: =G37-G38 -> 2.42 | H45: =H37-H38 -> 3.15 | I45: 4.596 | J45: 4.69 | K45: 3.344 | L45: 4.51 | M45: 4.514 | N45: 4.912 | O45: 4.216 | P45: 4.25 | R45: =R37-R38 -> 0.94
B46: Hazardous/harmful | C46: =C40-C41 -> 3.763 | D46: =D40-D41 -> 2.9 | E46: =E40-E41 -> 3.739 | F46: =F40-F41 -> 3.49 | G46: =G40-G41 -> 2.19 | H46: =H40-H41 -> 2.59 | I46: 3.842 | J46: 3.387 | K46: 3.142 | L46: 4.07 | M46: 4.153 | N46: 4.562 | O46: 3.694 | P46: 3.78 | R46: =R40-R41 -> 0.86
C47: Based on 2016 CMO recommendations (https://www.gov.uk/government/uploads/system/uploads/attachment_data/file/545937/UK_CMOs__report.pdf) Moderate- Up to and including 14 units per week Hazardous/harmful- Over 14 units per week

Sheet Mean alcohol units
A1: Mean number of alcohol units consumed weekly, by Local Authority and sex | M1: INDEX
A4: Aged 16 and over | B4: PLEASE NOTE: Where the sample size for a Local Authority was below 500, the result has been suppressed. This is shown here by *. | P4: 2013/2014/2015/2016 combined
A5: Mean alcohol drinking | B5: Local Authority
B6: Aberdeen City | C6: Aberdeenshire | D6: Angus | E6: Argyll & Bute | F6: Clackmannanshire | G6: Dumfries & Galloway | H6: Dundee City | I6: East Ayrshire | J6: East Dunbartonshire | K6: East Lothian | L6: East Renfrewshire | M6: Edinburgh, City of | N6: Falkirk | O6: Fife | P6: Glasgow City | Q6: Highland | R6: Inverclyde | S6: Midlothian | T6: Moray | U6: Na h-Eileanan Siar | V6: North Ayrshire | W6: North Lanarkshire | X6: Orkney Islands | Y6: Perth & Kinross | Z6: Renfrewshire | AA6: Scottish Borders | AB6: Shetland Islands | AC6: South Ayrshire | AD6: South Lanarkshire | AE6: Stirling | AF6: West Dunbartonshire | AG6: West Lothian | AH6: Scotland
A7: Men
A8: Weekly mean unitsa | B8: 18.875 | C8: 13.584 | D8: * | E8: * | F8: * | G8: * | H8: * | I8: 18.136 | J8: * | K8: * | L8: * | M8: 19.11 | N8: * | O8: 15.68 | P8: 16.38 | Q8: * | R8: * | S8: * | T8: * | U8: 17.208 | V8: 21.321 | W8: 15.95 | X8: * | Y8: * | Z8: * | AA8: * | AB8: * | AC8: 16.614 | AD8: 16.47 | AE8: * | AF8: * | AG8: * | AH8: 16.41
A9: Lower CI | B9: 15.193 | C9: 11.987 | D9: * | E9: * | F9: * | G9: * | H9: * | I9: 15.599 | J9: * | K9: * | L9: * | M9: 16.67 | N9: * | O9: 13.89 | P9: 14.49 | Q9: * | R9: * | S9: * | T9: * | U9: 14.608 | V9: 18.165 | W9: 12.78 | X9: * | Y9: * | Z9: * | AA9: * | AB9: * | AC9: 12.576 | AD9: 13.75 | AE9: * | AF9: * | AG9: * | AH9: 15.8
A10: Upper CI | B10: 22.556 | C10: 15.182 | D10: * | E10: * | F10: * | G10: * | H10: * | I10: 20.673 | J10: * | K10: * | L10: * | M10: 21.55 | N10: * | O10: 17.46 | P10: 18.27 | Q10: * | R10: * | S10: * | T10: * | U10: 19.808 | V10: 24.478 | W10: 19.11 | X10: * | Y10: * | Z10: * | AA10: * | AB10: * | AC10: 20.652 | AD10: 19.18 | AE10: * | AF10: * | AG10: * | AH10: 17.03
A12: Women
A13: Weekly mean unitsa | B13: 10.454 | C13: 8.545 | D13: * | E13: * | F13: * | G13: * | H13: * | I13: 7.865 | J13: * | K13: * | L13: * | M13: 10.32 | N13: * | O13: 8.24 | P13: 8.4 | Q13: * | R13: * | S13: * | T13: * | U13: 6.089 | V13: 9.922 | W13: 8.82 | X13: * | Y13: * | Z13: * | AA13: * | AB13: * | AC13: 8.425 | AD13: 8.79 | AE13: * | AF13: * | AG13: * | AH13: 8.78
A14: Lower CI | B14: 8.734 | C14: 7.235 | D14: * | E14: * | F14: * | G14: * | H14: * | I14: 6.191 | J14: * | K14: * | L14: * | M14: 9.18 | N14: * | O14: 7.18 | P14: 7.4 | Q14: * | R14: * | S14: * | T14: * | U14: 4.927 | V14: 8.397 | W14: 7.11 | X14: * | Y14: * | Z14: * | AA14: * | AB14: * | AC14: 7.366 | AD14: 6.92 | AE14: * | AF14: * | AG14: * | AH14: 8.46
A15: Upper CI | B15: 12.174 | C15: 9.855 | D15: * | E15: * | F15: * | G15: * | H15: * | I15: 9.54 | J15: * | K15: * | L15: * | M15: 11.47 | N15: * | O15: 9.29 | P15: 9.4 | Q15: * | R15: * | S15: * | T15: * | U15: 7.251 | V15: 11.446 | W15: 10.52 | X15: * | Y15: * | Z15: * | AA15: * | AB15: * | AC15: 9.483 | AD15: 10.66 | AE15: * | AF15: * | AG15: * | AH15: 9.1
A17: All adults
A18: Weekly mean unitsa | B18: 14.564 | C18: 11.067 | D18: * | E18: * | F18: * | G18: * | H18: * | I18: 12.734 | J18: * | K18: * | L18: * | M18: 14.97 | N18: * | O18: 11.98 | P18: 12.25 | Q18: * | R18: * | S18: * | T18: * | U18: 11.976 | V18: 15.57 | W18: 12.21 | X18: * | Y18: * | Z18: * | AA18: * | AB18: * | AC18: 12.206 | AD18: 12.63 | AE18: * | AF18: * | AG18: * | AH18: 12.57
A19: Lower CI | B19: 12.346 | C19: 9.859 | D19: * | E19: * | F19: * | G19: * | H19: * | I19: 11.022 | J19: * | K19: * | L19: * | M19: 13.5 | N19: * | O19: 10.93 | P19: 11.03 | Q19: * | R19: * | S19: * | T19: * | U19: 10.24 | V19: 13.593 | W19: 10.44 | X19: * | Y19: * | Z19: * | AA19: * | AB19: * | AC19: 10.116 | AD19: 10.74 | AE19: * | AF19: * | AG19: * | AH19: 12.2
A20: Upper CI | B20: 16.782 | C20: 12.275 | D20: * | E20: * | F20: * | G20: * | H20: * | I20: 14.446 | J20: * | K20: * | L20: * | M20: 16.43 | N20: * | O20: 13.03 | P20: 13.47 | Q20: * | R20: * | S20: * | T20: * | U20: 13.713 | V20: 17.547 | W20: 13.99 | X20: * | Y20: * | Z20: * | AA20: * | AB20: * | AC20: 14.297 | AD20: 14.53 | AE20: * | AF20: * | AG20: * | AH20: 12.94
A22: Bases (weighted):
A23: Men | B23: 292.677 | C23: 374.617 | D23: 161.949 | E23: 131.36 | F23: 60.856 | G23: 213.33 | H23: 220.744 | I23: 172.806 | J23: 167.02 | K23: 152.15 | L23: 118.81 | M23: 789.9 | N23: 240.549 | O23: 529.32 | P23: 759.55 | Q23: 329.62 | R23: 99.91 | S23: 102.779 | T23: 156.254 | U23: 38.271 | V23: 189.23 | W23: 476.84 | X23: 34.295 | Y23: 204.085 | Z23: 225.143 | AA23: 165.628 | AB23: 35.633 | AC23: 151.319 | AD23: 501.91 | AE23: 139.414 | AF23: 101.795 | AG23: 261.156 | AH23: 7598.92
A24: Women | B24: 307.017 | C24: 373.822 | D24: 163.049 | E24: 118.199 | F24: 64.809 | G24: 218.344 | H24: 234.811 | I24: 191.741 | J24: 161.702 | K24: 160.852 | L24: 131.504 | M24: 703.9 | N24: 208.725 | O24: 522.01 | P24: 815.8 | Q24: 347.362 | R24: 104.999 | S24: 119.085 | T24: 163.961 | U24: 34.01 | V24: 192.675 | W24: 523.64 | X24: 32.829 | Y24: 209.197 | Z24: 208.813 | AA24: 190.708 | AB24: 32.215 | AC24: 176.379 | AD24: 499.87 | AE24: 158.142 | AF24: 98.452 | AG24: 245.508 | AH24: 7714.12
A25: All Adults | B25: 599.693 | C25: 748.439 | D25: 324.997 | E25: 249.559 | F25: 125.666 | G25: 431.674 | H25: 455.556 | I25: 364.546 | J25: 328.722 | K25: 313.002 | L25: 250.315 | M25: 1493.8 | N25: 449.273 | O25: 1051.33 | P25: 1575.35 | Q25: 676.982 | R25: 204.909 | S25: 221.864 | T25: 320.215 | U25: 72.28 | V25: 381.905 | W25: 1000.47 | X25: 67.124 | Y25: 413.281 | Z25: 433.956 | AA25: 356.336 | AB25: 67.848 | AC25: 327.698 | AD25: 1001.78 | AE25: 297.556 | AF25: 200.247 | AG25: 506.664 | AH25: 15313.04
A26: Bases (unweighted)
A27: Men | B27: 340 | C27: 442 | D27: 112 | E27: 91 | F27: 39 | G27: 180 | H27: 136 | I27: 272 | J27: 127 | K27: 87 | L27: 94 | M27: 509 | N27: 142 | O27: 768 | P27: 514 | Q27: 210 | R27: 76 | S27: 65 | T27: 172 | U27: 300 | V27: 285 | W27: 271 | X27: 207 | Y27: 160 | Z27: 161 | AA27: 177 | AB27: 206 | AC27: 248 | AD27: 304 | AE27: 89 | AF27: 73 | AG27: 138 | AH27: 6995
A28: Women | B28: 399 | C28: 497 | D28: 125 | E28: 104 | F28: 50 | G28: 205 | H28: 160 | I28: 327 | J28: 152 | K28: 103 | L28: 119 | M28: 546 | N28: 148 | O28: 904 | P28: 671 | Q28: 261 | R28: 92 | S28: 88 | T28: 212 | U28: 333 | V28: 317 | W28: 353 | X28: 225 | Y28: 180 | Z28: 171 | AA28: 236 | AB28: 225 | AC28: 313 | AD28: 368 | AE28: 120 | AF28: 83 | AG28: 165 | AH28: 8252
A29: All Adults | B29: 739 | C29: 939 | D29: 237 | E29: 195 | F29: 89 | G29: 385 | H29: 296 | I29: 599 | J29: 279 | K29: 190 | L29: 213 | M29: 1055 | N29: 290 | O29: 1672 | P29: 1185 | Q29: 471 | R29: 168 | S29: 153 | T29: 384 | U29: 633 | V29: 602 | W29: 624 | X29: 432 | Y29: 340 | Z29: 332 | AA29: 413 | AB29: 431 | AC29: 561 | AD29: 672 | AE29: 209 | AF29: 156 | AG29: 303 | AH29: 15247
A31: a Among those who drank in the last year

Sheet Mean units chart
R1: INDEX
C31: Source: Scottish Health Survey
C33: Weekly mean units among those who drank in the last year
C34: Aberdeen City | D34: Aberdeenshire | E34: East Ayrshire | F34: Edinburgh, City of | G34: Fife | H34: Glasgow City | I34: Na h-Eileanan Siar | J34: North Ayrshire | K34: North Lanarkshire | L34: South Ayrshire | M34: South Lanarkshire | O34: Scotland
B35: All Adults
B36: Weekly mean units | C36: ='Mean alcohol units'!B18 -> 14.564 | D36: ='Mean alcohol units'!C18 -> 11.067 | E36: ='Mean alcohol units'!I18 -> 12.734 | F36: ='Mean alcohol units'!M18 -> 14.97 | G36: ='Mean alcohol units'!O18 -> 11.98 | H36: ='Mean alcohol units'!P18 -> 12.25 | I36: ='Mean alcohol units'!U18 -> 11.976 | J36: ='Mean alcohol units'!V18 -> 15.57 | K36: ='Mean alcohol units'!W18 -> 12.21 | L36: ='Mean alcohol units'!AC18 -> 12.206 | M36: ='Mean alcohol units'!AD18 -> 12.63 | O36: ='Mean alcohol units'!AH18 -> 12.57
B37: Lower CI | C37: ='Mean alcohol units'!B19 -> 12.346 | D37: ='Mean alcohol units'!C19 -> 9.859 | E37: ='Mean alcohol units'!I19 -> 11.022 | F37: ='Mean alcohol units'!M19 -> 13.5 | G37: ='Mean alcohol units'!O19 -> 10.93 | H37: ='Mean alcohol units'!P19 -> 11.03 | I37: ='Mean alcohol units'!U19 -> 10.24 | J37: ='Mean alcohol units'!V19 -> 13.593 | K37: ='Mean alcohol units'!W19 -> 10.44 | L37: ='Mean alcohol units'!AC19 -> 10.116 | M37: ='Mean alcohol units'!AD19 -> 10.74 | O37: ='Mean alcohol units'!AH19 -> 12.2
B38: Upper CI | C38: ='Mean alcohol units'!B20 -> 16.782 | D38: ='Mean alcohol units'!C20 -> 12.275 | E38: ='Mean alcohol units'!I20 -> 14.446 | F38: ='Mean alcohol units'!M20 -> 16.43 | G38: ='Mean alcohol units'!O20 -> 13.03 | H38: ='Mean alcohol units'!P20 -> 13.47 | I38: ='Mean alcohol units'!U20 -> 13.713 | J38: ='Mean alcohol units'!V20 -> 17.547 | K38: ='Mean alcohol units'!W20 -> 13.99 | L38: ='Mean alcohol units'!AC20 -> 14.297 | M38: ='Mean alcohol units'!AD20 -> 14.53 | O38: ='Mean alcohol units'!AH20 -> 12.94
A40: CLs | C40: =C36-C37 -> 2.218 | D40: =D36-D37 -> 1.208 | E40: =E36-E37 -> 1.712 | F40: =F36-F37 -> 1.47 | G40: =G36-G37 -> 1.05 | H40: =H36-H37 -> 1.22 | I40: =I36-I37 -> 1.736 | J40: 1.977 | K40: 1.77 | L40: 2.09 | M40: 1.89 | O40: =O36-O37 -> 0.37

Sheet Smoking behaviour
A1: Smoking behaviour, three categories, by Local Authority and sex | M1: INDEX
A4: Aged 16 and over | B4: PLEASE NOTE: Where the sample size for a Local Authority was below 500, the result has been suppressed. This is shown here by *. | P4: 2013/2014/2015/2016 combined
A5: Smoking behaviour, three categories | B5: Local Authority
B6: Aberdeen City | C6: Aberdeenshire | D6: Angus | E6: Argyll & Bute | F6: Clackmannanshire | G6: Dumfries & Galloway | H6: Dundee City | I6: East Ayrshire | J6: East Dunbartonshire | K6: East Lothian | L6: East Renfrewshire | M6: Edinburgh, City of | N6: Falkirk | O6: Fife | P6: Glasgow City | Q6: Highland | R6: Inverclyde | S6: Midlothian | T6: Moray | U6: Na h-Eileanan Siar | V6: North Ayrshire | W6: North Lanarkshire | X6: Orkney Islands | Y6: Perth & Kinross | Z6: Renfrewshire | AA6: Scottish Borders | AB6: Shetland Islands | AC6: South Ayrshire | AD6: South Lanarkshire | AE6: Stirling | AF6: West Dunbartonshire | AG6: West Lothian | AH6: Scotland
B7: % | C7: % | D7: % | E7: % | F7: % | G7: % | H7: % | I7: % | J7: % | K7: % | L7: % | M7: % | N7: % | O7: % | P7: % | Q7: % | R7: % | S7: % | T7: % | U7: % | V7: % | W7: % | X7: % | Y7: % | Z7: % | AA7: % | AB7: % | AC7: % | AD7: % | AE7: % | AF7: % | AG7: % | AH7: %
A8: Men
A9: Never smoked, or ex-occasional | B9: 49.946 | C9: 52.66 | D9: * | E9: * | F9: * | G9: * | H9: * | I9: 51.992 | J9: * | K9: * | L9: * | M9: 57.91 | N9: * | O9: 48.86 | P9: 47.92 | Q9: 51.273 | R9: * | S9: * | T9: * | U9: 50.551 | V9: 44.661 | W9: 49.04 | X9: 50.903 | Y9: * | Z9: * | AA9: * | AB9: 53.363 | AC9: 54.875 | AD9: 53.68 | AE9: * | AF9: * | AG9: * | AH9: 52.06
A10: Lower CI | B10: 44.04 | C10: 48.03 | D10: * | E10: * | F10: * | G10: * | H10: * | I10: 45.959 | J10: * | K10: * | L10: * | M10: 53.14 | N10: * | O10: 45.15 | P10: 43.86 | Q10: 43.592 | R10: * | S10: * | T10: * | U10: 45.543 | V10: 39.03 | W10: 43.12 | X10: 43.018 | Y10: * | Z10: * | AA10: * | AB10: 48.777 | AC10: 49.743 | AD10: 47.54 | AE10: * | AF10: * | AG10: * | AH10: 50.71
A11: Upper CI | B11: 55.851 | C11: 57.29 | D11: * | E11: * | F11: * | G11: * | H11: * | I11: 58.024 | J11: * | K11: * | L11: * | M11: 62.68 | N11: * | O11: 52.57 | P11: 51.97 | Q11: 58.955 | R11: * | S11: * | T11: * | U11: 55.559 | V11: 50.291 | W11: 54.95 | X11: 58.788 | Y11: * | Z11: * | AA11: * | AB11: 57.948 | AC11: 60.007 | AD11: 59.82 | AE11: * | AF11: * | AG11: * | AH11: 53.41
A12: Ex-regular smoker, or occasional | B12: 20.827 | C12: 29.25 | D12: * | E12: * | F12: * | G12: * | H12: * | I12: 25.98 | J12: * | K12: * | L12: * | M12: 23.13 | N12: * | O12: 27.43 | P12: 21.2 | Q12: 29.074 | R12: * | S12: * | T12: * | U12: 29.126 | V12: 25.302 | W12: 25.1 | X12: 28.464 | Y12: * | Z12: * | AA12: * | AB12: 23.378 | AC12: 26.993 | AD12: 27.36 | AE12: * | AF12: * | AG12: * | AH12: 25.41
A13: Lower CI | B13: 17.467 | C13: 25.33 | D13: * | E13: * | F13: * | G13: * | H13: * | I13: 20.807 | J13: * | K13: * | L13: * | M13: 19.58 | N13: * | O13: 24.24 | P13: 18.17 | Q13: 23.518 | R13: * | S13: * | T13: * | U13: 24.403 | V13: 20.953 | W13: 19.56 | X13: 22.046 | Y13: * | Z13: * | AA13: * | AB13: 17.664 | AC13: 22.502 | AD13: 22.67 | AE13: * | AF13: * | AG13: * | AH13: 24.32
A14: Upper CI | B14: 24.186 | C14: 33.16 | D14: * | E14: * | F14: * | G14: * | H14: * | I14: 31.152 | J14: * | K14: * | L14: * | M14: 26.67 | N14: * | O14: 30.62 | P14: 24.22 | Q14: 34.629 | R14: * | S14: * | T14: * | U14: 33.848 | V14: 29.652 | W14: 30.64 | X14: 34.883 | Y14: * | Z14: * | AA14: * | AB14: 29.093 | AC14: 31.484 | AD14: 32.05 | AE14: * | AF14: * | AG14: * | AH14: 26.49
A15: Regular smoker | B15: 29.228 | C15: 18.09 | D15: * | E15: * | F15: * | G15: * | H15: * | I15: 22.029 | J15: * | K15: * | L15: * | M15: 18.96 | N15: * | O15: 23.71 | P15: 30.89 | Q15: 19.653 | R15: * | S15: * | T15: * | U15: 20.324 | V15: 30.037 | W15: 25.86 | X15: 20.633 | Y15: * | Z15: * | AA15: * | AB15: 23.259 | AC15: 18.132 | AD15: 18.96 | AE15: * | AF15: * | AG15: * | AH15: 22.53
A16: Lower CI | B16: 23.366 | C16: 14.16 | D16: * | E16: * | F16: * | G16: * | H16: * | I16: 17.873 | J16: * | K16: * | L16: * | M16: 15.55 | N16: * | O16: 20.43 | P16: 26.75 | Q16: 13.56 | R16: * | S16: * | T16: * | U16: 15.882 | V16: 24.987 | W16: 21.02 | X16: 14.279 | Y16: * | Z16: * | AA16: * | AB16: 17.72 | AC16: 12.861 | AD16: 14.13 | AE16: * | AF16: * | AG16: * | AH16: 21.39
A17: Upper CI | B17: 35.089 | C17: 22.03 | D17: * | E17: * | F17: * | G17: * | H17: * | I17: 26.185 | J17: * | K17: * | L17: * | M17: 22.36 | N17: * | O17: 27 | P17: 35.02 | Q17: 25.746 | R17: * | S17: * | T17: * | U17: 24.765 | V17: 35.086 | W17: 30.71 | X17: 26.987 | Y17: * | Z17: * | AA17: * | AB17: 28.798 | AC17: 23.402 | AD17: 23.79 | AE17: * | AF17: * | AG17: * | AH17: 23.67
A19: Women
A20: Never smoked, or ex-occasional | B20: 61.826 | C20: 61.69 | D20: * | E20: * | F20: * | G20: * | H20: * | I20: 56.108 | J20: * | K20: * | L20: * | M20: 60.97 | N20: * | O20: 56.95 | P20: 54.91 | Q20: 54.265 | R20: * | S20: * | T20: * | U20: 61.27 | V20: 51.979 | W20: 50.65 | X20: 64.193 | Y20: * | Z20: * | AA20: * | AB20: 53.701 | AC20: 58.735 | AD20: 59.67 | AE20: * | AF20: * | AG20: * | AH20: 56.83
A21: Lower CI | B21: 57.678 | C21: 57.4 | D21: * | E21: * | F21: * | G21: * | H21: * | I21: 51.197 | J21: * | K21: * | L21: * | M21: 56.07 | N21: * | O21: 53.74 | P21: 50.95 | Q21: 47.822 | R21: * | S21: * | T21: * | U21: 56.114 | V21: 45.74 | W21: 45.5 | X21: 58.425 | Y21: * | Z21: * | AA21: * | AB21: 48.381 | AC21: 53.748 | AD21: 54.11 | AE21: * | AF21: * | AG21: * | AH21: 55.58
A22: Upper CI | B22: 65.974 | C22: 65.98 | D22: * | E22: * | F22: * | G22: * | H22: * | I22: 61.018 | J22: * | K22: * | L22: * | M22: 65.87 | N22: * | O22: 60.16 | P22: 58.87 | Q22: 60.709 | R22: * | S22: * | T22: * | U22: 66.426 | V22: 58.217 | W22: 55.81 | X22: 69.961 | Y22: * | Z22: * | AA22: * | AB22: 59.021 | AC22: 63.722 | AD22: 65.23 | AE22: * | AF22: * | AG22: * | AH22: 58.09
A23: Ex-regular smoker, or occasional | B23: 18.343 | C23: 21.94 | D23: * | E23: * | F23: * | G23: * | H23: * | I23: 25.968 | J23: * | K23: * | L23: * | M23: 22.81 | N23: * | O23: 21.63 | P23: 19.5 | Q23: 26.836 | R23: * | S23: * | T23: * | U23: 22.844 | V23: 26.27 | W23: 26.06 | X23: 22.484 | Y23: * | Z23: * | AA23: * | AB23: 27.384 | AC23: 23.034 | AD23: 23.2 | AE23: * | AF23: * | AG23: * | AH23: 23.1
A24: Lower CI | B24: 15.189 | C24: 18.4 | D24: * | E24: * | F24: * | G24: * | H24: * | I24: 21.698 | J24: * | K24: * | L24: * | M24: 18.69 | N24: * | O24: 18.99 | P24: 17.06 | Q24: 21.159 | R24: * | S24: * | T24: * | U24: 18.942 | V24: 20.903 | W24: 21.95 | X24: 17.651 | Y24: * | Z24: * | AA24: * | AB24: 21.732 | AC24: 18.8 | AD24: 19.24 | AE24: * | AF24: * | AG24: * | AH24: 22.1
A25: Upper CI | B25: 21.497 | C25: 25.48 | D25: * | E25: * | F25: * | G25: * | H25: * | I25: 30.239 | J25: * | K25: * | L25: * | M25: 26.92 | N25: * | O25: 24.28 | P25: 21.93 | Q25: 32.512 | R25: * | S25: * | T25: * | U25: 26.747 | V25: 31.638 | W25: 30.18 | X25: 27.316 | Y25: * | Z25: * | AA25: * | AB25: 33.036 | AC25: 27.268 | AD25: 27.16 | AE25: * | AF25: * | AG25: * | AH25: 24.1
A26: Regular smoker | B26: 19.831 | C26: 16.37 | D26: * | E26: * | F26: * | G26: * | H26: * | I26: 17.924 | J26: * | K26: * | L26: * | M26: 16.23 | N26: * | O26: 21.41 | P26: 25.59 | Q26: 18.899 | R26: * | S26: * | T26: * | U26: 15.886 | V26: 21.751 | W26: 23.28 | X26: 13.324 | Y26: * | Z26: * | AA26: * | AB26: 18.915 | AC26: 18.231 | AD26: 17.13 | AE26: * | AF26: * | AG26: * | AH26: 20.07
A27: Lower CI | B27: 16.418 | C27: 13 | D27: * | E27: * | F27: * | G27: * | H27: * | I27: 14.193 | J27: * | K27: * | L27: * | M27: 12.41 | N27: * | O27: 18.53 | P27: 22.23 | Q27: 13.921 | R27: * | S27: * | T27: * | U27: 12.144 | V27: 17.609 | W27: 19.54 | X27: 9.371 | Y27: * | Z27: * | AA27: * | AB27: 13.858 | AC27: 13.889 | AD27: 13.19 | AE27: * | AF27: * | AG27: * | AH27: 19.08
A28: Upper CI | B28: 23.244 | C28: 19.74 | D28: * | E28: * | F28: * | G28: * | H28: * | I28: 21.656 | J28: * | K28: * | L28: * | M28: 20.04 | N28: * | O28: 24.3 | P28: 28.95 | Q28: 23.877 | R28: * | S28: * | T28: * | U28: 19.628 | V28: 25.893 | W28: 27.03 | X28: 17.277 | Y28: * | Z28: * | AA28: * | AB28: 23.972 | AC28: 22.574 | AD28: 21.08 | AE28: * | AF28: * | AG28: * | AH28: 21.05
A30: All Adults
A31: Never smoked, or ex-occasional | B31: 56.199 | C31: 57.33 | D31: * | E31: * | F31: * | G31: * | H31: * | I31: 54.25 | J31: * | K31: * | L31: * | M31: 59.39 | N31: * | O31: 53.05 | P31: 51.62 | Q31: 52.873 | R31: * | S31: * | T31: * | U31: 55.93 | V31: 48.515 | W31: 49.91 | X31: 57.554 | Y31: * | Z31: * | AA31: * | AB31: 53.526 | AC31: 57.002 | AD31: 56.77 | AE31: * | AF31: * | AG31: * | AH31: 54.55
A32: Lower CI | B32: 51.891 | C32: 53.93 | D32: * | E32: * | F32: * | G32: * | H32: * | I32: 49.953 | J32: * | K32: * | L32: * | M32: 55.61 | N32: * | O32: 50.52 | P32: 48.53 | Q32: 47.128 | R32: * | S32: * | T32: * | U32: 52.388 | V32: 44.213 | W32: 45.41 | X32: 51.843 | Y32: * | Z32: * | AA32: * | AB32: 49.642 | AC32: 53.078 | AD32: 52.11 | AE32: * | AF32: * | AG32: * | AH32: 53.5
A33: Upper CI | B33: 60.507 | C33: 60.73 | D33: * | E33: * | F33: * | G33: * | H33: * | I33: 58.548 | J33: * | K33: * | L33: * | M33: 63.16 | N33: * | O33: 55.58 | P33: 54.72 | Q33: 58.618 | R33: * | S33: * | T33: * | U33: 59.472 | V33: 52.816 | W33: 54.41 | X33: 63.265 | Y33: * | Z33: * | AA33: * | AB33: 57.411 | AC33: 60.926 | AD33: 61.42 | AE33: * | AF33: * | AG33: * | AH33: 55.59
A34: Ex-regular smoker, or occasional | B34: 19.519 | C34: 25.47 | D34: * | E34: * | F34: * | G34: * | H34: * | I34: 25.973 | J34: * | K34: * | L34: * | M34: 22.97 | N34: * | O34: 24.43 | P34: 20.3 | Q34: 27.877 | R34: * | S34: * | T34: * | U34: 25.973 | V34: 25.812 | W34: 25.62 | X34: 25.471 | Y34: * | Z34: * | AA34: * | AB34: 25.318 | AC34: 24.811 | AD34: 25.22 | AE34: * | AF34: * | AG34: * | AH34: 24.21
A35: Lower CI | B35: 17.031 | C35: 22.72 | D35: * | E35: * | F35: * | G35: * | H35: * | I35: 22.374 | J35: * | K35: * | L35: * | M35: 20.12 | N35: * | O35: 22.36 | P35: 18.27 | Q35: 23.407 | R35: * | S35: * | T35: * | U35: 22.568 | V35: 22.08 | W35: 21.83 | X35: 21.945 | Y35: * | Z35: * | AA35: * | AB35: 20.36 | AC35: 21.614 | AD35: 22.04 | AE35: * | AF35: * | AG35: * | AH35: 23.43
A36: Upper CI | B36: 22.007 | C36: 28.22 | D36: * | E36: * | F36: * | G36: * | H36: * | I36: 29.573 | J36: * | K36: * | L36: * | M36: 25.83 | N36: * | O36: 26.5 | P36: 22.32 | Q36: 32.346 | R36: * | S36: * | T36: * | U36: 29.378 | V36: 29.545 | W36: 29.41 | X36: 28.998 | Y36: * | Z36: * | AA36: * | AB36: 30.275 | AC36: 28.008 | AD36: 28.39 | AE36: * | AF36: * | AG36: * | AH36: 24.98
A37: Regular smoker | B37: 24.281 | C37: 17.2 | D37: * | E37: * | F37: * | G37: * | H37: * | I37: 19.776 | J37: * | K37: * | L37: * | M37: 17.64 | N37: * | O37: 22.52 | P37: 28.08 | Q37: 19.25 | R37: * | S37: * | T37: * | U37: 18.096 | V37: 25.673 | W37: 24.47 | X37: 16.975 | Y37: * | Z37: * | AA37: * | AB37: 21.156 | AC37: 18.187 | AD37: 18.02 | AE37: * | AF37: * | AG37: * | AH37: 21.25
A38: Lower CI | B38: 20.536 | C38: 14.45 | D38: * | E38: * | F38: * | G38: * | H38: * | I38: 16.492 | J38: * | K38: * | L38: * | M38: 14.74 | N38: * | O38: 20.08 | P38: 25.3 | Q38: 15.338 | R38: * | S38: * | T38: * | U38: 14.988 | V38: 22.614 | W38: 20.97 | X38: 12.516 | Y38: * | Z38: * | AA38: * | AB38: 16.963 | AC38: 14.619 | AD38: 14.35 | AE38: * | AF38: * | AG38: * | AH38: 20.4
A39: Upper CI | B39: 28.027 | C39: 19.95 | D39: * | E39: * | F39: * | G39: * | H39: * | I39: 23.061 | J39: * | K39: * | L39: * | M39: 20.53 | N39: * | O39: 24.97 | P39: 30.86 | Q39: 23.162 | R39: * | S39: * | T39: * | U39: 21.204 | V39: 28.732 | W39: 27.97 | X39: 21.434 | Y39: * | Z39: * | AA39: * | AB39: 25.348 | AC39: 21.754 | AD39: 21.68 | AE39: * | AF39: * | AG39: * | AH39: 22.1
A42: Bases (weighted):
A43: Men | B43: 363.026 | C43: 437.36 | D43: 192.61 | E43: 165.798 | F43: 76.663 | G43: 258.508 | H43: 260.443 | I43: 200.984 | J43: 192.753 | K43: 177.209 | L43: 143.898 | M43: 907.05 | N43: 263.808 | O43: 616.07 | P43: 957.2 | Q43: 373.375 | R43: 129.299 | S43: 110.048 | T43: 172.206 | U43: 48.038 | V43: 225.798 | W43: 590.9 | X43: 38.805 | Y43: 225.547 | Z43: 260.516 | AA43: 183.856 | AB43: 41.798 | AC43: 174.241 | AD43: 581.67 | AE43: 155.993 | AF43: 134.177 | AG43: 314.467 | AH43: 8974.11
A44: Women | B44: 403.457 | C44: 468.18 | D44: 214.28 | E44: 154.284 | F44: 87.908 | G44: 267.191 | H44: 280.39 | I44: 244.375 | J44: 185.977 | K44: 197.648 | L44: 160.611 | M44: 848.39 | N44: 271.755 | O44: 660.75 | P44: 1079.96 | Q44: 429.052 | R44: 143.86 | S44: 137.367 | T44: 204.394 | U44: 48.391 | V44: 251.176 | W44: 692.58 | X44: 38.875 | Y44: 268.713 | Z44: 257.548 | AA44: 221.46 | AB44: 39.228 | AC44: 213.921 | AD44: 618.9 | AE44: 191.225 | AF44: 159.316 | AG44: 310.062 | AH44: 9751.22
A45: All Adults | B45: 766.483 | C45: 905.54 | D45: 406.89 | E45: 320.081 | F45: 164.571 | G45: 525.699 | H45: 540.833 | I45: 445.359 | J45: 378.729 | K45: 374.856 | L45: 304.509 | M45: 1755.44 | N45: 535.564 | O45: 1276.81 | P45: 2037.15 | Q45: 802.427 | R45: 273.159 | S45: 247.415 | T45: 376.6 | U45: 96.429 | V45: 476.975 | W45: 1283.48 | X45: 77.679 | Y45: 494.26 | Z45: 518.064 | AA45: 405.316 | AB45: 81.026 | AC45: 388.162 | AD45: 1200.57 | AE45: 347.218 | AF45: 293.493 | AG45: 624.529 | AH45: 18725.33
A46: Bases (unweighted)
A47: Men | B47: 425 | C47: 513 | D47: 134 | E47: 116 | F47: 48 | G47: 219 | H47: 159 | I47: 316 | J47: 148 | K47: 104 | L47: 114 | M47: 586 | N47: 158 | O47: 899 | P47: 651 | Q47: 238 | R47: 98 | S47: 70 | T47: 191 | U47: 386 | V47: 340 | W47: 338 | X47: 234 | Y47: 178 | Z47: 185 | AA47: 199 | AB47: 246 | AC47: 285 | AD47: 355 | AE47: 100 | AF47: 98 | AG47: 167 | AH47: 8298
A48: Women | B48: 540 | C48: 623 | D48: 163 | E48: 135 | F48: 66 | G48: 253 | H48: 192 | I48: 414 | J48: 177 | K48: 128 | L48: 145 | M48: 661 | N48: 196 | O48: 1139 | P48: 892 | Q48: 327 | R48: 127 | S48: 103 | T48: 264 | U48: 460 | V48: 416 | W48: 472 | X48: 270 | Y48: 231 | Z48: 212 | AA48: 277 | AB48: 276 | AC48: 377 | AD48: 459 | AE48: 148 | AF48: 133 | AG48: 211 | AH48: 10487
A49: All Adults | B49: 965 | C49: 1136 | D49: 297 | E49: 251 | F49: 114 | G49: 472 | H49: 351 | I49: 730 | J49: 325 | K49: 232 | L49: 259 | M49: 1247 | N49: 354 | O49: 2038 | P49: 1543 | Q49: 565 | R49: 225 | S49: 173 | T49: 455 | U49: 846 | V49: 756 | W49: 810 | X49: 504 | Y49: 409 | Z49: 397 | AA49: 476 | AB49: 522 | AC49: 662 | AD49: 814 | AE49: 248 | AF49: 231 | AG49: 378 | AH49: 18785

Sheet Smoking chart
R1: INDEX
C31: Source: Scottish Health Survey
C34: Aberdeen City | D34: Aberdeenshire | E34: East Ayrshire | F34: Edinburgh, City of | G34: Fife | H34: Glasgow City | I34: Highland | J34: Na h-Eileanan Siar | K34: North Ayrshire | L34: North Lanarkshire | M34: Orkney Islands | N34: Shetland Islands | O34: South Ayrshire | P34: South Lanarkshire | R34: Scotland
B35: All Adults
B36: Never smoked, or ex-occasional | C36: ='Smoking behaviour'!B31 -> 56.199 | D36: ='Smoking behaviour'!C31 -> 57.33 | E36: ='Smoking behaviour'!I31 -> 54.25 | F36: ='Smoking behaviour'!M31 -> 59.39 | G36: ='Smoking behaviour'!O31 -> 53.05 | H36: ='Smoking behaviour'!P31 -> 51.62 | I36: ='Smoking behaviour'!Q31 -> 52.873 | J36: ='Smoking behaviour'!U31 -> 55.93 | K36: ='Smoking behaviour'!V31 -> 48.515 | L36: ='Smoking behaviour'!W31 -> 49.91 | M36: ='Smoking behaviour'!X31 -> 57.554 | N36: ='Smoking behaviour'!AB31 -> 53.526 | O36: ='Smoking behaviour'!AC31 -> 57.002 | P36: ='Smoking behaviour'!AD31 -> 56.77 | R36: ='Smoking behaviour'!AH31 -> 54.55
B37: Lower CI | C37: ='Smoking behaviour'!B32 -> 51.891 | D37: ='Smoking behaviour'!C32 -> 53.93 | E37: ='Smoking behaviour'!I32 -> 49.953 | F37: ='Smoking behaviour'!M32 -> 55.61 | G37: ='Smoking behaviour'!O32 -> 50.52 | H37: ='Smoking behaviour'!P32 -> 48.53 | I37: ='Smoking behaviour'!Q32 -> 47.128 | J37: ='Smoking behaviour'!U32 -> 52.388 | K37: ='Smoking behaviour'!V32 -> 44.213 | L37: ='Smoking behaviour'!W32 -> 45.41 | M37: ='Smoking behaviour'!X32 -> 51.843 | N37: ='Smoking behaviour'!AB32 -> 49.642 | O37: ='Smoking behaviour'!AC32 -> 53.078 | P37: ='Smoking behaviour'!AD32 -> 52.11 | R37: ='Smoking behaviour'!AH32 -> 53.5
B38: Upper CI | C38: ='Smoking behaviour'!B33 -> 60.507 | D38: ='Smoking behaviour'!C33 -> 60.73 | E38: ='Smoking behaviour'!I33 -> 58.548 | F38: ='Smoking behaviour'!M33 -> 63.16 | G38: ='Smoking behaviour'!O33 -> 55.58 | H38: ='Smoking behaviour'!P33 -> 54.72 | I38: ='Smoking behaviour'!Q33 -> 58.618 | J38: ='Smoking behaviour'!U33 -> 59.472 | K38: ='Smoking behaviour'!V33 -> 52.816 | L38: ='Smoking behaviour'!W33 -> 54.41 | M38: ='Smoking behaviour'!X33 -> 63.265 | N38: ='Smoking behaviour'!AB33 -> 57.411 | O38: ='Smoking behaviour'!AC33 -> 60.926 | P38: ='Smoking behaviour'!AD33 -> 61.42 | R38: ='Smoking behaviour'!AH33 -> 55.59
B39: Ex-regular smoker, or occasional | C39: ='Smoking behaviour'!B34 -> 19.519 | D39: ='Smoking behaviour'!C34 -> 25.47 | E39: ='Smoking behaviour'!I34 -> 25.973 | F39: ='Smoking behaviour'!M34 -> 22.97 | G39: ='Smoking behaviour'!O34 -> 24.43 | H39: ='Smoking behaviour'!P34 -> 20.3 | I39: ='Smoking behaviour'!Q34 -> 27.877 | J39: ='Smoking behaviour'!U34 -> 25.973 | K39: ='Smoking behaviour'!V34 -> 25.812 | L39: ='Smoking behaviour'!W34 -> 25.62 | M39: ='Smoking behaviour'!X34 -> 25.471 | N39: ='Smoking behaviour'!AB34 -> 25.318 | O39: ='Smoking behaviour'!AC34 -> 24.811 | P39: ='Smoking behaviour'!AD34 -> 25.22 | R39: ='Smoking behaviour'!AH34 -> 24.21
B40: Lower CI | C40: ='Smoking behaviour'!B35 -> 17.031 | D40: ='Smoking behaviour'!C35 -> 22.72 | E40: ='Smoking behaviour'!I35 -> 22.374 | F40: ='Smoking behaviour'!M35 -> 20.12 | G40: ='Smoking behaviour'!O35 -> 22.36 | H40: ='Smoking behaviour'!P35 -> 18.27 | I40: ='Smoking behaviour'!Q35 -> 23.407 | J40: ='Smoking behaviour'!U35 -> 22.568 | K40: ='Smoking behaviour'!V35 -> 22.08 | L40: ='Smoking behaviour'!W35 -> 21.83 | M40: ='Smoking behaviour'!X35 -> 21.945 | N40: ='Smoking behaviour'!AB35 -> 20.36 | O40: ='Smoking behaviour'!AC35 -> 21.614 | P40: ='Smoking behaviour'!AD35 -> 22.04 | R40: ='Smoking behaviour'!AH35 -> 23.43
B41: Upper CI | C41: ='Smoking behaviour'!B36 -> 22.007 | D41: ='Smoking behaviour'!C36 -> 28.22 | E41: ='Smoking behaviour'!I36 -> 29.573 | F41: ='Smoking behaviour'!M36 -> 25.83 | G41: ='Smoking behaviour'!O36 -> 26.5 | H41: ='Smoking behaviour'!P36 -> 22.32 | I41: ='Smoking behaviour'!Q36 -> 32.346 | J41: ='Smoking behaviour'!U36 -> 29.378 | K41: ='Smoking behaviour'!V36 -> 29.545 | L41: ='Smoking behaviour'!W36 -> 29.41 | M41: ='Smoking behaviour'!X36 -> 28.998 | N41: ='Smoking behaviour'!AB36 -> 30.275 | O41: ='Smoking behaviour'!AC36 -> 28.008 | P41: ='Smoking behaviour'!AD36 -> 28.39 | R41: ='Smoking behaviour'!AH36 -> 24.98
B42: Regular smoker | C42: ='Smoking behaviour'!B37 -> 24.281 | D42: ='Smoking behaviour'!C37 -> 17.2 | E42: ='Smoking behaviour'!I37 -> 19.776 | F42: ='Smoking behaviour'!M37 -> 17.64 | G42: ='Smoking behaviour'!O37 -> 22.52 | H42: ='Smoking behaviour'!P37 -> 28.08 | I42: ='Smoking behaviour'!Q37 -> 19.25 | J42: ='Smoking behaviour'!U37 -> 18.096 | K42: ='Smoking behaviour'!V37 -> 25.673 | L42: ='Smoking behaviour'!W37 -> 24.47 | M42: ='Smoking behaviour'!X37 -> 16.975 | N42: ='Smoking behaviour'!AB37 -> 21.156 | O42: ='Smoking behaviour'!AC37 -> 18.187 | P42: ='Smoking behaviour'!AD37 -> 18.02 | R42: ='Smoking behaviour'!AH37 -> 21.25
B43: Lower CI | C43: ='Smoking behaviour'!B38 -> 20.536 | D43: ='Smoking behaviour'!C38 -> 14.45 | E43: ='Smoking behaviour'!I38 -> 16.492 | F43: ='Smoking behaviour'!M38 -> 14.74 | G43: ='Smoking behaviour'!O38 -> 20.08 | H43: ='Smoking behaviour'!P38 -> 25.3 | I43: ='Smoking behaviour'!Q38 -> 15.338 | J43: ='Smoking behaviour'!U38 -> 14.988 | K43: ='Smoking behaviour'!V38 -> 22.614 | L43: ='Smoking behaviour'!W38 -> 20.97 | M43: ='Smoking behaviour'!X38 -> 12.516 | N43: ='Smoking behaviour'!AB38 -> 16.963 | O43: ='Smoking behaviour'!AC38 -> 14.619 | P43: ='Smoking behaviour'!AD38 -> 14.35 | R43: ='Smoking behaviour'!AH38 -> 20.4
B44: Upper CI | C44: ='Smoking behaviour'!B39 -> 28.027 | D44: ='Smoking behaviour'!C39 -> 19.95 | E44: ='Smoking behaviour'!I39 -> 23.061 | F44: ='Smoking behaviour'!M39 -> 20.53 | G44: ='Smoking behaviour'!O39 -> 24.97 | H44: ='Smoking behaviour'!P39 -> 30.86 | I44: ='Smoking behaviour'!Q39 -> 23.162 | J44: ='Smoking behaviour'!U39 -> 21.204 | K44: ='Smoking behaviour'!V39 -> 28.732 | L44: ='Smoking behaviour'!W39 -> 27.97 | M44: ='Smoking behaviour'!X39 -> 21.434 | N44: ='Smoking behaviour'!AB39 -> 25.348 | O44: ='Smoking behaviour'!AC39 -> 21.754 | P44: ='Smoking behaviour'!AD39 -> 21.68 | R44: ='Smoking behaviour'!AH39 -> 22.1
A46: CLs | B46: Never smoked, or ex-occasional | C46: =C36-C37 -> 4.308 | D46: =D36-D37 -> 3.4 | E46: =E36-E37 -> 4.297 | F46: =F36-F37 -> 3.78 | G46: =G36-G37 -> 2.53 | H46: =H36-H37 -> 3.09 | I46: =I36-I37 -> 5.745 | J46: 3.542 | K46: 4.302 | L46: 4.5 | M46: 5.711 | N46: 3.884 | O46: 3.924 | P46: 4.66 | R46: =R36-R37 -> 1.05
B47: Ex-regular smoker, or occasional | C47: =C39-C40 -> 2.488 | D47: =D39-D40 -> 2.75 | E47: =E39-E40 -> 3.599 | F47: =F39-F40 -> 2.85 | G47: =G39-G40 -> 2.07 | H47: =H39-H40 -> 2.03 | I47: =I39-I40 -> 4.47 | J47: 3.405 | K47: 3.732 | L47: 3.79 | M47: 3.526 | N47: 4.958 | O47: 3.197 | P47: 3.18 | R47: =R39-R40 -> 0.78
B48: Regular smoker | C48: =C42-C43 -> 3.745 | D48: =D42-D43 -> 2.75 | E48: =E42-E43 -> 3.284 | F48: =F42-F43 -> 2.9 | G48: =G42-G43 -> 2.44 | H48: =H42-H43 -> 2.78 | I48: =I42-I43 -> 3.912 | J48: 3.108 | K48: 3.059 | L48: 3.5 | M48: 4.459 | N48: 4.193 | O48: 3.568 | P48: 3.67 | R48: =R42-R43 -> 0.85

Sheet Overweight
A1: Prevalence of overweight (including obesity), by Local Authority and sex | M1: INDEX
A4: Aged 16 and over | B4: PLEASE NOTE: Where the sample size for a Local Authority was below 500, the result has been suppressed. This is shown here by *. | P4: 2013/2014/2015/2016 combined
A5: Overweight (including obese)a | B5: Local Authority
B6: Aberdeen City | C6: Aberdeenshire | D6: Angus | E6: Argyll & Bute | F6: Clackmannanshire | G6: Dumfries & Galloway | H6: Dundee City | I6: East Ayrshire | J6: East Dunbartonshire | K6: East Lothian | L6: East Renfrewshire | M6: Edinburgh, City of | N6: Falkirk | O6: Fife | P6: Glasgow City | Q6: Highland | R6: Inverclyde | S6: Midlothian | T6: Moray | U6: Na h-Eileanan Siar | V6: North Ayrshire | W6: North Lanarkshire | X6: Orkney Islands | Y6: Perth & Kinross | Z6: Renfrewshire | AA6: Scottish Borders | AB6: Shetland Islands | AC6: South Ayrshire | AD6: South Lanarkshire | AE6: Stirling | AF6: West Dunbartonshire | AG6: West Lothian | AH6: Scotland
B7: % | C7: % | D7: % | E7: % | F7: % | G7: % | H7: % | I7: % | J7: % | K7: % | L7: % | M7: % | N7: % | O7: % | P7: % | Q7: % | R7: % | S7: % | T7: % | U7: % | V7: % | W7: % | X7: % | Y7: % | Z7: % | AA7: % | AB7: % | AC7: % | AD7: % | AE7: % | AF7: % | AG7: % | AH7: %
A8: Men
A9: Overweight (including obese)a | B9: 65.61 | C9: 72.49 | D9: * | E9: * | F9: * | G9: * | H9: * | I9: 72.234 | J9: * | K9: * | L9: * | M9: 58.34 | N9: * | O9: 71.08 | P9: 61.94 | Q9: * | R9: * | S9: * | T9: * | U9: 73.215 | V9: 73.249 | W9: 77.63 | X9: * | Y9: * | Z9: * | AA9: * | AB9: * | AC9: 73.006 | AD9: 71.073 | AE9: * | AF9: * | AG9: * | AH9: 68.55
A10: Lower CI | B10: 59.834 | C10: 68.33 | D10: * | E10: * | F10: * | G10: * | H10: * | I10: 67.153 | J10: * | K10: * | L10: * | M10: 53.43 | N10: * | O10: 66.74 | P10: 57.11 | Q10: * | R10: * | S10: * | T10: * | U10: 66.917 | V10: 68.394 | W10: 72.14 | X10: * | Y10: * | Z10: * | AA10: * | AB10: * | AC10: 67.168 | AD10: 65.364 | AE10: * | AF10: * | AG10: * | AH10: 67.1
A11: Upper CI | B11: 71.386 | C11: 76.65 | D11: * | E11: * | F11: * | G11: * | H11: * | I11: 77.314 | J11: * | K11: * | L11: * | M11: 63.25 | N11: * | O11: 75.42 | P11: 66.76 | Q11: * | R11: * | S11: * | T11: * | U11: 79.514 | V11: 78.104 | W11: 83.12 | X11: * | Y11: * | Z11: * | AA11: * | AB11: * | AC11: 78.845 | AD11: 76.782 | AE11: * | AF11: * | AG11: * | AH11: 70.01
A13: Women
A14: Overweight (including obese)a | B14: 56.4 | C14: 61.25 | D14: * | E14: * | F14: * | G14: * | H14: * | I14: 66.402 | J14: * | K14: * | L14: * | M14: 48.15 | N14: * | O14: 62.58 | P14: 57.88 | Q14: * | R14: * | S14: * | T14: * | U14: 69.605 | V14: 71.006 | W14: 67.82 | X14: * | Y14: * | Z14: * | AA14: * | AB14: * | AC14: 65.143 | AD14: 65.681 | AE14: * | AF14: * | AG14: * | AH14: 61.3
A15: Lower CI | B15: 50.879 | C15: 56.4 | D15: * | E15: * | F15: * | G15: * | H15: * | I15: 62.111 | J15: * | K15: * | L15: * | M15: 43.12 | N15: * | O15: 59.49 | P15: 53.7 | Q15: * | R15: * | S15: * | T15: * | U15: 63.031 | V15: 65.883 | W15: 62.65 | X15: * | Y15: * | Z15: * | AA15: * | AB15: * | AC15: 59.541 | AD15: 60.421 | AE15: * | AF15: * | AG15: * | AH15: 59.97
A16: Upper CI | B16: 61.922 | C16: 66.09 | D16: * | E16: * | F16: * | G16: * | H16: * | I16: 70.693 | J16: * | K16: * | L16: * | M16: 53.18 | N16: * | O16: 65.67 | P16: 62.07 | Q16: * | R16: * | S16: * | T16: * | U16: 76.179 | V16: 76.128 | W16: 72.98 | X16: * | Y16: * | Z16: * | AA16: * | AB16: * | AC16: 70.745 | AD16: 70.942 | AE16: * | AF16: * | AG16: * | AH16: 62.63
A18: All Adults
A19: Overweight (including obese)a | B19: 60.85 | C19: 66.75 | D19: * | E19: * | F19: * | G19: * | H19: * | I19: 69.036 | J19: * | K19: * | L19: * | M19: 53.61 | N19: * | O19: 66.77 | P19: 59.87 | Q19: * | R19: * | S19: * | T19: * | U19: 71.465 | V19: 72.045 | W19: 72.54 | X19: * | Y19: * | Z19: * | AA19: * | AB19: * | AC19: 68.49 | AD19: 68.373 | AE19: * | AF19: * | AG19: * | AH19: 64.87
A20: Lower CI | B20: 56.447 | C20: 63.49 | D20: * | E20: * | F20: * | G20: * | H20: * | I20: 66.066 | J20: * | K20: * | L20: * | M20: 50.03 | N20: * | O20: 63.99 | P20: 56.34 | Q20: * | R20: * | S20: * | T20: * | U20: 66.376 | V20: 68.214 | W20: 68.5 | X20: * | Y20: * | Z20: * | AA20: * | AB20: * | AC20: 64.357 | AD20: 64.743 | AE20: * | AF20: * | AG20: * | AH20: 63.8
A21: Upper CI | B21: 65.253 | C21: 70 | D21: * | E21: * | F21: * | G21: * | H21: * | I21: 72.006 | J21: * | K21: * | L21: * | M21: 57.19 | N21: * | O21: 69.55 | P21: 63.41 | Q21: * | R21: * | S21: * | T21: * | U21: 76.555 | V21: 75.877 | W21: 76.58 | X21: * | Y21: * | Z21: * | AA21: * | AB21: * | AC21: 72.623 | AD21: 72.003 | AE21: * | AF21: * | AG21: * | AH21: 65.93
A23: Bases (weighted):
A24: Men | B24: 332.179 | C24: 410.42 | D24: 157.904 | E24: 147.086 | F24: 64.628 | G24: 215.131 | H24: 230.489 | I24: 170.884 | J24: 187.458 | K24: 160.027 | L24: 120.423 | M24: 778.9 | N24: 218.51 | O24: 519.45 | P24: 856.61 | Q24: 304.174 | R24: 107.877 | S24: 97.537 | T24: 148.372 | U24: 36.587 | V24: 194 | W24: 484.43 | X24: 36.196 | Y24: 190.804 | Z24: 223.324 | AA24: 166.21 | AB24: 34.382 | AC24: 134.029 | AD24: 483.41 | AE24: 133.714 | AF24: 119.766 | AG24: 269.034 | AH24: 7733.94
A25: Women | B25: 355.332 | C25: 428.61 | D25: 177.295 | E25: 135.299 | F25: 65.518 | G25: 225.44 | H25: 247.748 | I25: 207.461 | J25: 173.574 | K25: 160.806 | L25: 136.23 | M25: 674.46 | N25: 204.556 | O25: 535.52 | P25: 886.56 | Q25: 308.196 | R25: 121.469 | S25: 124.265 | T25: 174.423 | U25: 34.421 | V25: 224.614 | W25: 522.26 | X25: 33.32 | Y25: 233.257 | Z25: 191.606 | AA25: 189.218 | AB25: 30.702 | AC25: 180.852 | AD25: 484.976 | AE25: 138.316 | AF25: 126.147 | AG25: 260.486 | AH25: 7992.93
A26: All Adults | B26: 687.512 | C26: 839.03 | D26: 335.2 | E26: 282.385 | F26: 130.146 | G26: 440.572 | H26: 478.236 | I26: 378.345 | J26: 361.032 | K26: 320.833 | L26: 256.652 | M26: 1453.36 | N26: 423.067 | O26: 1054.96 | P26: 1743.17 | Q26: 612.37 | R26: 229.346 | S26: 221.803 | T26: 322.794 | U26: 71.008 | V26: 418.614 | W26: 1006.69 | X26: 69.516 | Y26: 424.06 | Z26: 414.93 | AA26: 355.428 | AB26: 65.083 | AC26: 314.881 | AD26: 968.386 | AE26: 272.029 | AF26: 245.913 | AG26: 529.52 | AH26: 15726.87
A27: Bases (unweighted)
A28: Men | B28: 382 | C28: 480 | D28: 112 | E28: 103 | F28: 41 | G28: 182 | H28: 141 | I28: 267 | J28: 141 | K28: 96 | L28: 92 | M28: 501 | N28: 128 | O28: 747 | P28: 573 | Q28: 187 | R28: 82 | S28: 62 | T28: 163 | U28: 306 | V28: 291 | W28: 279 | X28: 219 | Y28: 150 | Z28: 157 | AA28: 178 | AB28: 200 | AC28: 219 | AD28: 291 | AE28: 83 | AF28: 87 | AG28: 141 | AH28: 7081
A29: Women | B29: 472 | C29: 568 | D29: 138 | E29: 117 | F29: 49 | G29: 208 | H29: 170 | I29: 351 | J29: 164 | K29: 107 | L29: 123 | M29: 534 | N29: 148 | O29: 926 | P29: 722 | Q29: 234 | R29: 109 | S29: 94 | T29: 226 | U29: 338 | V29: 372 | W29: 363 | X29: 235 | Y29: 203 | Z29: 157 | AA29: 240 | AB29: 215 | AC29: 320 | AD29: 360 | AE29: 110 | AF29: 106 | AG29: 174 | AH29: 8653
A30: All Adults | B30: 854 | C30: 1048 | D30: 250 | E30: 220 | F30: 90 | G30: 390 | H30: 311 | I30: 618 | J30: 305 | K30: 203 | L30: 215 | M30: 1035 | N30: 276 | O30: 1673 | P30: 1295 | Q30: 421 | R30: 191 | S30: 156 | T30: 389 | U30: 644 | V30: 663 | W30: 642 | X30: 454 | Y30: 353 | Z30: 314 | AA30: 418 | AB30: 415 | AC30: 539 | AD30: 651 | AE30: 193 | AF30: 193 | AG30: 315 | AH30: 15734
A32: a BMI 25 or higher

Sheet Overweight chart
R1: INDEX
C31: Source: Scottish Health Survey
C32: Overweight: BMI 25+
C34: Aberdeen City | D34: Aberdeenshire | E34: East Ayrshire | F34: Edinburgh, City of | G34: Fife | H34: Glasgow City | I34: Na h-Eileanan Siar | J34: North Ayrshire | K34: North Lanarkshire | L34: South Ayrshire | M34: South Lanarkshire | O34: Scotland
B35: All Adults
B36: Overweight (including obese)a | C36: =Overweight!B19 -> 60.85 | D36: =Overweight!C19 -> 66.75 | E36: =Overweight!I19 -> 69.036 | F36: =Overweight!M19 -> 53.61 | G36: =Overweight!O19 -> 66.77 | H36: =Overweight!P19 -> 59.87 | I36: =Overweight!U19 -> 71.465 | J36: =Overweight!V19 -> 72.045 | K36: =Overweight!W19 -> 72.54 | L36: =Overweight!AC19 -> 68.49 | M36: =Overweight!AD19 -> 68.373 | O36: =Overweight!AH19 -> 64.87
B37: Lower CI | C37: =Overweight!B20 -> 56.447 | D37: =Overweight!C20 -> 63.49 | E37: =Overweight!I20 -> 66.066 | F37: =Overweight!M20 -> 50.03 | G37: =Overweight!O20 -> 63.99 | H37: =Overweight!P20 -> 56.34 | I37: =Overweight!U20 -> 66.376 | J37: =Overweight!V20 -> 68.214 | K37: =Overweight!W20 -> 68.5 | L37: =Overweight!AC20 -> 64.357 | M37: =Overweight!AD20 -> 64.743 | O37: =Overweight!AH20 -> 63.8
B38: Upper CI | C38: =Overweight!B21 -> 65.253 | D38: =Overweight!C21 -> 70 | E38: =Overweight!I21 -> 72.006 | F38: =Overweight!M21 -> 57.19 | G38: =Overweight!O21 -> 69.55 | H38: =Overweight!P21 -> 63.41 | I38: =Overweight!U21 -> 76.555 | J38: =Overweight!V21 -> 75.877 | K38: =Overweight!W21 -> 76.58 | L38: =Overweight!AC21 -> 72.623 | M38: =Overweight!AD21 -> 72.003 | O38: =Overweight!AH21 -> 65.93
A40: CLs | C40: =C36-C37 -> 4.403 | D40: =D36-D37 -> 3.26 | E40: =E36-E37 -> 2.97 | F40: =F36-F37 -> 3.58 | G40: =G36-G37 -> 2.78 | H40: =H36-H37 -> 3.53 | I40: 5.089 | J40: 3.831 | K40: 4.04 | L40: 4.133 | M40: 3.63 | O40: =O36-O37 -> 1.07

Sheet Obesity
A1: Prevalence of obesity by Local Authority and sex | N1: INDEX
A4: Aged 16 and over | B4: PLEASE NOTE: Where the sample size for a Local Authority was below 500, the result has been suppressed. This is shown here by *. | P4: 2013/2014/2015/2016 combined
A5: Obesitya | B5: Local Authority
B6: Aberdeen City | C6: Aberdeenshire | D6: Angus | E6: Argyll & Bute | F6: Clackmannanshire | G6: Dumfries & Galloway | H6: Dundee City | I6: East Ayrshire | J6: East Dunbartonshire | K6: East Lothian | L6: East Renfrewshire | M6: Edinburgh, City of | N6: Falkirk | O6: Fife | P6: Glasgow City | Q6: Highland | R6: Inverclyde | S6: Midlothian | T6: Moray | U6: Na h-Eileanan Siar | V6: North Ayrshire | W6: North Lanarkshire | X6: Orkney Islands | Y6: Perth & Kinross | Z6: Renfrewshire | AA6: Scottish Borders | AB6: Shetland Islands | AC6: South Ayrshire | AD6: South Lanarkshire | AE6: Stirling | AF6: West Dunbartonshire | AG6: West Lothian | AH6: Scotland
B7: % | C7: % | D7: % | E7: % | F7: % | G7: % | H7: % | I7: % | J7: % | K7: % | L7: % | M7: % | N7: % | O7: % | P7: % | Q7: % | R7: % | S7: % | T7: % | U7: % | V7: % | W7: % | X7: % | Y7: % | Z7: % | AA7: % | AB7: % | AC7: % | AD7: % | AE7: % | AF7: % | AG7: % | AH7: %
A8: Men
A9: Obesea | B9: 24.124 | C9: 28.37 | D9: * | E9: * | F9: * | G9: * | H9: * | I9: 32.778 | J9: * | K9: * | L9: * | M9: 18.53 | N9: * | O9: 30.7 | P9: 21.67 | Q9: * | R9: * | S9: * | T9: * | U9: 28.954 | V9: 31.031 | W9: 33.1 | X9: * | Y9: * | Z9: * | AA9: * | AB9: * | AC9: 31.54 | AD9: 32.921 | AE9: * | AF9: * | AG9: * | AH9: 27.15
A10: Lower CI | B10: 19.452 | C10: 24.56 | D10: * | E10: * | F10: * | G10: * | H10: * | I10: 25.731 | J10: * | K10: * | L10: * | M10: 14.27 | N10: * | O10: 26.83 | P10: 18.14 | Q10: * | R10: * | S10: * | T10: * | U10: 22.76 | V10: 25.489 | W10: 26.92 | X10: * | Y10: * | Z10: * | AA10: * | AB10: * | AC10: 25.027 | AD10: 26.671 | AE10: * | AF10: * | AG10: * | AH10: 25.91
A11: Upper CI | B11: 28.796 | C11: 32.17 | D11: * | E11: * | F11: * | G11: * | H11: * | I11: 39.825 | J11: * | K11: * | L11: * | M11: 22.78 | N11: * | O11: 34.57 | P11: 25.19 | Q11: * | R11: * | S11: * | T11: * | U11: 35.148 | V11: 36.574 | W11: 39.27 | X11: * | Y11: * | Z11: * | AA11: * | AB11: * | AC11: 38.053 | AD11: 39.171 | AE11: * | AF11: * | AG11: * | AH11: 28.4
A13: Women
A14: Obesea | B14: 24.987 | C14: 29.66 | D14: * | E14: * | F14: * | G14: * | H14: * | I14: 35.312 | J14: * | K14: * | L14: * | M14: 18.21 | N14: * | O14: 33.15 | P14: 28.99 | Q14: * | R14: * | S14: * | T14: * | U14: 39.119 | V14: 41.285 | W14: 34.35 | X14: * | Y14: * | Z14: * | AA14: * | AB14: * | AC14: 26.743 | AD14: 28.928 | AE14: * | AF14: * | AG14: * | AH14: 29.44
A15: Lower CI | B15: 21.1 | C15: 25.53 | D15: * | E15: * | F15: * | G15: * | H15: * | I15: 29.897 | J15: * | K15: * | L15: * | M15: 14.77 | N15: * | O15: 30.21 | P15: 25.56 | Q15: * | R15: * | S15: * | T15: * | U15: 33.138 | V15: 36.114 | W15: 28.33 | X15: * | Y15: * | Z15: * | AA15: * | AB15: * | AC15: 22.355 | AD15: 23.461 | AE15: * | AF15: * | AG15: * | AH15: 28.31
A16: Upper CI | B16: 28.875 | C16: 33.79 | D16: * | E16: * | F16: * | G16: * | H16: * | I16: 40.727 | J16: * | K16: * | L16: * | M16: 21.64 | N16: * | O16: 36.1 | P16: 32.42 | Q16: * | R16: * | S16: * | T16: * | U16: 45.099 | V16: 46.456 | W16: 40.36 | X16: * | Y16: * | Z16: * | AA16: * | AB16: * | AC16: 31.132 | AD16: 34.394 | AE16: * | AF16: * | AG16: * | AH16: 30.57
A18: All Adults
A19: Obesea | B19: 24.57 | C19: 29.03 | D19: * | E19: * | F19: * | G19: * | H19: * | I19: 34.168 | J19: * | K19: * | L19: * | M19: 18.38 | N19: * | O19: 31.95 | P19: 25.39 | Q19: * | R19: * | S19: * | T19: * | U19: 33.881 | V19: 36.533 | W19: 33.75 | X19: * | Y19: * | Z19: * | AA19: * | AB19: * | AC19: 28.785 | AD19: 30.921 | AE19: * | AF19: * | AG19: * | AH19: 28.32
A20: Lower CI | B20: 21.207 | C20: 25.93 | D20: * | E20: * | F20: * | G20: * | H20: * | I20: 30.286 | J20: * | K20: * | L20: * | M20: 15.3 | N20: * | O20: 29.22 | P20: 22.75 | Q20: * | R20: * | S20: * | T20: * | U20: 29.402 | V20: 32.285 | W20: 29.69 | X20: * | Y20: * | Z20: * | AA20: * | AB20: * | AC20: 25.175 | AD20: 26.509 | AE20: * | AF20: * | AG20: * | AH20: 27.43
A21: Upper CI | B21: 27.934 | C21: 32.12 | D21: * | E21: * | F21: * | G21: * | H21: * | I21: 38.049 | J21: * | K21: * | L21: * | M21: 21.45 | N21: * | O21: 34.67 | P21: 28.04 | Q21: * | R21: * | S21: * | T21: * | U21: 38.36 | V21: 40.781 | W21: 37.8 | X21: * | Y21: * | Z21: * | AA21: * | AB21: * | AC21: 32.395 | AD21: 35.333 | AE21: * | AF21: * | AG21: * | AH21: 29.2
A23: Bases (weighted):
A24: Men | B24: 332.179 | C24: 410.42 | D24: 157.904 | E24: 147.086 | F24: 64.628 | G24: 215.131 | H24: 230.489 | I24: 170.884 | J24: 187.458 | K24: 160.027 | L24: 120.423 | M24: 778.9 | N24: 218.51 | O24: 519.45 | P24: 856.61 | Q24: 304.174 | R24: 107.877 | S24: 97.537 | T24: 148.372 | U24: 36.587 | V24: 194 | W24: 484.43 | X24: 36.196 | Y24: 190.804 | Z24: 223.324 | AA24: 166.21 | AB24: 34.382 | AC24: 134.029 | AD24: 483.41 | AE24: 133.714 | AF24: 119.766 | AG24: 269.034 | AH24: 7733.94
A25: Women | B25: 355.332 | C25: 428.61 | D25: 177.295 | E25: 135.299 | F25: 65.518 | G25: 225.44 | H25: 247.748 | I25: 207.461 | J25: 173.574 | K25: 160.806 | L25: 136.23 | M25: 674.46 | N25: 204.556 | O25: 535.52 | P25: 886.56 | Q25: 308.196 | R25: 121.469 | S25: 124.265 | T25: 174.423 | U25: 34.421 | V25: 224.614 | W25: 522.26 | X25: 33.32 | Y25: 233.257 | Z25: 191.606 | AA25: 189.218 | AB25: 30.702 | AC25: 180.852 | AD25: 484.976 | AE25: 138.316 | AF25: 126.147 | AG25: 260.486 | AH25: 7992.93
A26: All Adults | B26: 687.512 | C26: 839.03 | D26: 335.2 | E26: 282.385 | F26: 130.146 | G26: 440.572 | H26: 478.236 | I26: 378.345 | J26: 361.032 | K26: 320.833 | L26: 256.652 | M26: 1453.36 | N26: 423.067 | O26: 1054.96 | P26: 1743.17 | Q26: 612.37 | R26: 229.346 | S26: 221.803 | T26: 322.794 | U26: 71.008 | V26: 418.614 | W26: 1006.69 | X26: 69.516 | Y26: 424.06 | Z26: 414.93 | AA26: 355.428 | AB26: 65.083 | AC26: 314.881 | AD26: 968.386 | AE26: 272.029 | AF26: 245.913 | AG26: 529.52 | AH26: 15726.87
A27: Bases (unweighted)
A28: Men | B28: 382 | C28: 480 | D28: 112 | E28: 103 | F28: 41 | G28: 182 | H28: 141 | I28: 267 | J28: 141 | K28: 96 | L28: 92 | M28: 501 | N28: 128 | O28: 747 | P28: 573 | Q28: 187 | R28: 82 | S28: 62 | T28: 163 | U28: 306 | V28: 291 | W28: 279 | X28: 219 | Y28: 150 | Z28: 157 | AA28: 178 | AB28: 200 | AC28: 219 | AD28: 291 | AE28: 83 | AF28: 87 | AG28: 141 | AH28: 7081
A29: Women | B29: 472 | C29: 568 | D29: 138 | E29: 117 | F29: 49 | G29: 208 | H29: 170 | I29: 351 | J29: 164 | K29: 107 | L29: 123 | M29: 534 | N29: 148 | O29: 926 | P29: 722 | Q29: 234 | R29: 109 | S29: 94 | T29: 226 | U29: 338 | V29: 372 | W29: 363 | X29: 235 | Y29: 203 | Z29: 157 | AA29: 240 | AB29: 215 | AC29: 320 | AD29: 360 | AE29: 110 | AF29: 106 | AG29: 174 | AH29: 8653
A30: All Adults | B30: 854 | C30: 1048 | D30: 250 | E30: 220 | F30: 90 | G30: 390 | H30: 311 | I30: 618 | J30: 305 | K30: 203 | L30: 215 | M30: 1035 | N30: 276 | O30: 1673 | P30: 1295 | Q30: 421 | R30: 191 | S30: 156 | T30: 389 | U30: 644 | V30: 663 | W30: 642 | X30: 454 | Y30: 353 | Z30: 314 | AA30: 418 | AB30: 415 | AC30: 539 | AD30: 651 | AE30: 193 | AF30: 193 | AG30: 315 | AH30: 15734
A32: a BMI 30 or higher

Sheet Obesity chart
R1: INDEX
C31: Source: Scottish Health Survey
C32: Obese: BMI 30+
C34: Aberdeen City | D34: Aberdeenshire | E34: East Ayrshire | F34: Edinburgh, City of | G34: Fife | H34: Glasgow City | I34: Na h-Eileanan Siar | J34: North Ayrshire | K34: North Lanarkshire | L34: South Ayrshire | M34: South Lanarkshire | O34: Scotland
B35: All Adults
B36: Obesea | C36: =Obesity!B19 -> 24.57 | D36: =Obesity!C19 -> 29.03 | E36: =Obesity!I19 -> 34.168 | F36: =Obesity!M19 -> 18.38 | G36: =Obesity!O19 -> 31.95 | H36: =Obesity!P19 -> 25.39 | I36: =Obesity!U19 -> 33.881 | J36: =Obesity!V19 -> 36.533 | K36: =Obesity!W19 -> 33.75 | L36: =Obesity!AC19 -> 28.785 | M36: =Obesity!AD19 -> 30.921 | O36: =Obesity!AH19 -> 28.32
B37: Lower CI | C37: =Obesity!B20 -> 21.207 | D37: =Obesity!C20 -> 25.93 | E37: =Obesity!I20 -> 30.286 | F37: =Obesity!M20 -> 15.3 | G37: =Obesity!O20 -> 29.22 | H37: =Obesity!P20 -> 22.75 | I37: =Obesity!U20 -> 29.402 | J37: =Obesity!V20 -> 32.285 | K37: =Obesity!W20 -> 29.69 | L37: =Obesity!AC20 -> 25.175 | M37: =Obesity!AD20 -> 26.509 | O37: =Obesity!AH20 -> 27.43
B38: Upper CI | C38: =Obesity!B21 -> 27.934 | D38: =Obesity!C21 -> 32.12 | E38: =Obesity!I21 -> 38.049 | F38: =Obesity!M21 -> 21.45 | G38: =Obesity!O21 -> 34.67 | H38: =Obesity!P21 -> 28.04 | I38: =Obesity!U21 -> 38.36 | J38: =Obesity!V21 -> 40.781 | K38: =Obesity!W21 -> 37.8 | L38: =Obesity!AC21 -> 32.395 | M38: =Obesity!AD21 -> 35.333 | O38: =Obesity!AH21 -> 29.2
A40: CLs | C40: =C36-C37 -> 3.363 | D40: =D36-D37 -> 3.1 | E40: =E36-E37 -> 3.882 | F40: =F36-F37 -> 3.08 | G40: =G36-G37 -> 2.73 | H40: =H36-H37 -> 2.64 | I40: 4.479 | J40: 4.248 | K40: 4.06 | L40: 3.61 | M40: 4.412 | O40: =O36-O37 -> 0.89

Sheet Fruit and vegetables
A1: Daily fruit and vegetable consumption, three categories, by Local Authority and sex | M1: INDEX
A4: Aged 16 and over | B4: PLEASE NOTE: Where the sample size for a Local Authority was below 500, the result has been suppressed. This is shown here by *. | P4: 2013/2014/2015/2016 combined
A5: Daily fruit and vegatable consumption, three categories | B5: Local Authority
B6: Aberdeen City | C6: Aberdeenshire | D6: Angus | E6: Argyll & Bute | F6: Clackmannanshire | G6: Dumfries & Galloway | H6: Dundee City | I6: East Ayrshire | J6: East Dunbartonshire | K6: East Lothian | L6: East Renfrewshire | M6: Edinburgh, City of | N6: Falkirk | O6: Fife | P6: Glasgow City | Q6: Highland | R6: Inverclyde | S6: Midlothian | T6: Moray | U6: Na h-Eileanan Siar | V6: North Ayrshire | W6: North Lanarkshire | X6: Orkney Islands | Y6: Perth & Kinross | Z6: Renfrewshire | AA6: Scottish Borders | AB6: Shetland Islands | AC6: South Ayrshire | AD6: South Lanarkshire | AE6: Stirling | AF6: West Dunbartonshire | AG6: West Lothian | AH6: Scotland
B7: % | C7: % | D7: % | E7: % | F7: % | G7: % | H7: % | I7: % | J7: % | K7: % | L7: % | M7: % | N7: % | O7: % | P7: % | Q7: % | R7: % | S7: % | T7: % | U7: % | V7: % | W7: % | X7: % | Y7: % | Z7: % | AA7: % | AB7: % | AC7: % | AD7: % | AE7: % | AF7: % | AG7: % | AH7: %
A8: Men
A9: None | B9: 8.68 | C9: 10.07 | D9: * | E9: * | F9: * | G9: * | H9: * | I9: 16.395 | J9: * | K9: * | L9: * | M9: 8.03 | N9: * | O9: 11.42 | P9: 14.42 | Q9: 12.947 | R9: * | S9: * | T9: * | U9: 9.942 | V9: 19.457 | W9: 15.86 | X9: 10.47 | Y9: * | Z9: * | AA9: * | AB9: 11.811 | AC9: 8.632 | AD9: 11.69 | AE9: * | AF9: * | AG9: * | AH9: 12.47
A10: Lower CI | B10: 5.99 | C10: 6.88 | D10: * | E10: * | F10: * | G10: * | H10: * | I10: 12.363 | J10: * | K10: * | L10: * | M10: 5.8 | N10: * | O10: 9.13 | P10: 11.02 | Q10: 8.288 | R10: * | S10: * | T10: * | U10: 6.275 | V10: 14.881 | W10: 11.07 | X10: 5.79 | Y10: * | Z10: * | AA10: * | AB10: 7.133 | AC10: 4.762 | AD10: 7.22 | AE10: * | AF10: * | AG10: * | AH10: 11.52
A11: Upper CI | B11: 11.37 | C11: 13.26 | D11: * | E11: * | F11: * | G11: * | H11: * | I11: 20.428 | J11: * | K11: * | L11: * | M11: 10.25 | N11: * | O11: 13.72 | P11: 17.83 | Q11: 17.606 | R11: * | S11: * | T11: * | U11: 13.608 | V11: 24.033 | W11: 20.66 | X11: 15.15 | Y11: * | Z11: * | AA11: * | AB11: 16.488 | AC11: 12.502 | AD11: 16.17 | AE11: * | AF11: * | AG11: * | AH11: 13.41
A12: Less than 5 portions | B12: 72.845 | C12: 71.12 | D12: * | E12: * | F12: * | G12: * | H12: * | I12: 69.183 | J12: * | K12: * | L12: * | M12: 64.54 | N12: * | O12: 68.84 | P12: 67.73 | Q12: 69.604 | R12: * | S12: * | T12: * | U12: 67.815 | V12: 66.644 | W12: 66.21 | X12: 72.122 | Y12: * | Z12: * | AA12: * | AB12: 69.452 | AC12: 73.39 | AD12: 67.99 | AE12: * | AF12: * | AG12: * | AH12: 67.74
A13: Lower CI | B13: 68.416 | C13: 66.59 | D13: * | E13: * | F13: * | G13: * | H13: * | I13: 63.917 | J13: * | K13: * | L13: * | M13: 60.1 | N13: * | O13: 65.6 | P13: 63.83 | Q13: 63.38 | R13: * | S13: * | T13: * | U13: 62.383 | V13: 61.74 | W13: 59.68 | X13: 65.79 | Y13: * | Z13: * | AA13: * | AB13: 63.054 | AC13: 68.343 | AD13: 61.98 | AE13: * | AF13: * | AG13: * | AH13: 66.46
A14: Upper CI | B14: 77.273 | C14: 75.65 | D14: * | E14: * | F14: * | G14: * | H14: * | I14: 74.45 | J14: * | K14: * | L14: * | M14: 68.98 | N14: * | O14: 72.08 | P14: 71.63 | Q14: 75.828 | R14: * | S14: * | T14: * | U14: 73.248 | V14: 71.548 | W14: 72.75 | X14: 78.454 | Y14: * | Z14: * | AA14: * | AB14: 75.849 | AC14: 78.437 | AD14: 74 | AE14: * | AF14: * | AG14: * | AH14: 69.02
A15: 5 portions or more | B15: 18.476 | C15: 18.81 | D15: * | E15: * | F15: * | G15: * | H15: * | I15: 14.422 | J15: * | K15: * | L15: * | M15: 27.44 | N15: * | O15: 19.74 | P15: 17.85 | Q15: 17.449 | R15: * | S15: * | T15: * | U15: 22.243 | V15: 13.899 | W15: 17.92 | X15: 17.408 | Y15: * | Z15: * | AA15: * | AB15: 18.738 | AC15: 17.978 | AD15: 20.32 | AE15: * | AF15: * | AG15: * | AH15: 19.79
A16: Lower CI | B16: 14.619 | C16: 15.19 | D16: * | E16: * | F16: * | G16: * | H16: * | I16: 9.839 | J16: * | K16: * | L16: * | M16: 23.23 | N16: * | O16: 16.79 | P16: 14.35 | Q16: 12.346 | R16: * | S16: * | T16: * | U16: 17.337 | V16: 9.968 | W16: 12.83 | X16: 11.849 | Y16: * | Z16: * | AA16: * | AB16: 11.821 | AC16: 13.117 | AD16: 15.38 | AE16: * | AF16: * | AG16: * | AH16: 18.7
A17: Upper CI | B17: 22.332 | C17: 22.44 | D17: * | E17: * | F17: * | G17: * | H17: * | I17: 19.004 | J17: * | K17: * | L17: * | M17: 31.65 | N17: * | O17: 22.68 | P17: 21.34 | Q17: 22.553 | R17: * | S17: * | T17: * | U17: 27.149 | V17: 17.831 | W17: 23.02 | X17: 22.968 | Y17: * | Z17: * | AA17: * | AB17: 25.655 | AC17: 22.84 | AD17: 25.26 | AE17: * | AF17: * | AG17: * | AH17: 20.89
A19: Women
A20: None | B20: 5.596 | C20: 8.45 | D20: * | E20: * | F20: * | G20: * | H20: * | I20: 12.021 | J20: * | K20: * | L20: * | M20: 4.67 | N20: * | O20: 7.82 | P20: 10.48 | Q20: 8.233 | R20: * | S20: * | T20: * | U20: 6.386 | V20: 11.817 | W20: 13.29 | X20: 7.175 | Y20: * | Z20: * | AA20: * | AB20: 6.736 | AC20: 8.483 | AD20: 8.72 | AE20: * | AF20: * | AG20: * | AH20: 8.73
A21: Lower CI | B21: 3.459 | C21: 5.7 | D21: * | E21: * | F21: * | G21: * | H21: * | I21: 9.151 | J21: * | K21: * | L21: * | M21: 3.12 | N21: * | O21: 6.12 | P21: 8.03 | Q21: 5.14 | R21: * | S21: * | T21: * | U21: 4 | V21: 8.036 | W21: 10.18 | X21: 5.139 | Y21: * | Z21: * | AA21: * | AB21: 3.746 | AC21: 5.945 | AD21: 4.6 | AE21: * | AF21: * | AG21: * | AH21: 7.99
A22: Upper CI | B22: 7.733 | C22: 11.2 | D22: * | E22: * | F22: * | G22: * | H22: * | I22: 14.891 | J22: * | K22: * | L22: * | M22: 6.23 | N22: * | O22: 9.52 | P22: 12.93 | Q22: 11.327 | R22: * | S22: * | T22: * | U22: 8.771 | V22: 15.598 | W22: 16.39 | X22: 9.211 | Y22: * | Z22: * | AA22: * | AB22: 9.727 | AC22: 11.021 | AD22: 12.83 | AE22: * | AF22: * | AG22: * | AH22: 9.46
A23: Less than 5 portions | B23: 70.511 | C23: 71.44 | D23: * | E23: * | F23: * | G23: * | H23: * | I23: 72.28 | J23: * | K23: * | L23: * | M23: 65.35 | N23: * | O23: 67.35 | P23: 68.61 | Q23: 72.024 | R23: * | S23: * | T23: * | U23: 71.892 | V23: 74.909 | W23: 72.84 | X23: 70.603 | Y23: * | Z23: * | AA23: * | AB23: 70.951 | AC23: 74.976 | AD23: 71.67 | AE23: * | AF23: * | AG23: * | AH23: 69.65
A24: Lower CI | B24: 65.798 | C24: 67.96 | D24: * | E24: * | F24: * | G24: * | H24: * | I24: 67.555 | J24: * | K24: * | L24: * | M24: 61.02 | N24: * | O24: 64.31 | P24: 65.29 | Q24: 66.614 | R24: * | S24: * | T24: * | U24: 66.061 | V24: 70.294 | W24: 68.4 | X24: 64.752 | Y24: * | Z24: * | AA24: * | AB24: 65.88 | AC24: 70.503 | AD24: 67.29 | AE24: * | AF24: * | AG24: * | AH24: 68.59
A25: Upper CI | B25: 75.223 | C25: 74.91 | D25: * | E25: * | F25: * | G25: * | H25: * | I25: 77.004 | J25: * | K25: * | L25: * | M25: 69.69 | N25: * | O25: 70.4 | P25: 71.92 | Q25: 77.434 | R25: * | S25: * | T25: * | U25: 77.724 | V25: 79.523 | W25: 77.29 | X25: 76.454 | Y25: * | Z25: * | AA25: * | AB25: 76.022 | AC25: 79.449 | AD25: 76.05 | AE25: * | AF25: * | AG25: * | AH25: 70.72
A26: 5 portions or more | B26: 23.894 | C26: 20.12 | D26: * | E26: * | F26: * | G26: * | H26: * | I26: 15.7 | J26: * | K26: * | L26: * | M26: 29.97 | N26: * | O26: 24.82 | P26: 20.92 | Q26: 19.743 | R26: * | S26: * | T26: * | U26: 21.722 | V26: 13.274 | W26: 13.87 | X26: 22.222 | Y26: * | Z26: * | AA26: * | AB26: 22.313 | AC26: 16.541 | AD26: 19.62 | AE26: * | AF26: * | AG26: * | AH26: 21.62
A27: Lower CI | B27: 19.439 | C27: 16.31 | D27: * | E27: * | F27: * | G27: * | H27: * | I27: 11.496 | J27: * | K27: * | L27: * | M27: 25.79 | N27: * | O27: 21.95 | P27: 17.81 | Q27: 14.954 | R27: * | S27: * | T27: * | U27: 15.844 | V27: 9.804 | W27: 10.38 | X27: 17.082 | Y27: * | Z27: * | AA27: * | AB27: 17.26 | AC27: 12.704 | AD27: 15.85 | AE27: * | AF27: * | AG27: * | AH27: 20.6
A28: Upper CI | B28: 28.348 | C28: 23.92 | D28: * | E28: * | F28: * | G28: * | H28: * | I28: 19.903 | J28: * | K28: * | L28: * | M28: 34.16 | N28: * | O28: 27.7 | P28: 24.02 | Q28: 24.532 | R28: * | S28: * | T28: * | U28: 27.601 | V28: 16.744 | W28: 17.36 | X28: 27.362 | Y28: * | Z28: * | AA28: * | AB28: 27.365 | AC28: 20.378 | AD28: 23.38 | AE28: * | AF28: * | AG28: * | AH28: 22.64
A30: All Adults
A31: None | B31: 7.057 | C31: 9.23 | D31: * | E31: * | F31: * | G31: * | H31: * | I31: 14.004 | J31: * | K31: * | L31: * | M31: 6.41 | N31: * | O31: 9.56 | P31: 12.34 | Q31: 10.434 | R31: * | S31: * | T31: * | U31: 8.162 | V31: 15.447 | W31: 14.48 | X31: 8.817 | Y31: * | Z31: * | AA31: * | AB31: 9.353 | AC31: 8.55 | AD31: 10.16 | AE31: * | AF31: * | AG31: * | AH31: 10.52
A32: Lower CI | B32: 5.22 | C32: 6.8 | D32: * | E32: * | F32: * | G32: * | H32: * | I32: 11.517 | J32: * | K32: * | L32: * | M32: 4.97 | N32: * | O32: 7.96 | P32: 9.91 | Q32: 7.816 | R32: * | S32: * | T32: * | U32: 5.913 | V32: 11.991 | W32: 11.45 | X32: 6.237 | Y32: * | Z32: * | AA32: * | AB32: 6.257 | AC32: 6.149 | AD32: 6.53 | AE32: * | AF32: * | AG32: * | AH32: 9.86
A33: Upper CI | B33: 8.893 | C33: 11.67 | D33: * | E33: * | F33: * | G33: * | H33: * | I33: 16.49 | J33: * | K33: * | L33: * | M33: 7.85 | N33: * | O33: 11.16 | P33: 14.77 | Q33: 13.051 | R33: * | S33: * | T33: * | U33: 10.412 | V33: 18.903 | W33: 17.52 | X33: 11.398 | Y33: * | Z33: * | AA33: * | AB33: 12.45 | AC33: 10.951 | AD33: 13.79 | AE33: * | AF33: * | AG33: * | AH33: 11.19
A34: Less than 5 portions | B34: 71.616 | C34: 71.28 | D34: * | E34: * | F34: * | G34: * | H34: * | I34: 70.876 | J34: * | K34: * | L34: * | M34: 64.93 | N34: * | O34: 68.07 | P34: 68.19 | Q34: 70.894 | R34: * | S34: * | T34: * | U34: 69.855 | V34: 70.981 | W34: 69.76 | X34: 71.36 | Y34: * | Z34: * | AA34: * | AB34: 70.178 | AC34: 74.263 | AD34: 69.88 | AE34: * | AF34: * | AG34: * | AH34: 68.73
A35: Lower CI | B35: 68.167 | C35: 68.29 | D35: * | E35: * | F35: * | G35: * | H35: * | I35: 66.766 | J35: * | K35: * | L35: * | M35: 61.5 | N35: * | O35: 65.68 | P35: 65.31 | Q35: 66.626 | R35: * | S35: * | T35: * | U35: 65.605 | V35: 67.097 | W35: 65.58 | X35: 67.344 | Y35: * | Z35: * | AA35: * | AB35: 66.169 | AC35: 69.916 | AD35: 65.93 | AE35: * | AF35: * | AG35: * | AH35: 67.84
A36: Upper CI | B36: 75.065 | C36: 74.28 | D36: * | E36: * | F36: * | G36: * | H36: * | I36: 74.986 | J36: * | K36: * | L36: * | M36: 68.36 | N36: * | O36: 70.46 | P36: 71.07 | Q36: 75.162 | R36: * | S36: * | T36: * | U36: 74.105 | V36: 74.866 | W36: 73.94 | X36: 75.376 | Y36: * | Z36: * | AA36: * | AB36: 74.187 | AC36: 78.61 | AD36: 73.83 | AE36: * | AF36: * | AG36: * | AH36: 69.63
A37: 5 portions or more | B37: 21.327 | C37: 19.49 | D37: * | E37: * | F37: * | G37: * | H37: * | I37: 15.12 | J37: * | K37: * | L37: * | M37: 28.66 | N37: * | O37: 22.37 | P37: 19.47 | Q37: 18.672 | R37: * | S37: * | T37: * | U37: 21.982 | V37: 13.571 | W37: 15.76 | X37: 19.823 | Y37: * | Z37: * | AA37: * | AB37: 20.469 | AC37: 17.187 | AD37: 19.96 | AE37: * | AF37: * | AG37: * | AH37: 20.74
A38: Lower CI | B38: 18.493 | C38: 16.55 | D38: * | E38: * | F38: * | G38: * | H38: * | I38: 11.48 | J38: * | K38: * | L38: * | M38: 25.3 | N38: * | O38: 20.21 | P38: 16.88 | Q38: 14.901 | R38: * | S38: * | T38: * | U38: 17.516 | V38: 10.632 | W38: 12.5 | X38: 15.762 | Y38: * | Z38: * | AA38: * | AB38: 15.715 | AC38: 13.445 | AD38: 16.88 | AE38: * | AF38: * | AG38: * | AH38: 19.92
A39: Upper CI | B39: 24.161 | C39: 22.42 | D39: * | E39: * | F39: * | G39: * | H39: * | I39: 18.761 | J39: * | K39: * | L39: * | M39: 32.02 | N39: * | O39: 24.53 | P39: 22.05 | Q39: 22.444 | R39: * | S39: * | T39: * | U39: 26.449 | V39: 16.51 | W39: 19.01 | X39: 23.884 | Y39: * | Z39: * | AA39: * | AB39: 25.223 | AC39: 20.929 | AD39: 23.04 | AE39: * | AF39: * | AG39: * | AH39: 21.57
A42: Bases (weighted):
A43: Men | B43: 364.433 | C43: 441.16 | D43: 192.61 | E43: 165.798 | F43: 76.663 | G43: 262.106 | H43: 260.443 | I43: 202.578 | J43: 196.393 | K43: 177.209 | L43: 143.898 | M43: 913.59 | N43: 265.39 | O43: 618.84 | P43: 968.27 | Q43: 375.657 | R43: 129.299 | S43: 111.713 | T43: 172.206 | U43: 48.446 | V43: 228.688 | W43: 609.26 | X43: 38.805 | Y43: 225.547 | Z43: 262.11 | AA43: 183.856 | AB43: 41.939 | AC43: 174.858 | AD43: 584.15 | AE43: 155.993 | AF43: 134.177 | AG43: 327.802 | AH43: 9053.88
A44: Women | B44: 404.93 | C44: 470 | D44: 214.28 | E44: 157.802 | F44: 87.908 | G44: 275.466 | H44: 283.567 | I44: 244.375 | J44: 190.557 | K44: 197.648 | L44: 160.611 | M44: 850.16 | N44: 271.755 | O44: 663.33 | P44: 1084.09 | Q44: 429.052 | R44: 145.267 | S44: 137.367 | T44: 204.394 | U44: 48.518 | V44: 252.573 | W44: 700.46 | X44: 39.048 | Y44: 273.349 | Z44: 257.548 | AA44: 222.276 | AB44: 39.383 | AC44: 213.921 | AD44: 617.7 | AE44: 192.86 | AF44: 159.316 | AG44: 311.158 | AH44: 9800.67
A45: All Adults | B45: 769.362 | C45: 911.16 | D45: 406.89 | E45: 323.6 | F45: 164.571 | G45: 537.572 | H45: 544.01 | I45: 446.953 | J45: 386.95 | K45: 374.856 | L45: 304.509 | M45: 1763.75 | N45: 537.146 | O45: 1282.17 | P45: 2052.35 | Q45: 804.708 | R45: 274.566 | S45: 249.081 | T45: 376.6 | U45: 96.964 | V45: 481.261 | W45: 1309.72 | X45: 77.853 | Y45: 498.896 | Z45: 519.658 | AA45: 406.133 | AB45: 81.322 | AC45: 388.779 | AD45: 1201.85 | AE45: 348.853 | AF45: 293.493 | AG45: 638.96 | AH45: 18854.55
A46: Bases (unweighted)
A47: Men | B47: 426 | C47: 516 | D47: 134 | E47: 116 | F47: 48 | G47: 221 | H47: 159 | I47: 318 | J47: 150 | K47: 104 | L47: 114 | M47: 589 | N47: 159 | O47: 902 | P47: 656 | Q47: 239 | R47: 98 | S47: 71 | T47: 191 | U47: 387 | V47: 344 | W47: 343 | X47: 234 | Y47: 178 | Z47: 186 | AA47: 199 | AB47: 247 | AC47: 286 | AD47: 356 | AE47: 100 | AF47: 98 | AG47: 171 | AH47: 8340
A48: Women | B48: 541 | C48: 624 | D48: 163 | E48: 136 | F48: 66 | G48: 258 | H48: 193 | I48: 414 | J48: 179 | K48: 128 | L48: 145 | M48: 662 | N48: 196 | O48: 1142 | P48: 895 | Q48: 327 | R48: 128 | S48: 103 | T48: 264 | U48: 461 | V48: 418 | W48: 476 | X48: 271 | Y48: 234 | Z48: 212 | AA48: 278 | AB48: 277 | AC48: 377 | AD48: 458 | AE48: 149 | AF48: 133 | AG48: 212 | AH48: 10520
A49: All Adults | B49: 967 | C49: 1140 | D49: 297 | E49: 252 | F49: 114 | G49: 479 | H49: 352 | I49: 732 | J49: 329 | K49: 232 | L49: 259 | M49: 1251 | N49: 355 | O49: 2044 | P49: 1551 | Q49: 566 | R49: 226 | S49: 174 | T49: 455 | U49: 848 | V49: 762 | W49: 819 | X49: 505 | Y49: 412 | Z49: 398 | AA49: 477 | AB49: 524 | AC49: 663 | AD49: 814 | AE49: 249 | AF49: 231 | AG49: 383 | AH49: 18860

Sheet Fruit and veg chart
R1: INDEX
C31: Source: Scottish Health Survey
C34: Aberdeen City | D34: Aberdeenshire | E34: East Ayrshire | F34: Edinburgh, City of | G34: Fife | H34: Glasgow City | I34: Highland | J34: Na h-Eileanan Siar | K34: North Ayrshire | L34: North Lanarkshire | M34: Orkney Islands | N34: Shetland Islands | O34: South Ayrshire | P34: South Lanarkshire | R34: Scotland
B35: All Adults
B36: None | C36: ='Fruit and vegetables'!B31 -> 7.057 | D36: ='Fruit and vegetables'!C31 -> 9.23 | E36: ='Fruit and vegetables'!I31 -> 14.004 | F36: ='Fruit and vegetables'!M31 -> 6.41 | G36: ='Fruit and vegetables'!O31 -> 9.56 | H36: ='Fruit and vegetables'!P31 -> 12.34 | I36: ='Fruit and vegetables'!Q31 -> 10.434 | J36: ='Fruit and vegetables'!U31 -> 8.162 | K36: ='Fruit and vegetables'!V31 -> 15.447 | L36: ='Fruit and vegetables'!W31 -> 14.48 | M36: ='Fruit and vegetables'!X31 -> 8.817 | N36: ='Fruit and vegetables'!AB31 -> 9.353 | O36: ='Fruit and vegetables'!AC31 -> 8.55 | P36: ='Fruit and vegetables'!AD31 -> 10.16 | R36: ='Fruit and vegetables'!AH31 -> 10.52
B37: Lower CI | C37: ='Fruit and vegetables'!B32 -> 5.22 | D37: ='Fruit and vegetables'!C32 -> 6.8 | E37: ='Fruit and vegetables'!I32 -> 11.517 | F37: ='Fruit and vegetables'!M32 -> 4.97 | G37: ='Fruit and vegetables'!O32 -> 7.96 | H37: ='Fruit and vegetables'!P32 -> 9.91 | I37: ='Fruit and vegetables'!Q32 -> 7.816 | J37: ='Fruit and vegetables'!U32 -> 5.913 | K37: ='Fruit and vegetables'!V32 -> 11.991 | L37: ='Fruit and vegetables'!W32 -> 11.45 | M37: ='Fruit and vegetables'!X32 -> 6.237 | N37: ='Fruit and vegetables'!AB32 -> 6.257 | O37: ='Fruit and vegetables'!AC32 -> 6.149 | P37: ='Fruit and vegetables'!AD32 -> 6.53 | R37: ='Fruit and vegetables'!AH32 -> 9.86
B38: Upper CI | C38: ='Fruit and vegetables'!B33 -> 8.893 | D38: ='Fruit and vegetables'!C33 -> 11.67 | E38: ='Fruit and vegetables'!I33 -> 16.49 | F38: ='Fruit and vegetables'!M33 -> 7.85 | G38: ='Fruit and vegetables'!O33 -> 11.16 | H38: ='Fruit and vegetables'!P33 -> 14.77 | I38: ='Fruit and vegetables'!Q33 -> 13.051 | J38: ='Fruit and vegetables'!U33 -> 10.412 | K38: ='Fruit and vegetables'!V33 -> 18.903 | L38: ='Fruit and vegetables'!W33 -> 17.52 | M38: ='Fruit and vegetables'!X33 -> 11.398 | N38: ='Fruit and vegetables'!AB33 -> 12.45 | O38: ='Fruit and vegetables'!AC33 -> 10.951 | P38: ='Fruit and vegetables'!AD33 -> 13.79 | R38: ='Fruit and vegetables'!AH33 -> 11.19
B39: Less than 5 portions | C39: ='Fruit and vegetables'!B34 -> 71.616 | D39: ='Fruit and vegetables'!C34 -> 71.28 | E39: ='Fruit and vegetables'!I34 -> 70.876 | F39: ='Fruit and vegetables'!M34 -> 64.93 | G39: ='Fruit and vegetables'!O34 -> 68.07 | H39: ='Fruit and vegetables'!P34 -> 68.19 | I39: ='Fruit and vegetables'!Q34 -> 70.894 | J39: ='Fruit and vegetables'!U34 -> 69.855 | K39: ='Fruit and vegetables'!V34 -> 70.981 | L39: ='Fruit and vegetables'!W34 -> 69.76 | M39: ='Fruit and vegetables'!X34 -> 71.36 | N39: ='Fruit and vegetables'!AB34 -> 70.178 | O39: ='Fruit and vegetables'!AC34 -> 74.263 | P39: ='Fruit and vegetables'!AD34 -> 69.88 | R39: ='Fruit and vegetables'!AH34 -> 68.73
B40: Lower CI | C40: ='Fruit and vegetables'!B35 -> 68.167 | D40: ='Fruit and vegetables'!C35 -> 68.29 | E40: ='Fruit and vegetables'!I35 -> 66.766 | F40: ='Fruit and vegetables'!M35 -> 61.5 | G40: ='Fruit and vegetables'!O35 -> 65.68 | H40: ='Fruit and vegetables'!P35 -> 65.31 | I40: ='Fruit and vegetables'!Q35 -> 66.626 | J40: ='Fruit and vegetables'!U35 -> 65.605 | K40: ='Fruit and vegetables'!V35 -> 67.097 | L40: ='Fruit and vegetables'!W35 -> 65.58 | M40: ='Fruit and vegetables'!X35 -> 67.344 | N40: ='Fruit and vegetables'!AB35 -> 66.169 | O40: ='Fruit and vegetables'!AC35 -> 69.916 | P40: ='Fruit and vegetables'!AD35 -> 65.93 | R40: ='Fruit and vegetables'!AH35 -> 67.84
B41: Upper CI | C41: ='Fruit and vegetables'!B36 -> 75.065 | D41: ='Fruit and vegetables'!C36 -> 74.28 | E41: ='Fruit and vegetables'!I36 -> 74.986 | F41: ='Fruit and vegetables'!M36 -> 68.36 | G41: ='Fruit and vegetables'!O36 -> 70.46 | H41: ='Fruit and vegetables'!P36 -> 71.07 | I41: ='Fruit and vegetables'!Q36 -> 75.162 | J41: ='Fruit and vegetables'!U36 -> 74.105 | K41: ='Fruit and vegetables'!V36 -> 74.866 | L41: ='Fruit and vegetables'!W36 -> 73.94 | M41: ='Fruit and vegetables'!X36 -> 75.376 | N41: ='Fruit and vegetables'!AB36 -> 74.187 | O41: ='Fruit and vegetables'!AC36 -> 78.61 | P41: ='Fruit and vegetables'!AD36 -> 73.83 | R41: ='Fruit and vegetables'!AH36 -> 69.63
B42: 5 portions or more | C42: ='Fruit and vegetables'!B37 -> 21.327 | D42: ='Fruit and vegetables'!C37 -> 19.49 | E42: ='Fruit and vegetables'!I37 -> 15.12 | F42: ='Fruit and vegetables'!M37 -> 28.66 | G42: ='Fruit and vegetables'!O37 -> 22.37 | H42: ='Fruit and vegetables'!P37 -> 19.47 | I42: ='Fruit and vegetables'!Q37 -> 18.672 | J42: ='Fruit and vegetables'!U37 -> 21.982 | K42: ='Fruit and vegetables'!V37 -> 13.571 | L42: ='Fruit and vegetables'!W37 -> 15.76 | M42: ='Fruit and vegetables'!X37 -> 19.823 | N42: ='Fruit and vegetables'!AB37 -> 20.469 | O42: ='Fruit and vegetables'!AC37 -> 17.187 | P42: ='Fruit and vegetables'!AD37 -> 19.96 | R42: ='Fruit and vegetables'!AH37 -> 20.74
B43: Lower CI | C43: ='Fruit and vegetables'!B38 -> 18.493 | D43: ='Fruit and vegetables'!C38 -> 16.55 | E43: ='Fruit and vegetables'!I38 -> 11.48 | F43: ='Fruit and vegetables'!M38 -> 25.3 | G43: ='Fruit and vegetables'!O38 -> 20.21 | H43: ='Fruit and vegetables'!P38 -> 16.88 | I43: ='Fruit and vegetables'!Q38 -> 14.901 | J43: ='Fruit and vegetables'!U38 -> 17.516 | K43: ='Fruit and vegetables'!V38 -> 10.632 | L43: ='Fruit and vegetables'!W38 -> 12.5 | M43: ='Fruit and vegetables'!X38 -> 15.762 | N43: ='Fruit and vegetables'!AB38 -> 15.715 | O43: ='Fruit and vegetables'!AC38 -> 13.445 | P43: ='Fruit and vegetables'!AD38 -> 16.88 | R43: ='Fruit and vegetables'!AH38 -> 19.92
B44: Upper CI | C44: ='Fruit and vegetables'!B39 -> 24.161 | D44: ='Fruit and vegetables'!C39 -> 22.42 | E44: ='Fruit and vegetables'!I39 -> 18.761 | F44: ='Fruit and vegetables'!M39 -> 32.02 | G44: ='Fruit and vegetables'!O39 -> 24.53 | H44: ='Fruit and vegetables'!P39 -> 22.05 | I44: ='Fruit and vegetables'!Q39 -> 22.444 | J44: ='Fruit and vegetables'!U39 -> 26.449 | K44: ='Fruit and vegetables'!V39 -> 16.51 | L44: ='Fruit and vegetables'!W39 -> 19.01 | M44: ='Fruit and vegetables'!X39 -> 23.884 | N44: ='Fruit and vegetables'!AB39 -> 25.223 | O44: ='Fruit and vegetables'!AC39 -> 20.929 | P44: ='Fruit and vegetables'!AD39 -> 23.04 | R44: ='Fruit and vegetables'!AH39 -> 21.57
A46: CLs | B46: None | C46: =C36-C37 -> 1.837 | D46: =D36-D37 -> 2.43 | E46: =E36-E37 -> 2.487 | F46: =F36-F37 -> 1.44 | G46: =G36-G37 -> 1.6 | H46: =H36-H37 -> 2.43 | I46: 2.618 | J46: 2.249 | K46: 3.456 | L46: 3.03 | M46: 2.58 | N46: 3.096 | O46: 2.401 | P46: 3.63 | R46: =R36-R37 -> 0.66
B47: Less than 5 portions | C47: =C39-C40 -> 3.449 | D47: =D39-D40 -> 2.99 | E47: =E39-E40 -> 4.11 | F47: =F39-F40 -> 3.43 | G47: =G39-G40 -> 2.39 | H47: =H39-H40 -> 2.88 | I47: 4.268 | J47: 4.25 | K47: 3.884 | L47: 4.18 | M47: 4.016 | N47: 4.009 | O47: 4.347 | P47: 3.95 | R47: =R39-R40 -> 0.89
B48: 5 portions or more | C48: =C42-C43 -> 2.834 | D48: =D42-D43 -> 2.94 | E48: =E42-E43 -> 3.64 | F48: =F42-F43 -> 3.36 | G48: =G42-G43 -> 2.16 | H48: =H42-H43 -> 2.59 | I48: 3.771 | J48: 4.466 | K48: 2.939 | L48: 3.26 | M48: 4.061 | N48: 4.754 | O48: 3.742 | P48: 3.08 | R48: =R42-R43 -> 0.82

Sheet Mean fruit and vegetables
A1: Mean daily portions of fruit and vegetables, by Local Authority and sex | M1: INDEX
A4: Aged 16 and over | B4: PLEASE NOTE: Where the sample size for a Local Authority was below 500, the result has been suppressed. This is shown here by *. | P4: 2013/2014/2015/2016 combined
A5: Mean daily portions of fruit and vegetables | B5: Local Authority
B6: Aberdeen City | C6: Aberdeenshire | D6: Angus | E6: Argyll & Bute | F6: Clackmannanshire | G6: Dumfries & Galloway | H6: Dundee City | I6: East Ayrshire | J6: East Dunbartonshire | K6: East Lothian | L6: East Renfrewshire | M6: Edinburgh, City of | N6: Falkirk | O6: Fife | P6: Glasgow City | Q6: Highland | R6: Inverclyde | S6: Midlothian | T6: Moray | U6: Na h-Eileanan Siar | V6: North Ayrshire | W6: North Lanarkshire | X6: Orkney Islands | Y6: Perth & Kinross | Z6: Renfrewshire | AA6: Scottish Borders | AB6: Shetland Islands | AC6: South Ayrshire | AD6: South Lanarkshire | AE6: Stirling | AF6: West Dunbartonshire | AG6: West Lothian | AH6: Scotland
A7: Men
A8: Mean | B8: 3.156 | C8: 3.07 | D8: * | E8: * | F8: * | G8: * | H8: * | I8: 2.618 | J8: * | K8: * | L8: * | M8: 3.65 | N8: * | O8: 3.05 | P8: 2.83 | Q8: 3.054 | R8: * | S8: * | T8: * | U8: 3.22 | V8: 2.499 | W8: 2.69 | X8: 2.965 | Y8: * | Z8: * | AA8: * | AB8: 2.886 | AC8: 2.939 | AD8: 3 | AE8: * | AF8: * | AG8: * | AH8: 3.01
A9: Lower CI | B9: 2.887 | C9: 2.84 | D9: * | E9: * | F9: * | G9: * | H9: * | I9: 2.313 | J9: * | K9: * | L9: * | M9: 3.38 | N9: * | O9: 2.86 | P9: 2.61 | Q9: 2.699 | R9: * | S9: * | T9: * | U9: 2.94 | V9: 2.214 | W9: 2.36 | X9: 2.618 | Y9: * | Z9: * | AA9: * | AB9: 2.549 | AC9: 2.655 | AD9: 2.74 | AE9: * | AF9: * | AG9: * | AH9: 2.94
A10: Upper CI | B10: 3.424 | C10: 3.31 | D10: * | E10: * | F10: * | G10: * | H10: * | I10: 2.922 | J10: * | K10: * | L10: * | M10: 3.93 | N10: * | O10: 3.25 | P10: 3.06 | Q10: 3.408 | R10: * | S10: * | T10: * | U10: 3.499 | V10: 2.784 | W10: 3.03 | X10: 3.312 | Y10: * | Z10: * | AA10: * | AB10: 3.223 | AC10: 3.223 | AD10: 3.27 | AE10: * | AF10: * | AG10: * | AH10: 3.08
A12: Women
A13: Mean | B13: 3.469 | C13: 3.14 | D13: * | E13: * | F13: * | G13: * | H13: * | I13: 2.834 | J13: * | K13: * | L13: * | M13: 3.87 | N13: * | O13: 3.48 | P13: 3.11 | Q13: 3.216 | R13: * | S13: * | T13: * | U13: 3.486 | V13: 2.579 | W13: 2.76 | X13: 3.4 | Y13: * | Z13: * | AA13: * | AB13: 3.47 | AC13: 2.99 | AD13: 3.21 | AE13: * | AF13: * | AG13: * | AH13: 3.26
A14: Lower CI | B14: 3.185 | C14: 2.91 | D14: * | E14: * | F14: * | G14: * | H14: * | I14: 2.551 | J14: * | K14: * | L14: * | M14: 3.63 | N14: * | O14: 3.3 | P14: 2.9 | Q14: 2.976 | R14: * | S14: * | T14: * | U14: 3.119 | V14: 2.351 | W14: 2.5 | X14: 3.131 | Y14: * | Z14: * | AA14: * | AB14: 3.092 | AC14: 2.69 | AD14: 2.9 | AE14: * | AF14: * | AG14: * | AH14: 3.2
A15: Upper CI | B15: 3.754 | C15: 3.37 | D15: * | E15: * | F15: * | G15: * | H15: * | I15: 3.117 | J15: * | K15: * | L15: * | M15: 4.12 | N15: * | O15: 3.66 | P15: 3.33 | Q15: 3.456 | R15: * | S15: * | T15: * | U15: 3.852 | V15: 2.806 | W15: 3.02 | X15: 3.669 | Y15: * | Z15: * | AA15: * | AB15: 3.849 | AC15: 3.289 | AD15: 3.51 | AE15: * | AF15: * | AG15: * | AH15: 3.33
A17: All adults
A18: Mean | B18: 3.321 | C18: 3.11 | D18: * | E18: * | F18: * | G18: * | H18: * | I18: 2.736 | J18: * | K18: * | L18: * | M18: 3.76 | N18: * | O18: 3.27 | P18: 2.98 | Q18: 3.14 | R18: * | S18: * | T18: * | U18: 3.353 | V18: 2.541 | W18: 2.73 | X18: 3.183 | Y18: * | Z18: * | AA18: * | AB18: 3.169 | AC18: 2.967 | AD18: 3.11 | AE18: * | AF18: * | AG18: * | AH18: 3.14
A19: Lower CI | B19: 3.123 | C19: 2.91 | D19: * | E19: * | F19: * | G19: * | H19: * | I19: 2.474 | J19: * | K19: * | L19: * | M19: 3.54 | N19: * | O19: 3.12 | P19: 2.81 | Q19: 2.911 | R19: * | S19: * | T19: * | U19: 3.077 | V19: 2.32 | W19: 2.5 | X19: 2.942 | Y19: * | Z19: * | AA19: * | AB19: 2.871 | AC19: 2.709 | AD19: 2.89 | AE19: * | AF19: * | AG19: * | AH19: 3.09
A20: Upper CI | B20: 3.518 | C20: 3.3 | D20: * | E20: * | F20: * | G20: * | H20: * | I20: 2.997 | J20: * | K20: * | L20: * | M20: 3.98 | N20: * | O20: 3.43 | P20: 3.16 | Q20: 3.369 | R20: * | S20: * | T20: * | U20: 3.629 | V20: 2.762 | W20: 2.96 | X20: 3.425 | Y20: * | Z20: * | AA20: * | AB20: 3.467 | AC20: 3.225 | AD20: 3.33 | AE20: * | AF20: * | AG20: * | AH20: 3.2
A22: Bases (weighted):
A23: Men | B23: 364.433 | C23: 441.16 | D23: 192.61 | E23: 165.798 | F23: 76.663 | G23: 262.106 | H23: 260.443 | I23: 202.578 | J23: 196.393 | K23: 177.209 | L23: 143.898 | M23: 913.59 | N23: 265.39 | O23: 618.84 | P23: 968.27 | Q23: 375.657 | R23: 129.299 | S23: 111.713 | T23: 172.206 | U23: 48.446 | V23: 228.688 | W23: 609.26 | X23: 38.805 | Y23: 225.547 | Z23: 262.11 | AA23: 183.856 | AB23: 41.939 | AC23: 174.858 | AD23: 584.15 | AE23: 155.993 | AF23: 134.177 | AG23: 327.802 | AH23: 9053.88
A24: Women | B24: 404.93 | C24: 470 | D24: 214.28 | E24: 157.802 | F24: 87.908 | G24: 275.466 | H24: 283.567 | I24: 244.375 | J24: 190.557 | K24: 197.648 | L24: 160.611 | M24: 850.16 | N24: 271.755 | O24: 663.33 | P24: 1084.09 | Q24: 429.052 | R24: 145.267 | S24: 137.367 | T24: 204.394 | U24: 48.518 | V24: 252.573 | W24: 700.46 | X24: 39.048 | Y24: 273.349 | Z24: 257.548 | AA24: 222.276 | AB24: 39.383 | AC24: 213.921 | AD24: 617.7 | AE24: 192.86 | AF24: 159.316 | AG24: 311.158 | AH24: 9800.67
A25: All Adults | B25: 769.362 | C25: 911.16 | D25: 406.89 | E25: 323.6 | F25: 164.571 | G25: 537.572 | H25: 544.01 | I25: 446.953 | J25: 386.95 | K25: 374.856 | L25: 304.509 | M25: 1763.75 | N25: 537.146 | O25: 1282.17 | P25: 2052.35 | Q25: 804.708 | R25: 274.566 | S25: 249.081 | T25: 376.6 | U25: 96.964 | V25: 481.261 | W25: 1309.72 | X25: 77.853 | Y25: 498.896 | Z25: 519.658 | AA25: 406.133 | AB25: 81.322 | AC25: 388.779 | AD25: 1201.85 | AE25: 348.853 | AF25: 293.493 | AG25: 638.96 | AH25: 18854.55
A26: Bases (unweighted)
A27: Men | B27: 426 | C27: 516 | D27: 134 | E27: 116 | F27: 48 | G27: 221 | H27: 159 | I27: 318 | J27: 150 | K27: 104 | L27: 114 | M27: 589 | N27: 159 | O27: 902 | P27: 656 | Q27: 239 | R27: 98 | S27: 71 | T27: 191 | U27: 387 | V27: 344 | W27: 343 | X27: 234 | Y27: 178 | Z27: 186 | AA27: 199 | AB27: 247 | AC27: 286 | AD27: 356 | AE27: 100 | AF27: 98 | AG27: 171 | AH27: 8340
A28: Women | B28: 541 | C28: 624 | D28: 163 | E28: 136 | F28: 66 | G28: 258 | H28: 193 | I28: 414 | J28: 179 | K28: 128 | L28: 145 | M28: 662 | N28: 196 | O28: 1142 | P28: 895 | Q28: 327 | R28: 128 | S28: 103 | T28: 264 | U28: 461 | V28: 418 | W28: 476 | X28: 271 | Y28: 234 | Z28: 212 | AA28: 278 | AB28: 277 | AC28: 377 | AD28: 458 | AE28: 149 | AF28: 133 | AG28: 212 | AH28: 10520
A29: All Adults | B29: 967 | C29: 1140 | D29: 297 | E29: 252 | F29: 114 | G29: 479 | H29: 352 | I29: 732 | J29: 329 | K29: 232 | L29: 259 | M29: 1251 | N29: 355 | O29: 2044 | P29: 1551 | Q29: 566 | R29: 226 | S29: 174 | T29: 455 | U29: 848 | V29: 762 | W29: 819 | X29: 505 | Y29: 412 | Z29: 398 | AA29: 477 | AB29: 524 | AC29: 663 | AD29: 814 | AE29: 249 | AF29: 231 | AG29: 383 | AH29: 18860

Sheet Mean fruit and veg chart
R1: INDEX
C31: Source: Scottish Health Survey
C34: Aberdeen City | D34: Aberdeenshire | E34: East Ayrshire | F34: Edinburgh, City of | G34: Fife | H34: Glasgow City | I34: Highland | J34: Na h-Eileanan Siar | K34: North Ayrshire | L34: North Lanarkshire | M34: Orkney Islands | N34: Shetland Islands | O34: South Ayrshire | P34: South Lanarkshire | R34: Scotland
B35: All adults
B36: Mean | C36: ='Mean fruit and vegetables'!B18 -> 3.321 | D36: ='Mean fruit and vegetables'!C18 -> 3.11 | E36: ='Mean fruit and vegetables'!I18 -> 2.736 | F36: ='Mean fruit and vegetables'!M18 -> 3.76 | G36: ='Mean fruit and vegetables'!O18 -> 3.27 | H36: ='Mean fruit and vegetables'!P18 -> 2.98 | I36: ='Mean fruit and vegetables'!Q18 -> 3.14 | J36: ='Mean fruit and vegetables'!U18 -> 3.353 | K36: ='Mean fruit and vegetables'!V18 -> 2.541 | L36: ='Mean fruit and vegetables'!W18 -> 2.73 | M36: ='Mean fruit and vegetables'!X18 -> 3.183 | N36: ='Mean fruit and vegetables'!AB18 -> 3.169 | O36: ='Mean fruit and vegetables'!AC18 -> 2.967 | P36: ='Mean fruit and vegetables'!AD18 -> 3.11 | R36: ='Mean fruit and vegetables'!AH18 -> 3.14
B37: Lower CI | C37: ='Mean fruit and vegetables'!B19 -> 3.123 | D37: ='Mean fruit and vegetables'!C19 -> 2.91 | E37: ='Mean fruit and vegetables'!I19 -> 2.474 | F37: ='Mean fruit and vegetables'!M19 -> 3.54 | G37: ='Mean fruit and vegetables'!O19 -> 3.12 | H37: ='Mean fruit and vegetables'!P19 -> 2.81 | I37: ='Mean fruit and vegetables'!Q19 -> 2.911 | J37: ='Mean fruit and vegetables'!U19 -> 3.077 | K37: ='Mean fruit and vegetables'!V19 -> 2.32 | L37: ='Mean fruit and vegetables'!W19 -> 2.5 | M37: ='Mean fruit and vegetables'!X19 -> 2.942 | N37: ='Mean fruit and vegetables'!AB19 -> 2.871 | O37: ='Mean fruit and vegetables'!AC19 -> 2.709 | P37: ='Mean fruit and vegetables'!AD19 -> 2.89 | R37: ='Mean fruit and vegetables'!AH19 -> 3.09
B38: Upper CI | C38: ='Mean fruit and vegetables'!B20 -> 3.518 | D38: ='Mean fruit and vegetables'!C20 -> 3.3 | E38: ='Mean fruit and vegetables'!I20 -> 2.997 | F38: ='Mean fruit and vegetables'!M20 -> 3.98 | G38: ='Mean fruit and vegetables'!O20 -> 3.43 | H38: ='Mean fruit and vegetables'!P20 -> 3.16 | I38: ='Mean fruit and vegetables'!Q20 -> 3.369 | J38: ='Mean fruit and vegetables'!U20 -> 3.629 | K38: ='Mean fruit and vegetables'!V20 -> 2.762 | L38: ='Mean fruit and vegetables'!W20 -> 2.96 | M38: ='Mean fruit and vegetables'!X20 -> 3.425 | N38: ='Mean fruit and vegetables'!AB20 -> 3.467 | O38: ='Mean fruit and vegetables'!AC20 -> 3.225 | P38: ='Mean fruit and vegetables'!AD20 -> 3.33 | R38: ='Mean fruit and vegetables'!AH20 -> 3.2
A40: CLs | C40: =C36-C37 -> 0.198 | D40: =D36-D37 -> 0.2 | E40: =E36-E37 -> 0.262 | F40: =F36-F37 -> 0.22 | G40: =G36-G37 -> 0.15 | H40: =H36-H37 -> 0.17 | I40: 0.229 | J40: 0.276 | K40: 0.221 | L40: 0.23 | M40: 0.241 | N40: 0.298 | O40: 0.258 | P40: 0.22 | R40: =R36-R37 -> 0.05

Sheet Physical activity guidelines
A1: Adherence to physical activity guidelines, by Local Authority and sex | N1: INDEX
A4: Aged 16 and over | B4: PLEASE NOTE: Where the sample size for a Local Authority was below 500, the result has been suppressed. This is shown here by *. | P4: 2013/2014/2015/2016 combined
A5: Physical activity guidelinesa | B5: Local Authority
B6: Aberdeen City | C6: Aberdeenshire | D6: Angus | E6: Argyll & Bute | F6: Clackmannanshire | G6: Dumfries & Galloway | H6: Dundee City | I6: East Ayrshire | J6: East Dunbartonshire | K6: East Lothian | L6: East Renfrewshire | M6: Edinburgh, City of | N6: Falkirk | O6: Fife | P6: Glasgow City | Q6: Highland | R6: Inverclyde | S6: Midlothian | T6: Moray | U6: Na h-Eileanan Siar | V6: North Ayrshire | W6: North Lanarkshire | X6: Orkney Islands | Y6: Perth & Kinross | Z6: Renfrewshire | AA6: Scottish Borders | AB6: Shetland Islands | AC6: South Ayrshire | AD6: South Lanarkshire | AE6: Stirling | AF6: West Dunbartonshire | AG6: West Lothian | AH6: Scotland
B7: % | C7: % | D7: % | E7: % | F7: % | G7: % | H7: % | I7: % | J7: % | K7: % | L7: % | M7: % | N7: % | O7: % | P7: % | Q7: % | R7: % | S7: % | T7: % | U7: % | V7: % | W7: % | X7: % | Y7: % | Z7: % | AA7: % | AB7: % | AC7: % | AD7: % | AE7: % | AF7: % | AG7: % | AH7: %
A8: Men
A9: Meets guidelines | B9: 70.651 | C9: 68.21 | D9: * | E9: * | F9: * | G9: * | H9: * | I9: 63.896 | J9: * | K9: * | L9: * | M9: 75.54 | N9: * | O9: 70.88 | P9: 68.4 | Q9: 66.284 | R9: * | S9: * | T9: * | U9: 69.805 | V9: 65.806 | W9: 61.53 | X9: * | Y9: * | Z9: * | AA9: * | AB9: 69.735 | AC9: 69.133 | AD9: 68.14 | AE9: * | AF9: * | AG9: * | AH9: 68.6
A10: Lower CI | B10: 66.143 | C10: 64.04 | D10: * | E10: * | F10: * | G10: * | H10: * | I10: 57.881 | J10: * | K10: * | L10: * | M10: 71.02 | N10: * | O10: 67.47 | P10: 64.56 | Q10: 58.089 | R10: * | S10: * | T10: * | U10: 64.978 | V10: 61.652 | W10: 55.92 | X10: * | Y10: * | Z10: * | AA10: * | AB10: 62.488 | AC10: 62.521 | AD10: 63.17 | AE10: * | AF10: * | AG10: * | AH10: 67.33
A11: Upper CI | B11: 75.16 | C11: 72.39 | D11: * | E11: * | F11: * | G11: * | H11: * | I11: 69.911 | J11: * | K11: * | L11: * | M11: 80.07 | N11: * | O11: 74.29 | P11: 72.23 | Q11: 74.479 | R11: * | S11: * | T11: * | U11: 74.632 | V11: 69.959 | W11: 67.14 | X11: * | Y11: * | Z11: * | AA11: * | AB11: 76.982 | AC11: 75.744 | AD11: 73.11 | AE11: * | AF11: * | AG11: * | AH11: 69.86
A12: Some activity | B12: 6.334 | C12: 9.89 | D12: * | E12: * | F12: * | G12: * | H12: * | I12: 7.402 | J12: * | K12: * | L12: * | M12: 8.28 | N12: * | O12: 6.47 | P12: 8.15 | Q12: 13.421 | R12: * | S12: * | T12: * | U12: 9.991 | V12: 6.88 | W12: 11.11 | X12: * | Y12: * | Z12: * | AA12: * | AB12: 9.466 | AC12: 9.152 | AD12: 8.87 | AE12: * | AF12: * | AG12: * | AH12: 9.13
A13: Lower CI | B13: 3.982 | C13: 7.2 | D13: * | E13: * | F13: * | G13: * | H13: * | I13: 3.911 | J13: * | K13: * | L13: * | M13: 5.9 | N13: * | O13: 4.87 | P13: 5.91 | Q13: 9.174 | R13: * | S13: * | T13: * | U13: 6.706 | V13: 4.151 | W13: 6.77 | X13: * | Y13: * | Z13: * | AA13: * | AB13: 5.621 | AC13: 5.839 | AD13: 5.5 | AE13: * | AF13: * | AG13: * | AH13: 8.34
A14: Upper CI | B14: 8.686 | C14: 12.59 | D14: * | E14: * | F14: * | G14: * | H14: * | I14: 10.893 | J14: * | K14: * | L14: * | M14: 10.66 | N14: * | O14: 8.07 | P14: 10.4 | Q14: 17.668 | R14: * | S14: * | T14: * | U14: 13.277 | V14: 9.609 | W14: 15.46 | X14: * | Y14: * | Z14: * | AA14: * | AB14: 13.311 | AC14: 12.466 | AD14: 12.24 | AE14: * | AF14: * | AG14: * | AH14: 9.92
A15: Low activity | B15: 4.417 | C15: 3.24 | D15: * | E15: * | F15: * | G15: * | H15: * | I15: 4.11 | J15: * | K15: * | L15: * | M15: 3.77 | N15: * | O15: 3.86 | P15: 3.88 | Q15: 3.169 | R15: * | S15: * | T15: * | U15: 3.162 | V15: 2.723 | W15: 3.97 | X15: * | Y15: * | Z15: * | AA15: * | AB15: 5.271 | AC15: 1.878 | AD15: 4.04 | AE15: * | AF15: * | AG15: * | AH15: 3.69
A16: Lower CI | B16: 2.457 | C16: 1.47 | D16: * | E16: * | F16: * | G16: * | H16: * | I16: 2.001 | J16: * | K16: * | L16: * | M16: 2.2 | N16: * | O16: 2.41 | P16: 2.32 | Q16: 1.105 | R16: * | S16: * | T16: * | U16: 1.292 | V16: 1.277 | W16: 2.06 | X16: * | Y16: * | Z16: * | AA16: * | AB16: 1.254 | AC16: 0.57 | AD16: 1.8 | AE16: * | AF16: * | AG16: * | AH16: 3.22
A17: Upper CI | B17: 6.378 | C17: 5.01 | D17: * | E17: * | F17: * | G17: * | H17: * | I17: 6.22 | J17: * | K17: * | L17: * | M17: 5.35 | N17: * | O17: 5.3 | P17: 5.43 | Q17: 5.234 | R17: * | S17: * | T17: * | U17: 5.032 | V17: 4.168 | W17: 5.88 | X17: * | Y17: * | Z17: * | AA17: * | AB17: 9.288 | AC17: 3.185 | AD17: 6.29 | AE17: * | AF17: * | AG17: * | AH17: 4.16
A18: Very low activity | B18: 18.598 | C18: 18.65 | D18: * | E18: * | F18: * | G18: * | H18: * | I18: 24.592 | J18: * | K18: * | L18: * | M18: 12.4 | N18: * | O18: 18.8 | P18: 19.57 | Q18: 17.125 | R18: * | S18: * | T18: * | U18: 17.042 | V18: 24.592 | W18: 23.39 | X18: * | Y18: * | Z18: * | AA18: * | AB18: 15.528 | AC18: 19.837 | AD18: 18.95 | AE18: * | AF18: * | AG18: * | AH18: 18.58
A19: Lower CI | B19: 15.299 | C19: 15.33 | D19: * | E19: * | F19: * | G19: * | H19: * | I19: 19.191 | J19: * | K19: * | L19: * | M19: 9.43 | N19: * | O19: 16.01 | P19: 16.36 | Q19: 10.786 | R19: * | S19: * | T19: * | U19: 13.421 | V19: 20.492 | W19: 18.18 | X19: * | Y19: * | Z19: * | AA19: * | AB19: 10.093 | AC19: 14.065 | AD19: 15.09 | AE19: * | AF19: * | AG19: * | AH19: 17.54
A20: Upper CI | B20: 21.896 | C20: 21.97 | D20: * | E20: * | F20: * | G20: * | H20: * | I20: 29.993 | J20: * | K20: * | L20: * | M20: 15.37 | N20: * | O20: 21.58 | P20: 22.79 | Q20: 23.465 | R20: * | S20: * | T20: * | U20: 20.663 | V20: 28.691 | W20: 28.59 | X20: * | Y20: * | Z20: * | AA20: * | AB20: 20.964 | AC20: 25.609 | AD20: 22.81 | AE20: * | AF20: * | AG20: * | AH20: 19.62
A22: Women
A23: Meets guidelines | B23: 64.865 | C23: 58.79 | D23: * | E23: * | F23: * | G23: * | H23: * | I23: 53.097 | J23: * | K23: * | L23: * | M23: 66.56 | N23: * | O23: 58.98 | P23: 53.96 | Q23: 56.876 | R23: * | S23: * | T23: * | U23: 59.153 | V23: 52.4 | W23: 55.88 | X23: * | Y23: * | Z23: * | AA23: * | AB23: 60.765 | AC23: 58.698 | AD23: 61.11 | AE23: * | AF23: * | AG23: * | AH23: 58.79
A24: Lower CI | B24: 59.513 | C24: 54.13 | D24: * | E24: * | F24: * | G24: * | H24: * | I24: 47.482 | J24: * | K24: * | L24: * | M24: 61.69 | N24: * | O24: 55.86 | P24: 50.34 | Q24: 51.705 | R24: * | S24: * | T24: * | U24: 54.04 | V24: 46.757 | W24: 50.73 | X24: * | Y24: * | Z24: * | AA24: * | AB24: 54.816 | AC24: 54.204 | AD24: 56.25 | AE24: * | AF24: * | AG24: * | AH24: 57.6
A25: Upper CI | B25: 70.218 | C25: 63.44 | D25: * | E25: * | F25: * | G25: * | H25: * | I25: 58.712 | J25: * | K25: * | L25: * | M25: 71.43 | N25: * | O25: 62.1 | P25: 57.58 | Q25: 62.047 | R25: * | S25: * | T25: * | U25: 64.265 | V25: 58.043 | W25: 61.03 | X25: * | Y25: * | Z25: * | AA25: * | AB25: 66.713 | AC25: 63.191 | AD25: 65.98 | AE25: * | AF25: * | AG25: * | AH25: 59.99
A26: Some activity | B26: 11.942 | C26: 14.99 | D26: * | E26: * | F26: * | G26: * | H26: * | I26: 13.626 | J26: * | K26: * | L26: * | M26: 9.74 | N26: * | O26: 13.75 | P26: 10.82 | Q26: 15.751 | R26: * | S26: * | T26: * | U26: 11.532 | V26: 14.332 | W26: 12.93 | X26: * | Y26: * | Z26: * | AA26: * | AB26: 13.039 | AC26: 11.694 | AD26: 12.14 | AE26: * | AF26: * | AG26: * | AH26: 12.97
A27: Lower CI | B27: 8.917 | C27: 11.54 | D27: * | E27: * | F27: * | G27: * | H27: * | I27: 9.091 | J27: * | K27: * | L27: * | M27: 6.87 | N27: * | O27: 11.68 | P27: 8.74 | Q27: 12.465 | R27: * | S27: * | T27: * | U27: 7.844 | V27: 10.203 | W27: 10.01 | X27: * | Y27: * | Z27: * | AA27: * | AB27: 9.587 | AC27: 8.364 | AD27: 9.36 | AE27: * | AF27: * | AG27: * | AH27: 12.23
A28: Upper CI | B28: 14.967 | C28: 18.44 | D28: * | E28: * | F28: * | G28: * | H28: * | I28: 18.162 | J28: * | K28: * | L28: * | M28: 12.61 | N28: * | O28: 15.83 | P28: 12.9 | Q28: 19.037 | R28: * | S28: * | T28: * | U28: 15.22 | V28: 18.46 | W28: 15.84 | X28: * | Y28: * | Z28: * | AA28: * | AB28: 16.492 | AC28: 15.024 | AD28: 14.93 | AE28: * | AF28: * | AG28: * | AH28: 13.72
A29: Low activity | B29: 3.377 | C29: 5.09 | D29: * | E29: * | F29: * | G29: * | H29: * | I29: 4.74 | J29: * | K29: * | L29: * | M29: 4.15 | N29: * | O29: 4.86 | P29: 5.62 | Q29: 3.619 | R29: * | S29: * | T29: * | U29: 4.559 | V29: 4.95 | W29: 5.01 | X29: * | Y29: * | Z29: * | AA29: * | AB29: 6.796 | AC29: 3.898 | AD29: 4.72 | AE29: * | AF29: * | AG29: * | AH29: 4.93
A30: Lower CI | B30: 1.91 | C30: 3.42 | D30: * | E30: * | F30: * | G30: * | H30: * | I30: 2.95 | J30: * | K30: * | L30: * | M30: 2.55 | N30: * | O30: 3.7 | P30: 3.95 | Q30: 1.43 | R30: * | S30: * | T30: * | U30: 2.596 | V30: 2.453 | W30: 2.61 | X30: * | Y30: * | Z30: * | AA30: * | AB30: 3.689 | AC30: 2.131 | AD30: 2.75 | AE30: * | AF30: * | AG30: * | AH30: 4.44
A31: Upper CI | B31: 4.844 | C31: 6.77 | D31: * | E31: * | F31: * | G31: * | H31: * | I31: 6.529 | J31: * | K31: * | L31: * | M31: 5.76 | N31: * | O31: 6.03 | P31: 7.29 | Q31: 5.807 | R31: * | S31: * | T31: * | U31: 6.522 | V31: 7.447 | W31: 7.41 | X31: * | Y31: * | Z31: * | AA31: * | AB31: 9.904 | AC31: 5.665 | AD31: 6.69 | AE31: * | AF31: * | AG31: * | AH31: 5.42
A32: Very low activity | B32: 19.816 | C32: 21.13 | D32: * | E32: * | F32: * | G32: * | H32: * | I32: 28.537 | J32: * | K32: * | L32: * | M32: 19.54 | N32: * | O32: 22.41 | P32: 29.6 | Q32: 23.754 | R32: * | S32: * | T32: * | U32: 24.756 | V32: 28.319 | W32: 26.19 | X32: * | Y32: * | Z32: * | AA32: * | AB32: 19.4 | AC32: 25.71 | AD32: 22.02 | AE32: * | AF32: * | AG32: * | AH32: 23.3
A33: Lower CI | B33: 15.933 | C33: 17.72 | D33: * | E33: * | F33: * | G33: * | H33: * | I33: 24.725 | J33: * | K33: * | L33: * | M33: 16.33 | N33: * | O33: 19.82 | P33: 26.18 | Q33: 19.089 | R33: * | S33: * | T33: * | U33: 21.249 | V33: 23.33 | W33: 21.48 | X33: * | Y33: * | Z33: * | AA33: * | AB33: 14.755 | AC33: 20.96 | AD33: 18.35 | AE33: * | AF33: * | AG33: * | AH33: 22.32
A34: Upper CI | B34: 23.699 | C34: 24.53 | D34: * | E34: * | F34: * | G34: * | H34: * | I34: 32.349 | J34: * | K34: * | L34: * | M34: 22.75 | N34: * | O34: 24.99 | P34: 33.02 | Q34: 28.419 | R34: * | S34: * | T34: * | U34: 28.263 | V34: 33.307 | W34: 30.9 | X34: * | Y34: * | Z34: * | AA34: * | AB34: 24.044 | AC34: 30.46 | AD34: 25.7 | AE34: * | AF34: * | AG34: * | AH34: 24.28
A36: All Adults
A37: Meets guidelines | B37: 67.615 | C37: 63.35 | D37: * | E37: * | F37: * | G37: * | H37: * | I37: 57.992 | J37: * | K37: * | L37: * | M37: 71.2 | N37: * | O37: 64.72 | P37: 60.79 | Q37: 61.297 | R37: * | S37: * | T37: * | U37: 64.486 | V37: 58.755 | W37: 58.5 | X37: * | Y37: * | Z37: * | AA37: * | AB37: 65.359 | AC37: 63.391 | AD37: 64.53 | AE37: * | AF37: * | AG37: * | AH37: 63.5
A38: Lower CI | B38: 63.588 | C38: 59.97 | D38: * | E38: * | F38: * | G38: * | H38: * | I38: 53.35 | J38: * | K38: * | L38: * | M38: 67.36 | N38: * | O38: 62.4 | P38: 57.84 | Q38: 56.345 | R38: * | S38: * | T38: * | U38: 61.456 | V38: 54.71 | W38: 54.1 | X38: * | Y38: * | Z38: * | AA38: * | AB38: 60.06 | AC38: 58.938 | AD38: 60.79 | AE38: * | AF38: * | AG38: * | AH38: 62.51
A39: Upper CI | B39: 71.643 | C39: 66.74 | D39: * | E39: * | F39: * | G39: * | H39: * | I39: 62.633 | J39: * | K39: * | L39: * | M39: 75.04 | N39: * | O39: 67.04 | P39: 63.74 | Q39: 66.249 | R39: * | S39: * | T39: * | U39: 67.515 | V39: 62.801 | W39: 62.9 | X39: * | Y39: * | Z39: * | AA39: * | AB39: 70.659 | AC39: 67.844 | AD39: 68.28 | AE39: * | AF39: * | AG39: * | AH39: 64.5
A40: Some activity | B40: 9.276 | C40: 12.52 | D40: * | E40: * | F40: * | G40: * | H40: * | I40: 10.805 | J40: * | K40: * | L40: * | M40: 8.99 | N40: * | O40: 10.24 | P40: 9.56 | Q40: 14.656 | R40: * | S40: * | T40: * | U40: 10.761 | V40: 10.799 | W40: 12.09 | X40: * | Y40: * | Z40: * | AA40: * | AB40: 11.209 | AC40: 10.551 | AD40: 10.55 | AE40: * | AF40: * | AG40: * | AH40: 11.13
A41: Lower CI | B41: 7.14 | C41: 10.26 | D41: * | E41: * | F41: * | G41: * | H41: * | I41: 7.686 | J41: * | K41: * | L41: * | M41: 6.81 | N41: * | O41: 8.92 | P41: 8.07 | Q41: 11.937 | R41: * | S41: * | T41: * | U41: 8.226 | V41: 8.12 | W41: 9.32 | X41: * | Y41: * | Z41: * | AA41: * | AB41: 8.025 | AC41: 8.089 | AD41: 8.21 | AE41: * | AF41: * | AG41: * | AH41: 10.56
A42: Upper CI | B42: 11.412 | C42: 14.78 | D42: * | E42: * | F42: * | G42: * | H42: * | I42: 13.924 | J42: * | K42: * | L42: * | M42: 11.16 | N42: * | O42: 11.55 | P42: 11.05 | Q42: 17.376 | R42: * | S42: * | T42: * | U42: 13.295 | V42: 13.478 | W42: 14.85 | X42: * | Y42: * | Z42: * | AA42: * | AB42: 14.393 | AC42: 13.013 | AD42: 12.89 | AE42: * | AF42: * | AG42: * | AH42: 11.7
A43: Low activity | B43: 3.871 | C43: 4.2 | D43: * | E43: * | F43: * | G43: * | H43: * | I43: 4.454 | J43: * | K43: * | L43: * | M43: 3.96 | N43: * | O43: 4.38 | P43: 4.8 | Q43: 3.407 | R43: * | S43: * | T43: * | U43: 3.86 | V43: 3.894 | W43: 4.52 | X43: * | Y43: * | Z43: * | AA43: * | AB43: 6.015 | AC43: 2.99 | AD43: 4.39 | AE43: * | AF43: * | AG43: * | AH43: 4.33
A44: Lower CI | B44: 2.754 | C44: 2.71 | D44: * | E44: * | F44: * | G44: * | H44: * | I44: 3.253 | J44: * | K44: * | L44: * | M44: 2.87 | N44: * | O44: 3.37 | P44: 3.6 | Q44: 1.932 | R44: * | S44: * | T44: * | U44: 2.544 | V44: 2.28 | W44: 3.01 | X44: * | Y44: * | Z44: * | AA44: * | AB44: 3.404 | AC44: 1.664 | AD44: 2.98 | AE44: * | AF44: * | AG44: * | AH44: 3.99
A45: Upper CI | B45: 4.989 | C45: 5.68 | D45: * | E45: * | F45: * | G45: * | H45: * | I45: 5.656 | J45: * | K45: * | L45: * | M45: 5.05 | N45: * | O45: 5.39 | P45: 5.99 | Q45: 4.883 | R45: * | S45: * | T45: * | U45: 5.175 | V45: 5.508 | W45: 6.04 | X45: * | Y45: * | Z45: * | AA45: * | AB45: 8.626 | AC45: 4.315 | AD45: 5.81 | AE45: * | AF45: * | AG45: * | AH45: 4.68
A46: Very low activity | B46: 19.237 | C46: 19.93 | D46: * | E46: * | F46: * | G46: * | H46: * | I46: 26.749 | J46: * | K46: * | L46: * | M46: 15.85 | N46: * | O46: 20.66 | P46: 24.85 | Q46: 20.639 | R46: * | S46: * | T46: * | U46: 20.894 | V46: 26.552 | W46: 24.89 | X46: * | Y46: * | Z46: * | AA46: * | AB46: 17.417 | AC46: 23.068 | AD46: 20.53 | AE46: * | AF46: * | AG46: * | AH46: 21.03
A47: Lower CI | B47: 16.568 | C47: 17.13 | D47: * | E47: * | F47: * | G47: * | H47: * | I47: 23.397 | J47: * | K47: * | L47: * | M47: 13.48 | N47: * | O47: 18.78 | P47: 22.17 | Q47: 16.344 | R47: * | S47: * | T47: * | U47: 18.502 | V47: 22.863 | W47: 20.62 | X47: * | Y47: * | Z47: * | AA47: * | AB47: 13.569 | AC47: 18.86 | AD47: 17.64 | AE47: * | AF47: * | AG47: * | AH47: 20.23
A48: Upper CI | B48: 21.906 | C48: 22.73 | D48: * | E48: * | F48: * | G48: * | H48: * | I48: 30.101 | J48: * | K48: * | L48: * | M48: 18.23 | N48: * | O48: 22.55 | P48: 27.53 | Q48: 24.935 | R48: * | S48: * | T48: * | U48: 23.286 | V48: 30.241 | W48: 29.16 | X48: * | Y48: * | Z48: * | AA48: * | AB48: 21.265 | AC48: 27.277 | AD48: 23.42 | AE48: * | AF48: * | AG48: * | AH48: 21.84
A50: Bases (weighted):
A51: Men | B51: 364.433 | C51: 439.85 | D51: 191.686 | E51: 163.666 | F51: 75.528 | G51: 259.766 | H51: 259.432 | I51: 202.578 | J51: 196.393 | K51: 177.209 | L51: 143.898 | M51: 907.6 | N51: 263.913 | O51: 616.11 | P51: 965.48 | Q51: 372.413 | R51: 127.141 | S51: 111.713 | T51: 167.843 | U51: 48.377 | V51: 227.687 | W51: 601.2 | X51: 37.501 | Y51: 224.625 | Z51: 260.928 | AA51: 183.215 | AB51: 41.04 | AC51: 174.858 | AD51: 581.88 | AE51: 155.993 | AF51: 132.927 | AG51: 326.562 | AH51: 9003.43
A52: Women | B52: 402.253 | C52: 468.29 | D52: 214.28 | E52: 155.308 | F52: 87.908 | G52: 273.405 | H52: 279.626 | I52: 244.375 | J52: 190.557 | K52: 197.648 | L52: 160.611 | M52: 849.17 | N52: 271.597 | O52: 660.46 | P52: 1075.12 | Q52: 420.107 | R52: 145.267 | S52: 136.154 | T52: 201.83 | U52: 48.252 | V52: 252.573 | W52: 694.73 | X52: 37.854 | Y52: 272.32 | Z52: 254.05 | AA52: 221.565 | AB52: 39.087 | AC52: 213.921 | AD52: 614.21 | AE52: 191.789 | AF52: 159.316 | AG52: 310.062 | AH52: 9743.71
A53: All Adults | B53: 766.685 | C53: 908.15 | D53: 405.965 | E53: 318.973 | F53: 163.436 | G53: 533.171 | H53: 539.058 | I53: 446.953 | J53: 386.95 | K53: 374.856 | L53: 304.509 | M53: 1756.76 | N53: 535.511 | O53: 1276.57 | P53: 2040.6 | Q53: 792.52 | R53: 272.408 | S53: 247.867 | T53: 369.673 | U53: 96.63 | V53: 480.26 | W53: 1295.93 | X53: 75.356 | Y53: 496.944 | Z53: 514.978 | AA53: 404.78 | AB53: 80.127 | AC53: 388.779 | AD53: 1196.09 | AE53: 347.782 | AF53: 292.243 | AG53: 636.624 | AH53: 18747.14
A54: Bases (unweighted)
A55: Men | B55: 426 | C55: 514 | D55: 133 | E55: 114 | F55: 47 | G55: 219 | H55: 158 | I55: 318 | J55: 150 | K55: 104 | L55: 114 | M55: 584 | N55: 158 | O55: 898 | P55: 654 | Q55: 237 | R55: 97 | S55: 71 | T55: 186 | U55: 386 | V55: 342 | W55: 339 | X55: 227 | Y55: 177 | Z55: 185 | AA55: 198 | AB55: 242 | AC55: 286 | AD55: 355 | AE55: 100 | AF55: 97 | AG55: 170 | AH55: 8286
A56: Women | B56: 538 | C56: 622 | D56: 163 | E56: 134 | F56: 66 | G56: 256 | H56: 191 | I56: 414 | J56: 179 | K56: 128 | L56: 145 | M56: 661 | N56: 196 | O56: 1137 | P56: 888 | Q56: 320 | R56: 128 | S56: 102 | T56: 262 | U56: 459 | V56: 418 | W56: 472 | X56: 264 | Y56: 233 | Z56: 209 | AA56: 277 | AB56: 275 | AC56: 377 | AD56: 456 | AE56: 148 | AF56: 133 | AG56: 211 | AH56: 10462
A57: All Adults | B57: 964 | C57: 1136 | D57: 296 | E57: 248 | F57: 113 | G57: 475 | H57: 349 | I57: 732 | J57: 329 | K57: 232 | L57: 259 | M57: 1245 | N57: 354 | O57: 2035 | P57: 1542 | Q57: 557 | R57: 225 | S57: 173 | T57: 448 | U57: 845 | V57: 760 | W57: 811 | X57: 491 | Y57: 410 | Z57: 394 | AA57: 475 | AB57: 517 | AC57: 663 | AD57: 811 | AE57: 248 | AF57: 230 | AG57: 381 | AH57: 18748
A59: a Meets moderate / vigorous physical activity (MVPA) guidelines:at least 150 minutes of moderately intensive physical activity or 75 minutes vigorous activity per week or an equivalent combination of both. Some activity: 60-149 minutes of moderate activity or 30-74 minutes of vigorous activity or an equivalent combination of these. Low activity: 30-59 minutes of moderate activity or 15-29 minutes of vigorous activity or an equivalent combination of these. Very low activity: Less than 30 minutes of moderate activity or less than 15 minutes of vigorous activity or an equivalent combination of these.

Sheet Physical activity chart
R1: INDEX
C31: Source: Scottish Health Survey
C32: Meets moderate / vigorous physical activity (MVPA) guidelines:at least 150 minutes of moderately intensive physical activity or 75 minutes vigorous activity per week or an equivalent combination of both. Some activity: 60-149 minutes of moderate activity or 30-74 minutes of vigorous activity or an equivalent combination of these. Low activity: 30-59 minutes of moderate activity or 15-29 minutes of vigorous activity or an equivalent combination of these. Very low activity: Less than 30 minutes of moderate activity or less than 15 minutes of vigorous activity or an equivalent combination of these.
C34: Aberdeen City | D34: Aberdeenshire | E34: East Ayrshire | F34: Edinburgh, City of | G34: Fife | H34: Glasgow City | I34: Highland | J34: Na h-Eileanan Siar | K34: North Ayrshire | L34: North Lanarkshire | M34: Shetland Islands | N34: South Ayrshire | O34: South Lanarkshire | Q34: Scotland
B35: All Adults
B36: Meets guidelines | C36: ='Physical activity guidelines'!B37 -> 67.615 | D36: ='Physical activity guidelines'!C37 -> 63.35 | E36: ='Physical activity guidelines'!I37 -> 57.992 | F36: ='Physical activity guidelines'!M37 -> 71.2 | G36: ='Physical activity guidelines'!O37 -> 64.72 | H36: ='Physical activity guidelines'!P37 -> 60.79 | I36: ='Physical activity guidelines'!Q37 -> 61.297 | J36: ='Physical activity guidelines'!U37 -> 64.486 | K36: ='Physical activity guidelines'!V37 -> 58.755 | L36: ='Physical activity guidelines'!W37 -> 58.5 | M36: ='Physical activity guidelines'!AB37 -> 65.359 | N36: ='Physical activity guidelines'!AC37 -> 63.391 | O36: ='Physical activity guidelines'!AD37 -> 64.53 | Q36: ='Physical activity guidelines'!AH37 -> 63.5
B37: Lower CI | C37: ='Physical activity guidelines'!B38 -> 63.588 | D37: ='Physical activity guidelines'!C38 -> 59.97 | E37: ='Physical activity guidelines'!I38 -> 53.35 | F37: ='Physical activity guidelines'!M38 -> 67.36 | G37: ='Physical activity guidelines'!O38 -> 62.4 | H37: ='Physical activity guidelines'!P38 -> 57.84 | I37: ='Physical activity guidelines'!Q38 -> 56.345 | J37: ='Physical activity guidelines'!U38 -> 61.456 | K37: ='Physical activity guidelines'!V38 -> 54.71 | L37: ='Physical activity guidelines'!W38 -> 54.1 | M37: ='Physical activity guidelines'!AB38 -> 60.06 | N37: ='Physical activity guidelines'!AC38 -> 58.938 | O37: ='Physical activity guidelines'!AD38 -> 60.79 | Q37: ='Physical activity guidelines'!AH38 -> 62.51
B38: Upper CI | C38: ='Physical activity guidelines'!B39 -> 71.643 | D38: ='Physical activity guidelines'!C39 -> 66.74 | E38: ='Physical activity guidelines'!I39 -> 62.633 | F38: ='Physical activity guidelines'!M39 -> 75.04 | G38: ='Physical activity guidelines'!O39 -> 67.04 | H38: ='Physical activity guidelines'!P39 -> 63.74 | I38: ='Physical activity guidelines'!Q39 -> 66.249 | J38: ='Physical activity guidelines'!U39 -> 67.515 | K38: ='Physical activity guidelines'!V39 -> 62.801 | L38: ='Physical activity guidelines'!W39 -> 62.9 | M38: ='Physical activity guidelines'!AB39 -> 70.659 | N38: ='Physical activity guidelines'!AC39 -> 67.844 | O38: ='Physical activity guidelines'!AD39 -> 68.28 | Q38: ='Physical activity guidelines'!AH39 -> 64.5
B39: Some activity | C39: ='Physical activity guidelines'!B40 -> 9.276 | D39: ='Physical activity guidelines'!C40 -> 12.52 | E39: ='Physical activity guidelines'!I40 -> 10.805 | F39: ='Physical activity guidelines'!M40 -> 8.99 | G39: ='Physical activity guidelines'!O40 -> 10.24 | H39: ='Physical activity guidelines'!P40 -> 9.56 | I39: ='Physical activity guidelines'!Q40 -> 14.656 | J39: ='Physical activity guidelines'!U40 -> 10.761 | K39: ='Physical activity guidelines'!V40 -> 10.799 | L39: ='Physical activity guidelines'!W40 -> 12.09 | M39: ='Physical activity guidelines'!AB40 -> 11.209 | N39: ='Physical activity guidelines'!AC40 -> 10.551 | O39: ='Physical activity guidelines'!AD40 -> 10.55 | Q39: ='Physical activity guidelines'!AH40 -> 11.13
B40: Lower CI | C40: ='Physical activity guidelines'!B41 -> 7.14 | D40: ='Physical activity guidelines'!C41 -> 10.26 | E40: ='Physical activity guidelines'!I41 -> 7.686 | F40: ='Physical activity guidelines'!M41 -> 6.81 | G40: ='Physical activity guidelines'!O41 -> 8.92 | H40: ='Physical activity guidelines'!P41 -> 8.07 | I40: ='Physical activity guidelines'!Q41 -> 11.937 | J40: ='Physical activity guidelines'!U41 -> 8.226 | K40: ='Physical activity guidelines'!V41 -> 8.12 | L40: ='Physical activity guidelines'!W41 -> 9.32 | M40: ='Physical activity guidelines'!AB41 -> 8.025 | N40: ='Physical activity guidelines'!AC41 -> 8.089 | O40: ='Physical activity guidelines'!AD41 -> 8.21 | Q40: ='Physical activity guidelines'!AH41 -> 10.56
B41: Upper CI | C41: ='Physical activity guidelines'!B42 -> 11.412 | D41: ='Physical activity guidelines'!C42 -> 14.78 | E41: ='Physical activity guidelines'!I42 -> 13.924 | F41: ='Physical activity guidelines'!M42 -> 11.16 | G41: ='Physical activity guidelines'!O42 -> 11.55 | H41: ='Physical activity guidelines'!P42 -> 11.05 | I41: ='Physical activity guidelines'!Q42 -> 17.376 | J41: ='Physical activity guidelines'!U42 -> 13.295 | K41: ='Physical activity guidelines'!V42 -> 13.478 | L41: ='Physical activity guidelines'!W42 -> 14.85 | M41: ='Physical activity guidelines'!AB42 -> 14.393 | N41: ='Physical activity guidelines'!AC42 -> 13.013 | O41: ='Physical activity guidelines'!AD42 -> 12.89 | Q41: ='Physical activity guidelines'!AH42 -> 11.7
B42: Low activity | C42: ='Physical activity guidelines'!B43 -> 3.871 | D42: ='Physical activity guidelines'!C43 -> 4.2 | E42: ='Physical activity guidelines'!I43 -> 4.454 | F42: ='Physical activity guidelines'!M43 -> 3.96 | G42: ='Physical activity guidelines'!O43 -> 4.38 | H42: ='Physical activity guidelines'!P43 -> 4.8 | I42: ='Physical activity guidelines'!Q43 -> 3.407 | J42: ='Physical activity guidelines'!U43 -> 3.86 | K42: ='Physical activity guidelines'!V43 -> 3.894 | L42: ='Physical activity guidelines'!W43 -> 4.52 | M42: ='Physical activity guidelines'!AB43 -> 6.015 | N42: ='Physical activity guidelines'!AC43 -> 2.99 | O42: ='Physical activity guidelines'!AD43 -> 4.39 | Q42: ='Physical activity guidelines'!AH43 -> 4.33
B43: Lower CI | C43: ='Physical activity guidelines'!B44 -> 2.754 | D43: ='Physical activity guidelines'!C44 -> 2.71 | E43: ='Physical activity guidelines'!I44 -> 3.253 | F43: ='Physical activity guidelines'!M44 -> 2.87 | G43: ='Physical activity guidelines'!O44 -> 3.37 | H43: ='Physical activity guidelines'!P44 -> 3.6 | I43: ='Physical activity guidelines'!Q44 -> 1.932 | J43: ='Physical activity guidelines'!U44 -> 2.544 | K43: ='Physical activity guidelines'!V44 -> 2.28 | L43: ='Physical activity guidelines'!W44 -> 3.01 | M43: ='Physical activity guidelines'!AB44 -> 3.404 | N43: ='Physical activity guidelines'!AC44 -> 1.664 | O43: ='Physical activity guidelines'!AD44 -> 2.98 | Q43: ='Physical activity guidelines'!AH44 -> 3.99
B44: Upper CI | C44: ='Physical activity guidelines'!B45 -> 4.989 | D44: ='Physical activity guidelines'!C45 -> 5.68 | E44: ='Physical activity guidelines'!I45 -> 5.656 | F44: ='Physical activity guidelines'!M45 -> 5.05 | G44: ='Physical activity guidelines'!O45 -> 5.39 | H44: ='Physical activity guidelines'!P45 -> 5.99 | I44: ='Physical activity guidelines'!Q45 -> 4.883 | J44: ='Physical activity guidelines'!U45 -> 5.175 | K44: ='Physical activity guidelines'!V45 -> 5.508 | L44: ='Physical activity guidelines'!W45 -> 6.04 | M44: ='Physical activity guidelines'!AB45 -> 8.626 | N44: ='Physical activity guidelines'!AC45 -> 4.315 | O44: ='Physical activity guidelines'!AD45 -> 5.81 | Q44: ='Physical activity guidelines'!AH45 -> 4.68
B45: Very low activity | C45: ='Physical activity guidelines'!B46 -> 19.237 | D45: ='Physical activity guidelines'!C46 -> 19.93 | E45: ='Physical activity guidelines'!I46 -> 26.749 | F45: ='Physical activity guidelines'!M46 -> 15.85 | G45: ='Physical activity guidelines'!O46 -> 20.66 | H45: ='Physical activity guidelines'!P46 -> 24.85 | I45: ='Physical activity guidelines'!Q46 -> 20.639 | J45: ='Physical activity guidelines'!U46 -> 20.894 | K45: ='Physical activity guidelines'!V46 -> 26.552 | L45: ='Physical activity guidelines'!W46 -> 24.89 | M45: ='Physical activity guidelines'!AB46 -> 17.417 | N45: ='Physical activity guidelines'!AC46 -> 23.068 | O45: ='Physical activity guidelines'!AD46 -> 20.53 | Q45: ='Physical activity guidelines'!AH46 -> 21.03
B46: Lower CI | C46: ='Physical activity guidelines'!B47 -> 16.568 | D46: ='Physical activity guidelines'!C47 -> 17.13 | E46: ='Physical activity guidelines'!I47 -> 23.397 | F46: ='Physical activity guidelines'!M47 -> 13.48 | G46: ='Physical activity guidelines'!O47 -> 18.78 | H46: ='Physical activity guidelines'!P47 -> 22.17 | I46: ='Physical activity guidelines'!Q47 -> 16.344 | J46: ='Physical activity guidelines'!U47 -> 18.502 | K46: ='Physical activity guidelines'!V47 -> 22.863 | L46: ='Physical activity guidelines'!W47 -> 20.62 | M46: ='Physical activity guidelines'!AB47 -> 13.569 | N46: ='Physical activity guidelines'!AC47 -> 18.86 | O46: ='Physical activity guidelines'!AD47 -> 17.64 | Q46: ='Physical activity guidelines'!AH47 -> 20.23
B47: Upper CI | C47: ='Physical activity guidelines'!B48 -> 21.906 | D47: ='Physical activity guidelines'!C48 -> 22.73 | E47: ='Physical activity guidelines'!I48 -> 30.101 | F47: ='Physical activity guidelines'!M48 -> 18.23 | G47: ='Physical activity guidelines'!O48 -> 22.55 | H47: ='Physical activity guidelines'!P48 -> 27.53 | I47: ='Physical activity guidelines'!Q48 -> 24.935 | J47: ='Physical activity guidelines'!U48 -> 23.286 | K47: ='Physical activity guidelines'!V48 -> 30.241 | L47: ='Physical activity guidelines'!W48 -> 29.16 | M47: ='Physical activity guidelines'!AB48 -> 21.265 | N47: ='Physical activity guidelines'!AC48 -> 27.277 | O47: ='Physical activity guidelines'!AD48 -> 23.42 | Q47: ='Physical activity guidelines'!AH48 -> 21.84
A49: CLs | B49: Meets guidelines | C49: =C36-C37 -> 4.027 | D49: =D36-D37 -> 3.38 | E49: =E36-E37 -> 4.642 | F49: =F36-F37 -> 3.84 | G49: =G36-G37 -> 2.32 | H49: =H36-H37 -> 2.95 | I49: 4.952 | J49: 3.03 | K49: 4.045 | L49: 4.4 | M49: 5.299 | N49: 4.453 | O49: 3.74 | Q49: =Q36-Q37 -> 0.99
B50: Some activity | C50: =C39-C40 -> 2.136 | D50: =D39-D40 -> 2.26 | E50: =E39-E40 -> 3.119 | F50: =F39-F40 -> 2.18 | G50: =G39-G40 -> 1.32 | H50: =H39-H40 -> 1.49 | I50: 2.719 | J50: 2.535 | K50: 2.679 | L50: 2.77 | M50: 3.184 | N50: 2.462 | O50: 2.34 | Q50: =Q39-Q40 -> 0.57
B51: Low activity | C51: =C42-C43 -> 1.117 | D51: =D42-D43 -> 1.49 | E51: =E42-E43 -> 1.201 | F51: =F42-F43 -> 1.09 | G51: =G42-G43 -> 1.01 | H51: =H42-H43 -> 1.2 | I51: 1.475 | J51: 1.316 | K51: 1.614 | L51: 1.51 | M51: 2.611 | N51: 1.326 | O51: 1.41 | Q51: =Q42-Q43 -> 0.34
B52: Very low activity | C52: =C45-C46 -> 2.669 | D52: =D45-D46 -> 2.8 | E52: =E45-E46 -> 3.352 | F52: =F45-F46 -> 2.37 | G52: =G45-G46 -> 1.88 | H52: =H45-H46 -> 2.68 | I52: 4.295 | J52: 2.392 | K52: 3.689 | L52: 4.27 | M52: 3.848 | N52: 4.208 | O52: 2.89 | Q52: =Q45-Q46 -> 0.8

Sheet CVD
A1: Prevalence of cardiovascular (CVD) conditions by Local Authority and sex | M1: INDEX
A4: Aged 16 and over | B4: PLEASE NOTE: Where the sample size for a Local Authority was below 500, the result has been suppressed. This is shown here by *. | P4: 2013/2014/2015/2016 combined
A5: CVD | B5: Local Authority
B6: Aberdeen City | C6: Aberdeenshire | D6: Angus | E6: Argyll & Bute | F6: Clackmannanshire | G6: Dumfries & Galloway | H6: Dundee City | I6: East Ayrshire | J6: East Dunbartonshire | K6: East Lothian | L6: East Renfrewshire | M6: Edinburgh, City of | N6: Falkirk | O6: Fife | P6: Glasgow City | Q6: Highland | R6: Inverclyde | S6: Midlothian | T6: Moray | U6: Na h-Eileanan Siar | V6: North Ayrshire | W6: North Lanarkshire | X6: Orkney Islands | Y6: Perth & Kinross | Z6: Renfrewshire | AA6: Scottish Borders | AB6: Shetland Islands | AC6: South Ayrshire | AD6: South Lanarkshire | AE6: Stirling | AF6: West Dunbartonshire | AG6: West Lothian | AH6: Scotland
B7: % | C7: % | D7: % | E7: % | F7: % | G7: % | H7: % | I7: % | J7: % | K7: % | L7: % | M7: % | N7: % | O7: % | P7: % | Q7: % | R7: % | S7: % | T7: % | U7: % | V7: % | W7: % | X7: % | Y7: % | Z7: % | AA7: % | AB7: % | AC7: % | AD7: % | AE7: % | AF7: % | AG7: % | AH7: %
A8: Men
A9: Has a cardiovascular condition | B9: 15.638 | C9: 17.26 | D9: * | E9: * | F9: * | G9: * | H9: * | I9: 18.691 | J9: * | K9: * | L9: * | M9: 12.58 | N9: * | O9: 16.99 | P9: 15.15 | Q9: 16.981 | R9: * | S9: * | T9: * | U9: 14.704 | V9: 22.128 | W9: 16.83 | X9: 17.49 | Y9: * | Z9: * | AA9: * | AB9: 13.668 | AC9: 18.832 | AD9: 17.21 | AE9: * | AF9: * | AG9: * | AH9: 16.47
A10: Lower CI | B10: 11.503 | C10: 13.99 | D10: * | E10: * | F10: * | G10: * | H10: * | I10: 14.023 | J10: * | K10: * | L10: * | M10: 9.83 | N10: * | O10: 14.41 | P10: 12.3 | Q10: 11.224 | R10: * | S10: * | T10: * | U10: 11.083 | V10: 17.624 | W10: 12.53 | X10: 13.048 | Y10: * | Z10: * | AA10: * | AB10: 8.048 | AC10: 15.018 | AD10: 11.61 | AE10: * | AF10: * | AG10: * | AH10: 15.55
A11: Upper CI | B11: 19.772 | C11: 20.52 | D11: * | E11: * | F11: * | G11: * | H11: * | I11: 23.36 | J11: * | K11: * | L11: * | M11: 15.33 | N11: * | O11: 19.57 | P11: 17.99 | Q11: 22.739 | R11: * | S11: * | T11: * | U11: 18.325 | V11: 26.633 | W11: 21.14 | X11: 21.933 | Y11: * | Z11: * | AA11: * | AB11: 19.287 | AC11: 22.647 | AD11: 22.81 | AE11: * | AF11: * | AG11: * | AH11: 17.39
A13: Women
A14: Has a cardiovascular condition | B14: 14.103 | C14: 12.84 | D14: * | E14: * | F14: * | G14: * | H14: * | I14: 16.73 | J14: * | K14: * | L14: * | M14: 12.32 | N14: * | O14: 17.49 | P14: 16.78 | Q14: 14.483 | R14: * | S14: * | T14: * | U14: 14.756 | V14: 19.126 | W14: 13.85 | X14: 17.648 | Y14: * | Z14: * | AA14: * | AB14: 12.844 | AC14: 21.483 | AD14: 11.79 | AE14: * | AF14: * | AG14: * | AH14: 14.7
A15: Lower CI | B15: 10.751 | C15: 10.44 | D15: * | E15: * | F15: * | G15: * | H15: * | I15: 12.988 | J15: * | K15: * | L15: * | M15: 9.75 | N15: * | O15: 15.21 | P15: 14.06 | Q15: 10.841 | R15: * | S15: * | T15: * | U15: 10.696 | V15: 15.852 | W15: 10.81 | X15: 12.801 | Y15: * | Z15: * | AA15: * | AB15: 8.768 | AC15: 17.654 | AD15: 8.55 | AE15: * | AF15: * | AG15: * | AH15: 13.91
A16: Upper CI | B16: 17.454 | C16: 15.25 | D16: * | E16: * | F16: * | G16: * | H16: * | I16: 20.471 | J16: * | K16: * | L16: * | M16: 14.9 | N16: * | O16: 19.77 | P16: 19.5 | Q16: 18.125 | R16: * | S16: * | T16: * | U16: 18.816 | V16: 22.4 | W16: 16.9 | X16: 22.495 | Y16: * | Z16: * | AA16: * | AB16: 16.921 | AC16: 25.313 | AD16: 15.02 | AE16: * | AF16: * | AG16: * | AH16: 15.49
A18: All Adults
A19: Has a cardiovascular condition | B19: 14.831 | C19: 14.98 | D19: * | E19: * | F19: * | G19: * | H19: * | I19: 17.62 | J19: * | K19: * | L19: * | M19: 12.46 | N19: * | O19: 17.25 | P19: 16.01 | Q19: 15.649 | R19: * | S19: * | T19: * | U19: 14.73 | V19: 20.553 | W19: 15.24 | X19: 17.57 | Y19: * | Z19: * | AA19: * | AB19: 13.27 | AC19: 20.291 | AD19: 14.42 | AE19: * | AF19: * | AG19: * | AH19: 15.55
A20: Lower CI | B20: 11.88 | C20: 12.95 | D20: * | E20: * | F20: * | G20: * | H20: * | I20: 14.428 | J20: * | K20: * | L20: * | M20: 10.49 | N20: * | O20: 15.53 | P20: 13.87 | Q20: 12.253 | R20: * | S20: * | T20: * | U20: 12.057 | V20: 17.614 | W20: 12.57 | X20: 14.187 | Y20: * | Z20: * | AA20: * | AB20: 10.044 | AC20: 17.734 | AD20: 11.36 | AE20: * | AF20: * | AG20: * | AH20: 14.91
A21: Upper CI | B21: 17.782 | C21: 17.01 | D21: * | E21: * | F21: * | G21: * | H21: * | I21: 20.812 | J21: * | K21: * | L21: * | M21: 14.42 | N21: * | O21: 18.96 | P21: 18.15 | Q21: 19.046 | R21: * | S21: * | T21: * | U21: 17.403 | V21: 23.492 | W21: 17.91 | X21: 20.953 | Y21: * | Z21: * | AA21: * | AB21: 16.496 | AC21: 22.848 | AD21: 17.48 | AE21: * | AF21: * | AG21: * | AH21: 16.18
A23: Bases (weighted):
A24: Men | B24: 364.433 | C24: 441.84 | D24: 192.61 | E24: 165.798 | F24: 76.663 | G24: 262.106 | H24: 260.443 | I24: 202.578 | J24: 196.393 | K24: 177.209 | L24: 143.898 | M24: 916.64 | N24: 267.752 | O24: 619.4 | P24: 970.19 | Q24: 375.657 | R24: 130.626 | S24: 111.713 | T24: 171.55 | U24: 48.446 | V24: 228.688 | W24: 609.26 | X24: 38.664 | Y24: 225.547 | Z24: 262.11 | AA24: 183.602 | AB24: 41.939 | AC24: 174.858 | AD24: 585.54 | AE24: 155.993 | AF24: 134.177 | AG24: 330.149 | AH24: 9066.47
A25: Women | B25: 403.964 | C25: 470 | D25: 214.28 | E25: 157.802 | F25: 87.908 | G25: 275.466 | H25: 283.567 | I25: 243.606 | J25: 190.557 | K25: 197.648 | L25: 160.611 | M25: 850.16 | N25: 272.99 | O25: 663.33 | P25: 1084.09 | Q25: 429.052 | R25: 145.267 | S25: 137.367 | T25: 204.394 | U25: 48.421 | V25: 252.263 | W25: 698.82 | X25: 39.048 | Y25: 273.349 | Z25: 257.548 | AA25: 221.461 | AB25: 39.248 | AC25: 213.921 | AD25: 618.9 | AE25: 192.86 | AF25: 159.316 | AG25: 311.158 | AH25: 9798.38
A26: All Adults | B26: 768.397 | C26: 911.85 | D26: 406.89 | E26: 323.6 | F26: 164.571 | G26: 537.572 | H26: 544.01 | I26: 446.183 | J26: 386.95 | K26: 374.856 | L26: 304.509 | M26: 1766.8 | N26: 540.742 | O26: 1282.73 | P26: 2054.28 | Q26: 804.708 | R26: 275.893 | S26: 249.081 | T26: 375.944 | U26: 96.867 | V26: 480.95 | W26: 1308.07 | X26: 77.713 | Y26: 498.896 | Z26: 519.658 | AA26: 405.063 | AB26: 81.186 | AC26: 388.779 | AD26: 1204.45 | AE26: 348.853 | AF26: 293.493 | AG26: 641.307 | AH26: 18864.85
A27: Bases (unweighted)
A28: Men | B28: 426 | C28: 517 | D28: 134 | E28: 116 | F28: 48 | G28: 221 | H28: 159 | I28: 318 | J28: 150 | K28: 104 | L28: 114 | M28: 591 | N28: 160 | O28: 902 | P28: 657 | Q28: 239 | R28: 99 | S28: 71 | T28: 190 | U28: 387 | V28: 344 | W28: 343 | X28: 233 | Y28: 178 | Z28: 186 | AA28: 199 | AB28: 247 | AC28: 286 | AD28: 357 | AE28: 100 | AF28: 98 | AG28: 172 | AH28: 8346
A29: Women | B29: 540 | C29: 624 | D29: 163 | E29: 136 | F29: 66 | G29: 258 | H29: 193 | I29: 413 | J29: 179 | K29: 128 | L29: 145 | M29: 662 | N29: 197 | O29: 1142 | P29: 895 | Q29: 327 | R29: 128 | S29: 103 | T29: 264 | U29: 460 | V29: 417 | W29: 475 | X29: 271 | Y29: 234 | Z29: 212 | AA29: 277 | AB29: 276 | AC29: 377 | AD29: 459 | AE29: 149 | AF29: 133 | AG29: 212 | AH29: 10515
A30: All Adults | B30: 966 | C30: 1141 | D30: 297 | E30: 252 | F30: 114 | G30: 479 | H30: 352 | I30: 731 | J30: 329 | K30: 232 | L30: 259 | M30: 1253 | N30: 357 | O30: 2044 | P30: 1552 | Q30: 566 | R30: 227 | S30: 174 | T30: 454 | U30: 847 | V30: 761 | W30: 818 | X30: 504 | Y30: 412 | Z30: 398 | AA30: 476 | AB30: 523 | AC30: 663 | AD30: 816 | AE30: 249 | AF30: 231 | AG30: 384 | AH30: 18861

Sheet CVD chart
R1: INDEX
C31: Source: Scottish Health Survey
C34: Aberdeen City | D34: Aberdeenshire | E34: East Ayrshire | F34: Edinburgh, City of | G34: Fife | H34: Glasgow City | I34: Highland | J34: Na h-Eileanan Siar | K34: North Ayrshire | L34: North Lanarkshire | M34: Orkney Islands | N34: Shetland Islands | O34: South Ayrshire | P34: South Lanarkshire | R34: Scotland
B35: All Adults
B36: Has a cardiovascular condition | C36: =CVD!B19 -> 14.831 | D36: =CVD!C19 -> 14.98 | E36: =CVD!I19 -> 17.62 | F36: =CVD!M19 -> 12.46 | G36: =CVD!O19 -> 17.25 | H36: =CVD!P19 -> 16.01 | I36: =CVD!Q19 -> 15.649 | J36: =CVD!U19 -> 14.73 | K36: =CVD!V19 -> 20.553 | L36: =CVD!W19 -> 15.24 | M36: =CVD!X19 -> 17.57 | N36: =CVD!AB19 -> 13.27 | O36: =CVD!AC19 -> 20.291 | P36: =CVD!AD19 -> 14.42 | R36: =CVD!AH19 -> 15.55
B37: Lower CI | C37: =CVD!B20 -> 11.88 | D37: =CVD!C20 -> 12.95 | E37: =CVD!I20 -> 14.428 | F37: =CVD!M20 -> 10.49 | G37: =CVD!O20 -> 15.53 | H37: =CVD!P20 -> 13.87 | I37: =CVD!Q20 -> 12.253 | J37: =CVD!U20 -> 12.057 | K37: =CVD!V20 -> 17.614 | L37: =CVD!W20 -> 12.57 | M37: =CVD!X20 -> 14.187 | N37: =CVD!AB20 -> 10.044 | O37: =CVD!AC20 -> 17.734 | P37: =CVD!AD20 -> 11.36 | R37: =CVD!AH20 -> 14.91
B38: Upper CI | C38: =CVD!B21 -> 17.782 | D38: =CVD!C21 -> 17.01 | E38: =CVD!I21 -> 20.812 | F38: =CVD!M21 -> 14.42 | G38: =CVD!O21 -> 18.96 | H38: =CVD!P21 -> 18.15 | I38: =CVD!Q21 -> 19.046 | J38: =CVD!U21 -> 17.403 | K38: =CVD!V21 -> 23.492 | L38: =CVD!W21 -> 17.91 | M38: =CVD!X21 -> 20.953 | N38: =CVD!AB21 -> 16.496 | O38: =CVD!AC21 -> 22.848 | P38: =CVD!AD21 -> 17.48 | R38: =CVD!AH21 -> 16.18
A40: CLs | C40: =C36-C37 -> 2.951 | D40: 2.03 | E40: =E36-E37 -> 3.192 | F40: =F36-F37 -> 1.97 | G40: =G36-G37 -> 1.72 | H40: =H36-H37 -> 2.14 | I40: 3.396 | J40: 2.673 | K40: 2.939 | L40: 2.67 | M40: 3.383 | N40: 3.226 | O40: 2.557 | P40: 3.06 | R40: =R36-R37 -> 0.64
